Transaction Date,Local Authority Department,BENEFICIARY,Purpose,Amount,Non Recoverable,Merchant Category
01-04-2022,Environment and Sustainable Transport,Danfo (Uk) Limited,"Maintenance - Equipment, Furniture And Materials",2658.66,0,VENDOR
01-04-2022,Adults & Health,Voiceability,Legal Fees,761.95,0,COMMERCIAL SUPPLIER
01-04-2022,Adults & Health,Voiceability,Legal Fees,604.8,0,COMMERCIAL SUPPLIER
01-04-2022,Adults & Health,Voiceability,Legal Fees,1887.55,0,COMMERCIAL SUPPLIER
01-04-2022,Dedicated Schools Budget,Personal Information - Redacted,Private Contractors Payment - Other,17380,0,VENDOR
01-04-2022,Adults & Health,T J Building Services,Private Contractors Payment - Other,5950.39,0,VENDOR
01-04-2022,oneSource,Law Morgan Ltd,Agency Staff,3248.2,0,COMMERCIAL SUPPLIER
01-04-2022,oneSource,Law Morgan Ltd,Agency Staff,3248.2,0,COMMERCIAL SUPPLIER
01-04-2022,Children and Young People,Acclaimed Care,Private Contractors Payment - Other,1440,0,CARERS
01-04-2022,Children and Young People,Docklands Day Nursery,Contact Costs (Placements),1100,0,NON COMMERCIAL SUPPLIER
01-04-2022,Children and Young People,Caccou Ltd,Legal Fees,2400,0,INDIVIDUALS
01-04-2022,Housing Revenue Account,Barnes & Partners Solicitors,Legal Fees,3912,0,LEGAL SERVICES
01-04-2022,Children and Young People,Environment Agency,Water And Sewerage,890,0,CENTRAL/GOVERNMENT DEPARTMENTS
01-04-2022,Adults & Health,Stannah Lift Services Ltd,Private Contractors Payment - Other,6839,0,CIS
01-04-2022,Children and Young People,Exit Foundation,Supported Other Accommodation - Private Contractors Payment,3058.5,0,NON COMMERCIAL SUPPLIER
01-04-2022,Adults & Health,Supply Chain Coordination Ltd (SCCL),Salaries,1983.78,0,NHS BODIES
01-04-2022,Adults & Health,Supply Chain Coordination Ltd (SCCL),Salaries,1090.31,0,NHS BODIES
01-04-2022,Children and Young People,Exit Foundation,Supported Other Accommodation - Private Contractors Payment,2520,0,NON COMMERCIAL SUPPLIER
01-04-2022,oneSource,Daisy Corporate Services Trading Ltd,Land Line Telephone Costs,5356.46,0,COMMERCIAL SUPPLIER
01-04-2022,oneSource,Daisy Corporate Services Trading Ltd,Land Line Telephone Costs,2067.52,0,COMMERCIAL SUPPLIER
01-04-2022,Housing Revenue Account,Daisy Corporate Services Trading Ltd,Cyclical/Planned Maintenance - Mechanical And Electrical,321.67,0,COMMERCIAL SUPPLIER
01-04-2022,oneSource,Daisy Corporate Services Trading Ltd,Land Line Telephone Costs,17188.09,0,COMMERCIAL SUPPLIER
01-04-2022,Housing Revenue Account,Daisy Corporate Services Trading Ltd,Land Line Telephone Costs,302.44,0,COMMERCIAL SUPPLIER
01-04-2022,Housing Revenue Account,Daisy Corporate Services Trading Ltd,Land Line Telephone Costs,3112.48,0,COMMERCIAL SUPPLIER
01-04-2022,Children and Young People,Exit Foundation,Supported Other Accommodation - Private Contractors Payment,2548,0,NON COMMERCIAL SUPPLIER
01-04-2022,oneSource - Non Shared,Royal Docks Management Authority Ltd,Facilities Management,5313,0,VENDOR
01-04-2022,RMS,Drain Aid Ltd,Private Contractors Payment - Other,450,0,COMMERCIAL SUPPLIER
01-04-2022,RMS,Drain Aid Ltd,Private Contractors Payment - Other,450,0,COMMERCIAL SUPPLIER
01-04-2022,oneSource - Non Shared,Financial Data Management PLC,Printing,1258.74,0,COMMERCIAL SUPPLIER
01-04-2022,Housing Revenue Account,Satchell Moran Solicitors,Legal Fees,4609.03,0,COMMERCIAL SUPPLIER
01-04-2022,Inclusive Economy & Housing,Getmapping Plc,Design And Photographic Costs,432.5,0,COMMERCIAL SUPPLIER
01-04-2022,Adults & Health,Eastway Care Ltd,Daycare - Private Contractors Payment,950.4,0,COMMERCIAL SUPPLIER
01-04-2022,Adults & Health,Eastway Care Ltd,Daycare - Private Contractors Payment,950.4,0,COMMERCIAL SUPPLIER
01-04-2022,Adults & Health,Eastway Care Ltd,Daycare - Private Contractors Payment,950.4,0,COMMERCIAL SUPPLIER
01-04-2022,Adults & Health,Eastway Care Ltd,Daycare - Private Contractors Payment,950.4,0,COMMERCIAL SUPPLIER
01-04-2022,Environment and Sustainable Transport,Greener Solutions,Highway Services,55.86,0,VENDOR
01-04-2022,Environment and Sustainable Transport,Greener Solutions,Highway Services,92.5,0,VENDOR
01-04-2022,Environment and Sustainable Transport,Greener Solutions,Highway Services,85.5,0,VENDOR
01-04-2022,Environment and Sustainable Transport,Greener Solutions,Highway Services,84.4,0,VENDOR
01-04-2022,Environment and Sustainable Transport,Greener Solutions,Highway Services,105,0,VENDOR
01-04-2022,Environment and Sustainable Transport,Greener Solutions,Highway Services,125,0,VENDOR
01-04-2022,Environment and Sustainable Transport,Greener Solutions,Highway Services,26.85,0,VENDOR
01-04-2022,Environment and Sustainable Transport,Greener Solutions,Highway Services,37.5,0,VENDOR
01-04-2022,Environment and Sustainable Transport,Greener Solutions,Highway Services,85.92,0,VENDOR
01-04-2022,Environment and Sustainable Transport,Greener Solutions,Highway Services,116,0,VENDOR
01-04-2022,Environment and Sustainable Transport,Greener Solutions,Highway Services,177,0,VENDOR
01-04-2022,Environment and Sustainable Transport,Greener Solutions,Highway Services,107.7,0,VENDOR
01-04-2022,Environment and Sustainable Transport,Greener Solutions,Highway Services,63.3,0,VENDOR
01-04-2022,Environment and Sustainable Transport,Greener Solutions,Highway Services,74.4,0,VENDOR
01-04-2022,Pension Fund,London CIV,Fund Management Fees,25000,0,COMMERCIAL SUPPLIER
01-04-2022,Pension Fund,London CIV,Fund Management Fees,57000,0,COMMERCIAL SUPPLIER
01-04-2022,RMS,Gandhi Carpets,Private Contractors Payment - Other,429.17,0,COMMERCIAL SUPPLIER
01-04-2022,RMS,Gandhi Carpets,Private Contractors Payment - Other,559.6,0,COMMERCIAL SUPPLIER
01-04-2022,RMS,Gandhi Carpets,Private Contractors Payment - Other,497.17,0,COMMERCIAL SUPPLIER
01-04-2022,RMS,Gandhi Carpets,Private Contractors Payment - Other,1200,0,COMMERCIAL SUPPLIER
01-04-2022,RMS,Gandhi Carpets,Private Contractors Payment - Other,880,0,COMMERCIAL SUPPLIER
01-04-2022,RMS,Gandhi Carpets,Private Contractors Payment - Other,1600,0,COMMERCIAL SUPPLIER
01-04-2022,RMS,Gandhi Carpets,Private Contractors Payment - Other,1420,0,COMMERCIAL SUPPLIER
01-04-2022,oneSource - Non Shared,Elite Engineering (Europe) Ltd,Facilities Management,445,0,CIS
01-04-2022,Environment and Sustainable Transport,Enterprise Flex-E-Rent,Client Transport,537.11,0,COMMERCIAL SUPPLIER
01-04-2022,Environment and Sustainable Transport,Enterprise Flex-E-Rent,Client Transport,368.72,0,COMMERCIAL SUPPLIER
01-04-2022,Environment and Sustainable Transport,Enterprise Flex-E-Rent,Client Transport,485.12,0,COMMERCIAL SUPPLIER
01-04-2022,Environment and Sustainable Transport,Enterprise Flex-E-Rent,Client Transport,485.12,0,COMMERCIAL SUPPLIER
01-04-2022,Environment and Sustainable Transport,Enterprise Flex-E-Rent,Client Transport,485.12,0,COMMERCIAL SUPPLIER
01-04-2022,Environment and Sustainable Transport,Enterprise Flex-E-Rent,Client Transport,485.12,0,COMMERCIAL SUPPLIER
01-04-2022,Environment and Sustainable Transport,Enterprise Flex-E-Rent,Client Transport,485.12,0,COMMERCIAL SUPPLIER
01-04-2022,Environment and Sustainable Transport,Enterprise Flex-E-Rent,Client Transport,368.72,0,COMMERCIAL SUPPLIER
01-04-2022,Inclusive Economy & Housing,Future of London,Private Contractors Payment - Other,1200,0,COMMERCIAL SUPPLIER
01-04-2022,Adults & Health,Cornerstone Care Services,Home Care - Private Contractors Payment,434.7,0,COMMERCIAL SUPPLIER
01-04-2022,Adults & Health,Cornerstone Care Services,Home Care - Private Contractors Payment,434.7,0,COMMERCIAL SUPPLIER
01-04-2022,Adults & Health,Cornerstone Care Services,Home Care - Private Contractors Payment,434.7,0,COMMERCIAL SUPPLIER
01-04-2022,Adults & Health,Cornerstone Care Services,Home Care - Private Contractors Payment,434.7,0,COMMERCIAL SUPPLIER
01-04-2022,Adults & Health,Br3Ak Free,Daycare - Private Contractors Payment,310.12,0,VENDOR
01-04-2022,Adults & Health,Br3Ak Free,Payments To Voluntary Sector,40,0,VENDOR
01-04-2022,Adults & Health,Br3Ak Free,Daycare - Private Contractors Payment,310.12,0,VENDOR
01-04-2022,Adults & Health,Br3Ak Free,Payments To Voluntary Sector,40,0,VENDOR
01-04-2022,Adults & Health,Br3Ak Free,Daycare - Private Contractors Payment,310.12,0,VENDOR
01-04-2022,Adults & Health,Br3Ak Free,Payments To Voluntary Sector,40,0,VENDOR
01-04-2022,Adults & Health,Br3Ak Free,Payments To Voluntary Sector,40,0,VENDOR
01-04-2022,Adults & Health,Br3Ak Free,Daycare - Private Contractors Payment,310.02,0,VENDOR
01-04-2022,Adults & Health,Br3Ak Free,Payments To Voluntary Sector,20,0,VENDOR
01-04-2022,Adults & Health,Br3Ak Free,Daycare - Private Contractors Payment,155.06,0,VENDOR
01-04-2022,Adults & Health,Br3Ak Free,Daycare - Private Contractors Payment,155.06,0,VENDOR
01-04-2022,Adults & Health,Br3Ak Free,Payments To Voluntary Sector,20,0,VENDOR
01-04-2022,Adults & Health,Br3Ak Free,Daycare - Private Contractors Payment,350.03,0,VENDOR
01-04-2022,Adults & Health,Br3Ak Free,Daycare - Private Contractors Payment,350.12,0,VENDOR
01-04-2022,Adults & Health,Br3Ak Free,Daycare - Private Contractors Payment,350.12,0,VENDOR
01-04-2022,Adults & Health,Br3Ak Free,Daycare - Private Contractors Payment,175.06,0,VENDOR
01-04-2022,Adults & Health,Br3Ak Free,Daycare - Private Contractors Payment,350.12,0,VENDOR
01-04-2022,Adults & Health,Br3Ak Free,Daycare - Private Contractors Payment,350,0,VENDOR
01-04-2022,Adults & Health,Br3Ak Free,Daycare - Private Contractors Payment,350,0,VENDOR
01-04-2022,Adults & Health,Br3Ak Free,Daycare - Private Contractors Payment,350,0,VENDOR
01-04-2022,Adults & Health,Br3Ak Free,Daycare - Private Contractors Payment,350,0,VENDOR
01-04-2022,Adults & Health,Br3Ak Free,Daycare - Private Contractors Payment,175.45,0,VENDOR
01-04-2022,Housing Revenue Account,JLA Total Care Ltd,Catering Equipment,350,0,VENDOR
01-04-2022,Housing Revenue Account,JLA Total Care Ltd,Catering Equipment,350,0,VENDOR
01-04-2022,Brighter Futures Director,Lavender Health & Social Care Limited,Agency Staff,10243.6,0,COMMERCIAL SUPPLIER
01-04-2022,Brighter Futures Director,Lavender Health & Social Care Limited,Agency Staff,7740,0,COMMERCIAL SUPPLIER
01-04-2022,Environment and Sustainable Transport,Clean Image Servicing Ltd,Cleaning Services,2800,0,COMMERCIAL SUPPLIER
01-04-2022,Environment and Sustainable Transport,Clean Image Servicing Ltd,Cleaning Services,325,0,COMMERCIAL SUPPLIER
01-04-2022,oneSource,Bdi Securities,Security Services (Excluding Premises),1154.25,0,COMMERCIAL SUPPLIER
01-04-2022,oneSource,Bdi Securities,Security Services (Excluding Premises),499.5,0,COMMERCIAL SUPPLIER
01-04-2022,Adults & Health,Designserve Architectural And Project Management Services Ltd,Private Contractors Payment - Other,856.75,0,COMMERCIAL SUPPLIER
01-04-2022,oneSource - Non Shared,Frontline Security Solutions,Security Services (Excluding Premises),960,0,VENDOR
01-04-2022,Adults & Health,Designserve Architectural And Project Management Services Ltd,Private Contractors Payment - Other,1186.67,0,COMMERCIAL SUPPLIER
01-04-2022,Children and Young People,Shining Stars Fostering Agency Ltd,Fostering Agency Placements - Private Contractors Payment,248.35,0,COMMERCIAL SUPPLIER
01-04-2022,Children and Young People,Shining Stars Fostering Agency Ltd,Fostering Agency Placements - Private Contractors Payment,735,0,COMMERCIAL SUPPLIER
01-04-2022,Children and Young People,Shining Stars Fostering Agency Ltd,Fostering Agency Placements - Private Contractors Payment,735,0,COMMERCIAL SUPPLIER
01-04-2022,Children and Young People,Shining Stars Fostering Agency Ltd,Fostering Agency Placements - Private Contractors Payment,735,0,COMMERCIAL SUPPLIER
01-04-2022,Children and Young People,Shining Stars Fostering Agency Ltd,Fostering Agency Placements - Private Contractors Payment,735,0,COMMERCIAL SUPPLIER
01-04-2022,Environment and Sustainable Transport,Enterprise Flex-E-Rent,"Purchase - Equipment, Furniture And Materials",1339.76,0,COMMERCIAL SUPPLIER
01-04-2022,Children and Young People,Fusion Fostering,Fostering Agency Placements - Private Contractors Payment,750,0,COMMERCIAL SUPPLIER
01-04-2022,Children and Young People,Fusion Fostering,Fostering Agency Placements - Private Contractors Payment,750,0,COMMERCIAL SUPPLIER
01-04-2022,Children and Young People,Fusion Fostering,Fostering Agency Placements - Private Contractors Payment,750,0,COMMERCIAL SUPPLIER
01-04-2022,Children and Young People,Fusion Fostering,Fostering Agency Placements - Private Contractors Payment,713.57,0,COMMERCIAL SUPPLIER
01-04-2022,Children and Young People,Fusion Fostering,Fostering Agency Placements - Private Contractors Payment,713.57,0,COMMERCIAL SUPPLIER
01-04-2022,Children and Young People,Fusion Fostering,Fostering Agency Placements - Private Contractors Payment,750,0,COMMERCIAL SUPPLIER
01-04-2022,Children and Young People,Fusion Fostering,Fostering Agency Placements - Private Contractors Payment,750,0,COMMERCIAL SUPPLIER
01-04-2022,Children and Young People,Fusion Fostering,Fostering Agency Placements - Private Contractors Payment,750,0,COMMERCIAL SUPPLIER
01-04-2022,Children and Young People,Fusion Fostering,Fostering Agency Placements - Private Contractors Payment,863.73,0,COMMERCIAL SUPPLIER
01-04-2022,Children and Young People,Fusion Fostering,Fostering Agency Placements - Private Contractors Payment,863.73,0,COMMERCIAL SUPPLIER
01-04-2022,Children and Young People,Fusion Fostering,Fostering Agency Placements - Private Contractors Payment,863.73,0,COMMERCIAL SUPPLIER
01-04-2022,Children and Young People,Fusion Fostering,Fostering Agency Placements - Private Contractors Payment,623.29,0,COMMERCIAL SUPPLIER
01-04-2022,Children and Young People,Fusion Fostering,Fostering Agency Placements - Private Contractors Payment,868.73,0,COMMERCIAL SUPPLIER
01-04-2022,Children and Young People,Fusion Fostering,Fostering Agency Placements - Private Contractors Payment,868.73,0,COMMERCIAL SUPPLIER
01-04-2022,Children and Young People,Fusion Fostering,Fostering Agency Placements - Private Contractors Payment,788.65,0,COMMERCIAL SUPPLIER
01-04-2022,Children and Young People,Fusion Fostering,Fostering Agency Placements - Private Contractors Payment,868.73,0,COMMERCIAL SUPPLIER
01-04-2022,Children and Young People,Shining Stars Fostering Agency Ltd,Fostering Agency Placements - Private Contractors Payment,255,0,COMMERCIAL SUPPLIER
01-04-2022,Children and Young People,Shining Stars Fostering Agency Ltd,Fostering Agency Placements - Private Contractors Payment,750,0,COMMERCIAL SUPPLIER
01-04-2022,Children and Young People,Shining Stars Fostering Agency Ltd,Fostering Agency Placements - Private Contractors Payment,750,0,COMMERCIAL SUPPLIER
01-04-2022,Children and Young People,Shining Stars Fostering Agency Ltd,Fostering Agency Placements - Private Contractors Payment,750,0,COMMERCIAL SUPPLIER
01-04-2022,Children and Young People,Shining Stars Fostering Agency Ltd,Fostering Agency Placements - Private Contractors Payment,750,0,COMMERCIAL SUPPLIER
01-04-2022,Adults & Health,Cornerstone Care Services,Home Care - Private Contractors Payment,72.45,0,COMMERCIAL SUPPLIER
01-04-2022,Adults & Health,Cornerstone Care Services,Home Care - Private Contractors Payment,72.45,0,COMMERCIAL SUPPLIER
01-04-2022,Adults & Health,Cornerstone Care Services,Home Care - Private Contractors Payment,82.8,0,COMMERCIAL SUPPLIER
01-04-2022,Adults & Health,Cornerstone Care Services,Home Care - Private Contractors Payment,24.15,0,COMMERCIAL SUPPLIER
01-04-2022,Adults & Health,Cornerstone Care Services,Home Care - Private Contractors Payment,169.05,0,COMMERCIAL SUPPLIER
01-04-2022,Children and Young People,Shining Stars Fostering Agency Ltd,Fostering Agency Placements - Private Contractors Payment,775,0,COMMERCIAL SUPPLIER
01-04-2022,Children and Young People,Shining Stars Fostering Agency Ltd,Fostering Agency Placements - Private Contractors Payment,775,0,COMMERCIAL SUPPLIER
01-04-2022,Children and Young People,Shining Stars Fostering Agency Ltd,Fostering Agency Placements - Private Contractors Payment,265.67,0,COMMERCIAL SUPPLIER
01-04-2022,Children and Young People,Shining Stars Fostering Agency Ltd,Fostering Agency Placements - Private Contractors Payment,775,0,COMMERCIAL SUPPLIER
01-04-2022,Children and Young People,Shining Stars Fostering Agency Ltd,Fostering Agency Placements - Private Contractors Payment,775,0,COMMERCIAL SUPPLIER
01-04-2022,Children and Young People,Newhaven 16 Plus Ltd,Supported Other Accommodation - Private Contractors Payment,200,0,VENDOR
01-04-2022,Children and Young People,Newhaven 16 Plus Ltd,Supported Other Accommodation - Private Contractors Payment,350,0,VENDOR
01-04-2022,Children and Young People,Newhaven 16 Plus Ltd,Supported Other Accommodation - Private Contractors Payment,350,0,VENDOR
01-04-2022,Children and Young People,Newhaven 16 Plus Ltd,Supported Other Accommodation - Private Contractors Payment,350,0,VENDOR
01-04-2022,Children and Young People,Newhaven 16 Plus Ltd,Supported Other Accommodation - Private Contractors Payment,350,0,VENDOR
01-04-2022,Children and Young People,Newhaven 16 Plus Ltd,Supported Other Accommodation - Private Contractors Payment,350,0,VENDOR
01-04-2022,Children and Young People,Resources for Autism,Professional Services - General,3441.5,0,COMMERCIAL SUPPLIER
01-04-2022,Children and Young People,Resources for Autism,Professional Services - General,384,0,COMMERCIAL SUPPLIER
01-04-2022,Brighter Futures Director,Resources for Autism,Respite Care - Private Contractors Payment,2721.6,0,COMMERCIAL SUPPLIER
01-04-2022,Housing Revenue Account,John Rowan & Partners,Facilities Management,9242.65,0,NON COMMERCIAL SUPPLIER
01-04-2022,Environment and Sustainable Transport,Smart Platform Rental Ltd,Vehicle Hire,463.78,0,COMMERCIAL SUPPLIER
01-04-2022,Environment and Sustainable Transport,Smart Platform Rental Ltd,Vehicle Hire,375,0,COMMERCIAL SUPPLIER
01-04-2022,Adults & Health,Dolphin Mobility Ltd,Private Contractors Payment - Other,4086.4,0,COMMERCIAL SUPPLIER
01-04-2022,oneSource,Rushton Workwear Ltd,"Clothes, Uniform And Laundry",730.55,0,COMMERCIAL SUPPLIER
01-04-2022,Adults & Health,Blossom House Specialized Care & Support Services Ltd,Daycare - Private Contractors Payment,289.8,0,VENDOR
01-04-2022,Adults & Health,Blossom House Specialized Care & Support Services Ltd,Daycare - Private Contractors Payment,289.8,0,VENDOR
01-04-2022,Adults & Health,Blossom House Specialized Care & Support Services Ltd,Daycare - Private Contractors Payment,210.6,0,VENDOR
01-04-2022,Adults & Health,Blossom House Specialized Care & Support Services Ltd,Daycare - Private Contractors Payment,289.8,0,VENDOR
01-04-2022,Adults & Health,Blossom House Specialized Care & Support Services Ltd,Daycare - Private Contractors Payment,270,0,VENDOR
01-04-2022,Adults & Health,Blossom House Specialized Care & Support Services Ltd,Daycare - Private Contractors Payment,270,0,VENDOR
01-04-2022,Adults & Health,Blossom House Specialized Care & Support Services Ltd,Daycare - Private Contractors Payment,270,0,VENDOR
01-04-2022,Adults & Health,Blossom House Specialized Care & Support Services Ltd,Daycare - Private Contractors Payment,270,0,VENDOR
01-04-2022,Adults & Health,Blossom House Specialized Care & Support Services Ltd,Daycare - Private Contractors Payment,170,0,VENDOR
01-04-2022,Adults & Health,Blossom House Specialized Care & Support Services Ltd,Daycare - Private Contractors Payment,170,0,VENDOR
01-04-2022,Adults & Health,Blossom House Specialized Care & Support Services Ltd,Daycare - Private Contractors Payment,170,0,VENDOR
01-04-2022,Adults & Health,Blossom House Specialized Care & Support Services Ltd,Daycare - Private Contractors Payment,140,0,VENDOR
01-04-2022,Adults & Health,Blossom House Specialized Care & Support Services Ltd,Daycare - Private Contractors Payment,170,0,VENDOR
01-04-2022,Adults & Health,Blossom House Specialized Care & Support Services Ltd,Daycare - Private Contractors Payment,140,0,VENDOR
01-04-2022,oneSource - Non Shared,Rs Construction & Property Services Ltd,"Maintenance - Equipment, Furniture And Materials",1268.48,0,CIS
01-04-2022,oneSource - Non Shared,Rs Construction & Property Services Ltd,"Maintenance - Equipment, Furniture And Materials",1268.48,0,CIS
01-04-2022,oneSource - Non Shared,Rs Construction & Property Services Ltd,"Maintenance - Equipment, Furniture And Materials",1268.48,0,CIS
01-04-2022,oneSource - Non Shared,Rs Construction & Property Services Ltd,"Maintenance - Equipment, Furniture And Materials",908.48,0,CIS
01-04-2022,oneSource - Non Shared,Rs Construction & Property Services Ltd,"Maintenance - Equipment, Furniture And Materials",908.48,0,CIS
01-04-2022,oneSource - Non Shared,Rs Construction & Property Services Ltd,"Maintenance - Equipment, Furniture And Materials",801.81,0,CIS
01-04-2022,oneSource - Non Shared,Rs Construction & Property Services Ltd,"Maintenance - Equipment, Furniture And Materials",801.81,0,CIS
01-04-2022,oneSource - Non Shared,Rs Construction & Property Services Ltd,"Maintenance - Equipment, Furniture And Materials",801.81,0,CIS
01-04-2022,Adults & Health,Cornerstone Care Services,Home Care - Private Contractors Payment,34.5,0,COMMERCIAL SUPPLIER
01-04-2022,Adults & Health,Cornerstone Care Services,Home Care - Private Contractors Payment,434.7,0,COMMERCIAL SUPPLIER
01-04-2022,Adults & Health,Cornerstone Care Services,Home Care - Private Contractors Payment,807.3,0,COMMERCIAL SUPPLIER
01-04-2022,Adults & Health,Cornerstone Care Services,Home Care - Private Contractors Payment,434.7,0,COMMERCIAL SUPPLIER
01-04-2022,Adults & Health,Cornerstone Care Services,Daycare - Private Contractors Payment,27.6,0,COMMERCIAL SUPPLIER
01-04-2022,Adults & Health,Cornerstone Care Services,Home Care - Private Contractors Payment,455.4,0,COMMERCIAL SUPPLIER
01-04-2022,Adults & Health,Cornerstone Care Services,Daycare - Private Contractors Payment,27.6,0,COMMERCIAL SUPPLIER
01-04-2022,Adults & Health,Cornerstone Care Services,Home Care - Private Contractors Payment,455.4,0,COMMERCIAL SUPPLIER
01-04-2022,Adults & Health,Cornerstone Care Services,Home Care - Private Contractors Payment,455.4,0,COMMERCIAL SUPPLIER
01-04-2022,Adults & Health,Cornerstone Care Services,Daycare - Private Contractors Payment,27.6,0,COMMERCIAL SUPPLIER
01-04-2022,Adults & Health,Cornerstone Care Services,Home Care - Private Contractors Payment,455.4,0,COMMERCIAL SUPPLIER
01-04-2022,Adults & Health,Cornerstone Care Services,Daycare - Private Contractors Payment,27.6,0,COMMERCIAL SUPPLIER
01-04-2022,Adults & Health,Cornerstone Care Services,Home Care - Private Contractors Payment,72.45,0,COMMERCIAL SUPPLIER
01-04-2022,Adults & Health,Cornerstone Care Services,Home Care - Private Contractors Payment,72.45,0,COMMERCIAL SUPPLIER
01-04-2022,Adults & Health,Cornerstone Care Services,Home Care - Private Contractors Payment,72.45,0,COMMERCIAL SUPPLIER
01-04-2022,Adults & Health,Cornerstone Care Services,Home Care - Private Contractors Payment,72.45,0,COMMERCIAL SUPPLIER
01-04-2022,oneSource - Non Shared,County Shutters & Doors Ltd,Security Services (Excluding Premises),246.5,0,COMMERCIAL SUPPLIER
01-04-2022,RMS,Travis Perkins Trading Company Ltd,"Purchase - Equipment, Furniture And Materials",390.58,0,COMMERCIAL SUPPLIER
01-04-2022,Adults & Health,L M Installations Ltd,"Maintenance - Equipment, Furniture And Materials",239.85,0,CIS
01-04-2022,Adults & Health,L M Installations Ltd,"Maintenance - Equipment, Furniture And Materials",239.85,0,CIS
01-04-2022,Adults & Health,Supreme Care Services Ltd,Home Care - Private Contractors Payment,131.04,0,COMMERCIAL SUPPLIER
01-04-2022,Adults & Health,Supreme Care Services Ltd,Home Care - Private Contractors Payment,127.68,0,COMMERCIAL SUPPLIER
01-04-2022,Adults & Health,Supreme Care Services Ltd,Home Care - Private Contractors Payment,131.04,0,COMMERCIAL SUPPLIER
01-04-2022,Adults & Health,Supreme Care Services Ltd,Home Care - Private Contractors Payment,131.04,0,COMMERCIAL SUPPLIER
01-04-2022,"People, Policy and Performance",Proquest Llc,"Books, Publications And Resources",17495.54,0,VENDOR
01-04-2022,Environment and Sustainable Transport,Worldline IT Services UK Ltd Re Fuel Genie,Transport Fuel,213.62,0,COMMERCIAL SUPPLIER
01-04-2022,Environment and Sustainable Transport,Worldline IT Services UK Ltd Re Fuel Genie,Transport Fuel,815.62,0,COMMERCIAL SUPPLIER
01-04-2022,Housing Revenue Account,J.A. Steel & Son Ltd,Private Contractors Payment - Other,380,0,COMMERCIAL SUPPLIER
01-04-2022,Housing Revenue Account,J.A. Steel & Son Ltd,Private Contractors Payment - Other,850,0,COMMERCIAL SUPPLIER
01-04-2022,Housing Revenue Account,J.A. Steel & Son Ltd,Private Contractors Payment - Other,1140,0,COMMERCIAL SUPPLIER
01-04-2022,Housing Revenue Account,J.A. Steel & Son Ltd,Private Contractors Payment - Other,620,0,COMMERCIAL SUPPLIER
01-04-2022,Housing Revenue Account,J.A. Steel & Son Ltd,Private Contractors Payment - Other,790,0,COMMERCIAL SUPPLIER
01-04-2022,Children and Young People,Personal Information - Redacted,Legal Fees,3875,0,INDIVIDUALS
01-04-2022,RMS,Certsure LLP,Private Contractors Payment - Other,0,0,COMMERCIAL SUPPLIER
01-04-2022,RMS,Certsure LLP,Private Contractors Payment - Other,495,0,COMMERCIAL SUPPLIER
01-04-2022,Adults & Health,Kent County Council,Adult Placement Scheme - Private Contractors Payment,798.85,0,LOCAL AUTHORITY SERVICES
01-04-2022,Adults & Health,Kent County Council,Adult Placement Scheme - Private Contractors Payment,798.85,0,LOCAL AUTHORITY SERVICES
01-04-2022,Adults & Health,Kent County Council,Adult Placement Scheme - Private Contractors Payment,798.85,0,LOCAL AUTHORITY SERVICES
01-04-2022,Adults & Health,Kent County Council,Adult Placement Scheme - Private Contractors Payment,798.85,0,LOCAL AUTHORITY SERVICES
01-04-2022,Environment and Sustainable Transport,Portakabin Ltd,Premises Hire - Facilities,2373.33,0,COMMERCIAL SUPPLIER
01-04-2022,oneSource - Non Shared,Building A Future (Newham Schools) Limited,"Maintenance - Equipment, Furniture And Materials",276481.1,0,VENDOR
01-04-2022,oneSource - Non Shared,Building A Future (Newham Schools) Limited,"Maintenance - Equipment, Furniture And Materials",72819.36,0,VENDOR
01-04-2022,oneSource - Non Shared,Building A Future (Newham Schools) Limited,"Maintenance - Equipment, Furniture And Materials",72313.93,0,VENDOR
01-04-2022,oneSource - Non Shared,Newham Learning Partnership (Project Co) Limited,"Maintenance - Equipment, Furniture And Materials",318521.23,0,VENDOR
01-04-2022,oneSource - Non Shared,Newham Learning Partnership (Project Co) Limited,"Maintenance - Equipment, Furniture And Materials",393678.07,0,VENDOR
01-04-2022,oneSource - Non Shared,Newham Learning Partnership (Project Co) Limited,"Maintenance - Equipment, Furniture And Materials",22571,0,VENDOR
01-04-2022,oneSource - Non Shared,Newham Learning Partnership (Project Co) Limited,"Maintenance - Equipment, Furniture And Materials",25213.74,0,VENDOR
01-04-2022,Housing Revenue Account,London Telecare Ltd,Private Contractors Payment - Other,550,0,COMMERCIAL SUPPLIER
01-04-2022,Adults & Health,Moonstone Care UK,Home Care - Private Contractors Payment,37.44,0,NON COMMERCIAL SUPPLIER
01-04-2022,Adults & Health,Moonstone Care UK,Daycare - Private Contractors Payment,37.44,0,NON COMMERCIAL SUPPLIER
01-04-2022,Adults & Health,Moonstone Care UK,Home Care - Private Contractors Payment,524.16,0,NON COMMERCIAL SUPPLIER
01-04-2022,Adults & Health,Moonstone Care UK,Daycare - Private Contractors Payment,37.44,0,NON COMMERCIAL SUPPLIER
01-04-2022,Adults & Health,Moonstone Care UK,Home Care - Private Contractors Payment,37.44,0,NON COMMERCIAL SUPPLIER
01-04-2022,Adults & Health,Moonstone Care UK,Daycare - Private Contractors Payment,37.44,0,NON COMMERCIAL SUPPLIER
01-04-2022,Adults & Health,Moonstone Care UK,Home Care - Private Contractors Payment,524.16,0,NON COMMERCIAL SUPPLIER
01-04-2022,Adults & Health,Moonstone Care UK,Daycare - Private Contractors Payment,37.44,0,NON COMMERCIAL SUPPLIER
01-04-2022,Adults & Health,Moonstone Care UK,Home Care - Private Contractors Payment,37.44,0,NON COMMERCIAL SUPPLIER
01-04-2022,Adults & Health,Moonstone Care UK,Home Care - Private Contractors Payment,37.44,0,NON COMMERCIAL SUPPLIER
01-04-2022,Adults & Health,Moonstone Care UK,Home Care - Private Contractors Payment,524.16,0,NON COMMERCIAL SUPPLIER
01-04-2022,Adults & Health,Moonstone Care UK,Home Care - Private Contractors Payment,524.16,0,NON COMMERCIAL SUPPLIER
01-04-2022,Adults & Health,Moonstone Care UK,Home Care - Private Contractors Payment,28.08,0,NON COMMERCIAL SUPPLIER
01-04-2022,Adults & Health,Moonstone Care UK,Home Care - Private Contractors Payment,262.08,0,NON COMMERCIAL SUPPLIER
01-04-2022,Adults & Health,Moonstone Care UK,Home Care - Private Contractors Payment,28.08,0,NON COMMERCIAL SUPPLIER
01-04-2022,Adults & Health,Moonstone Care UK,Home Care - Private Contractors Payment,262.08,0,NON COMMERCIAL SUPPLIER
01-04-2022,Adults & Health,Moonstone Care UK,Home Care - Private Contractors Payment,262.08,0,NON COMMERCIAL SUPPLIER
01-04-2022,Adults & Health,Moonstone Care UK,Home Care - Private Contractors Payment,28.08,0,NON COMMERCIAL SUPPLIER
01-04-2022,Adults & Health,Moonstone Care UK,Home Care - Private Contractors Payment,28.08,0,NON COMMERCIAL SUPPLIER
01-04-2022,Adults & Health,Moonstone Care UK,Home Care - Private Contractors Payment,262.08,0,NON COMMERCIAL SUPPLIER
01-04-2022,Adults & Health,Moonstone Care UK,Daycare - Private Contractors Payment,140.4,0,NON COMMERCIAL SUPPLIER
01-04-2022,Adults & Health,Moonstone Care UK,Daycare - Private Contractors Payment,140.4,0,NON COMMERCIAL SUPPLIER
01-04-2022,Adults & Health,Moonstone Care UK,Daycare - Private Contractors Payment,140.4,0,NON COMMERCIAL SUPPLIER
01-04-2022,Adults & Health,Moonstone Care UK,Daycare - Private Contractors Payment,140.4,0,NON COMMERCIAL SUPPLIER
01-04-2022,Adults & Health,Moonstone Care UK,Home Care - Private Contractors Payment,28.08,0,NON COMMERCIAL SUPPLIER
01-04-2022,Adults & Health,Moonstone Care UK,Home Care - Private Contractors Payment,28.08,0,NON COMMERCIAL SUPPLIER
01-04-2022,Adults & Health,Moonstone Care UK,Home Care - Private Contractors Payment,360.36,0,NON COMMERCIAL SUPPLIER
01-04-2022,Adults & Health,Moonstone Care UK,Home Care - Private Contractors Payment,360.36,0,NON COMMERCIAL SUPPLIER
01-04-2022,Adults & Health,Moonstone Care UK,Home Care - Private Contractors Payment,28.08,0,NON COMMERCIAL SUPPLIER
01-04-2022,Adults & Health,Moonstone Care UK,Home Care - Private Contractors Payment,28.08,0,NON COMMERCIAL SUPPLIER
01-04-2022,Adults & Health,Moonstone Care UK,Home Care - Private Contractors Payment,360.36,0,NON COMMERCIAL SUPPLIER
01-04-2022,Adults & Health,Moonstone Care UK,Home Care - Private Contractors Payment,360.36,0,NON COMMERCIAL SUPPLIER
01-04-2022,Adults & Health,Moonstone Care UK,Home Care - Private Contractors Payment,182.52,0,NON COMMERCIAL SUPPLIER
01-04-2022,Adults & Health,Moonstone Care UK,Home Care - Private Contractors Payment,182.52,0,NON COMMERCIAL SUPPLIER
01-04-2022,Adults & Health,Moonstone Care UK,Home Care - Private Contractors Payment,182.52,0,NON COMMERCIAL SUPPLIER
01-04-2022,Adults & Health,Moonstone Care UK,Home Care - Private Contractors Payment,182.52,0,NON COMMERCIAL SUPPLIER
01-04-2022,Adults & Health,Blade Security UK,Security Of Premises,10800,0,COMMERCIAL SUPPLIER
01-04-2022,Adults & Health,Moonstone Care UK,Home Care - Private Contractors Payment,37.44,0,NON COMMERCIAL SUPPLIER
01-04-2022,Adults & Health,Moonstone Care UK,Daycare - Private Contractors Payment,37.44,0,NON COMMERCIAL SUPPLIER
01-04-2022,Adults & Health,Moonstone Care UK,Home Care - Private Contractors Payment,131.04,0,NON COMMERCIAL SUPPLIER
01-04-2022,Adults & Health,Moonstone Care UK,Home Care - Private Contractors Payment,37.44,0,NON COMMERCIAL SUPPLIER
01-04-2022,Adults & Health,Moonstone Care UK,Daycare - Private Contractors Payment,37.44,0,NON COMMERCIAL SUPPLIER
01-04-2022,Adults & Health,Moonstone Care UK,Home Care - Private Contractors Payment,131.04,0,NON COMMERCIAL SUPPLIER
01-04-2022,Adults & Health,Moonstone Care UK,Home Care - Private Contractors Payment,37.44,0,NON COMMERCIAL SUPPLIER
01-04-2022,Adults & Health,Moonstone Care UK,Daycare - Private Contractors Payment,37.44,0,NON COMMERCIAL SUPPLIER
01-04-2022,Adults & Health,Moonstone Care UK,Home Care - Private Contractors Payment,131.04,0,NON COMMERCIAL SUPPLIER
01-04-2022,Adults & Health,Moonstone Care UK,Home Care - Private Contractors Payment,37.44,0,NON COMMERCIAL SUPPLIER
01-04-2022,Adults & Health,Moonstone Care UK,Daycare - Private Contractors Payment,37.44,0,NON COMMERCIAL SUPPLIER
01-04-2022,Adults & Health,Moonstone Care UK,Home Care - Private Contractors Payment,131.04,0,NON COMMERCIAL SUPPLIER
01-04-2022,Adults & Health,Moonstone Care UK,Home Care - Private Contractors Payment,294.84,0,NON COMMERCIAL SUPPLIER
01-04-2022,Adults & Health,Moonstone Care UK,Daycare - Private Contractors Payment,18.72,0,NON COMMERCIAL SUPPLIER
01-04-2022,Adults & Health,Moonstone Care UK,Home Care - Private Contractors Payment,37.44,0,NON COMMERCIAL SUPPLIER
01-04-2022,Adults & Health,Moonstone Care UK,Home Care - Private Contractors Payment,294.84,0,NON COMMERCIAL SUPPLIER
01-04-2022,Adults & Health,Moonstone Care UK,Home Care - Private Contractors Payment,37.44,0,NON COMMERCIAL SUPPLIER
01-04-2022,Adults & Health,Moonstone Care UK,Home Care - Private Contractors Payment,294.84,0,NON COMMERCIAL SUPPLIER
01-04-2022,Adults & Health,Moonstone Care UK,Home Care - Private Contractors Payment,37.44,0,NON COMMERCIAL SUPPLIER
01-04-2022,Adults & Health,Moonstone Care UK,Home Care - Private Contractors Payment,294.84,0,NON COMMERCIAL SUPPLIER
01-04-2022,Adults & Health,Moonstone Care UK,Home Care - Private Contractors Payment,37.44,0,NON COMMERCIAL SUPPLIER
01-04-2022,Adults & Health,Moonstone Care UK,Home Care - Private Contractors Payment,74.88,0,NON COMMERCIAL SUPPLIER
01-04-2022,Adults & Health,Moonstone Care UK,Home Care - Private Contractors Payment,819,0,NON COMMERCIAL SUPPLIER
01-04-2022,Adults & Health,Moonstone Care UK,Respite Care - Private Contractors Payment,37.44,0,NON COMMERCIAL SUPPLIER
01-04-2022,Adults & Health,Moonstone Care UK,Home Care - Private Contractors Payment,819,0,NON COMMERCIAL SUPPLIER
01-04-2022,Adults & Health,Moonstone Care UK,Home Care - Private Contractors Payment,74.88,0,NON COMMERCIAL SUPPLIER
01-04-2022,Adults & Health,Moonstone Care UK,Respite Care - Private Contractors Payment,37.44,0,NON COMMERCIAL SUPPLIER
01-04-2022,Adults & Health,Moonstone Care UK,Respite Care - Private Contractors Payment,37.44,0,NON COMMERCIAL SUPPLIER
01-04-2022,Adults & Health,Moonstone Care UK,Home Care - Private Contractors Payment,819,0,NON COMMERCIAL SUPPLIER
01-04-2022,Adults & Health,Moonstone Care UK,Home Care - Private Contractors Payment,74.88,0,NON COMMERCIAL SUPPLIER
01-04-2022,Adults & Health,Moonstone Care UK,Home Care - Private Contractors Payment,819,0,NON COMMERCIAL SUPPLIER
01-04-2022,Adults & Health,Moonstone Care UK,Respite Care - Private Contractors Payment,37.44,0,NON COMMERCIAL SUPPLIER
01-04-2022,Adults & Health,Moonstone Care UK,Home Care - Private Contractors Payment,74.88,0,NON COMMERCIAL SUPPLIER
01-04-2022,Adults & Health,Moonstone Care UK,Home Care - Private Contractors Payment,28.08,0,NON COMMERCIAL SUPPLIER
01-04-2022,Adults & Health,Moonstone Care UK,Home Care - Private Contractors Payment,238.68,0,NON COMMERCIAL SUPPLIER
01-04-2022,Adults & Health,Moonstone Care UK,Home Care - Private Contractors Payment,28.08,0,NON COMMERCIAL SUPPLIER
01-04-2022,Adults & Health,Moonstone Care UK,Home Care - Private Contractors Payment,28.08,0,NON COMMERCIAL SUPPLIER
01-04-2022,Adults & Health,Moonstone Care UK,Home Care - Private Contractors Payment,556.92,0,NON COMMERCIAL SUPPLIER
01-04-2022,Adults & Health,Moonstone Care UK,Home Care - Private Contractors Payment,28.08,0,NON COMMERCIAL SUPPLIER
01-04-2022,Adults & Health,Moonstone Care UK,Home Care - Private Contractors Payment,556.92,0,NON COMMERCIAL SUPPLIER
01-04-2022,Adults & Health,Moonstone Care UK,Home Care - Private Contractors Payment,556.92,0,NON COMMERCIAL SUPPLIER
01-04-2022,Adults & Health,Moonstone Care UK,Home Care - Private Contractors Payment,37.44,0,NON COMMERCIAL SUPPLIER
01-04-2022,Adults & Health,Moonstone Care UK,Home Care - Private Contractors Payment,163.8,0,NON COMMERCIAL SUPPLIER
01-04-2022,Adults & Health,Moonstone Care UK,Home Care - Private Contractors Payment,37.44,0,NON COMMERCIAL SUPPLIER
01-04-2022,Adults & Health,Moonstone Care UK,Home Care - Private Contractors Payment,37.44,0,NON COMMERCIAL SUPPLIER
01-04-2022,Adults & Health,Moonstone Care UK,Home Care - Private Contractors Payment,37.44,0,NON COMMERCIAL SUPPLIER
01-04-2022,Adults & Health,Moonstone Care UK,Home Care - Private Contractors Payment,163.8,0,NON COMMERCIAL SUPPLIER
01-04-2022,Adults & Health,Moonstone Care UK,Home Care - Private Contractors Payment,163.8,0,NON COMMERCIAL SUPPLIER
01-04-2022,Adults & Health,Moonstone Care UK,Home Care - Private Contractors Payment,163.8,0,NON COMMERCIAL SUPPLIER
01-04-2022,Environment and Sustainable Transport,Alliance Automotive UK CV Ltd t/a C V Components,Highway Services,264.16,0,COMMERCIAL SUPPLIER
01-04-2022,Environment and Sustainable Transport,Alliance Automotive UK CV Ltd t/a C V Components,Highway Services,367.26,0,COMMERCIAL SUPPLIER
01-04-2022,Environment and Sustainable Transport,Group Tyre Wholesale Ltd,Highway Services,410.7,0,COMMERCIAL SUPPLIER
01-04-2022,Children and Young People,Help Handz Ltd,Contact Costs (Placements),407.96,0,INDIVIDUALS
01-04-2022,Children and Young People,Help Handz Ltd,Contact Costs (Placements),407.96,0,INDIVIDUALS
01-04-2022,Children and Young People,Help Handz Ltd,Contact Costs (Placements),407.96,0,INDIVIDUALS
01-04-2022,Children and Young People,Help Handz Ltd,Contact Costs (Placements),407.96,0,INDIVIDUALS
01-04-2022,Children and Young People,Help Handz Ltd,Contact Costs (Placements),407.96,0,INDIVIDUALS
01-04-2022,Children and Young People,Help Handz Ltd,Contact Costs (Placements),407.96,0,INDIVIDUALS
01-04-2022,Children and Young People,Help Handz Ltd,Contact Costs (Placements),407.96,0,INDIVIDUALS
01-04-2022,Children and Young People,Help Handz Ltd,Contact Costs (Placements),407.96,0,INDIVIDUALS
01-04-2022,Brighter Futures Director,Bonny Downs Community Association.,Respite Care - Private Contractors Payment,2064,0,VENDOR
01-04-2022,Children and Young People,Early Start Education Ltd,Private Contractors Payment - Other,2574,0,INDIVIDUALS
01-04-2022,Children and Young People,Early Start Education Ltd,Private Contractors Payment - Other,50000,0,INDIVIDUALS
01-04-2022,Brighter Futures Director,Early Start Group Ltd,Private Contractors Payment - Other,112879,0,COMMERCIAL SUPPLIER
01-04-2022,Adults & Health,Topman Construction Ltd,Private Contractors Payment - Other,8111.65,0,CIS
01-04-2022,Children and Young People,Anytime Booking,Arts And Leisure Costs,2076.48,0,COMMERCIAL SUPPLIER
01-04-2022,RMS,Door-Stop International Ltd,"Purchase - Equipment, Furniture And Materials",604.35,0,VENDOR
01-04-2022,Children and Young People,Newham Partnership Working Ltd,Professional Services - General,1551,0,VENDOR
01-04-2022,Children and Young People,Personal Information - Redacted,Legal Fees,600,0,LEGAL SERVICES
01-04-2022,Adults & Health,Moonstone Care UK,Home Care - Private Contractors Payment,18.72,0,NON COMMERCIAL SUPPLIER
01-04-2022,Adults & Health,Moonstone Care UK,Home Care - Private Contractors Payment,205.92,0,NON COMMERCIAL SUPPLIER
01-04-2022,Adults & Health,Moonstone Care UK,Home Care - Private Contractors Payment,18.72,0,NON COMMERCIAL SUPPLIER
01-04-2022,Adults & Health,Moonstone Care UK,Home Care - Private Contractors Payment,205.92,0,NON COMMERCIAL SUPPLIER
01-04-2022,Adults & Health,Moonstone Care UK,Home Care - Private Contractors Payment,18.72,0,NON COMMERCIAL SUPPLIER
01-04-2022,Adults & Health,Moonstone Care UK,Home Care - Private Contractors Payment,205.92,0,NON COMMERCIAL SUPPLIER
01-04-2022,Adults & Health,Moonstone Care UK,Home Care - Private Contractors Payment,18.72,0,NON COMMERCIAL SUPPLIER
01-04-2022,Adults & Health,Moonstone Care UK,Home Care - Private Contractors Payment,205.92,0,NON COMMERCIAL SUPPLIER
01-04-2022,Adults & Health,Moonstone Care UK,Home Care - Private Contractors Payment,163.8,0,NON COMMERCIAL SUPPLIER
01-04-2022,Adults & Health,Moonstone Care UK,Daycare - Private Contractors Payment,37.44,0,NON COMMERCIAL SUPPLIER
01-04-2022,Adults & Health,Moonstone Care UK,Home Care - Private Contractors Payment,37.44,0,NON COMMERCIAL SUPPLIER
01-04-2022,Adults & Health,Moonstone Care UK,Home Care - Private Contractors Payment,163.8,0,NON COMMERCIAL SUPPLIER
01-04-2022,Adults & Health,Moonstone Care UK,Daycare - Private Contractors Payment,37.44,0,NON COMMERCIAL SUPPLIER
01-04-2022,Adults & Health,Moonstone Care UK,Home Care - Private Contractors Payment,37.44,0,NON COMMERCIAL SUPPLIER
01-04-2022,Adults & Health,Moonstone Care UK,Daycare - Private Contractors Payment,37.44,0,NON COMMERCIAL SUPPLIER
01-04-2022,Adults & Health,Moonstone Care UK,Home Care - Private Contractors Payment,37.44,0,NON COMMERCIAL SUPPLIER
01-04-2022,Adults & Health,Moonstone Care UK,Home Care - Private Contractors Payment,163.8,0,NON COMMERCIAL SUPPLIER
01-04-2022,Adults & Health,Moonstone Care UK,Daycare - Private Contractors Payment,37.44,0,NON COMMERCIAL SUPPLIER
01-04-2022,Adults & Health,Moonstone Care UK,Home Care - Private Contractors Payment,37.44,0,NON COMMERCIAL SUPPLIER
01-04-2022,Adults & Health,Moonstone Care UK,Home Care - Private Contractors Payment,163.8,0,NON COMMERCIAL SUPPLIER
01-04-2022,Adults & Health,Moonstone Care UK,Home Care - Private Contractors Payment,196.56,0,NON COMMERCIAL SUPPLIER
01-04-2022,Adults & Health,Moonstone Care UK,Home Care - Private Contractors Payment,37.44,0,NON COMMERCIAL SUPPLIER
01-04-2022,Adults & Health,Moonstone Care UK,Home Care - Private Contractors Payment,37.44,0,NON COMMERCIAL SUPPLIER
01-04-2022,Adults & Health,Moonstone Care UK,Home Care - Private Contractors Payment,196.56,0,NON COMMERCIAL SUPPLIER
01-04-2022,Adults & Health,Moonstone Care UK,Home Care - Private Contractors Payment,196.56,0,NON COMMERCIAL SUPPLIER
01-04-2022,Adults & Health,Moonstone Care UK,Home Care - Private Contractors Payment,37.44,0,NON COMMERCIAL SUPPLIER
01-04-2022,Adults & Health,Moonstone Care UK,Home Care - Private Contractors Payment,37.44,0,NON COMMERCIAL SUPPLIER
01-04-2022,Adults & Health,Moonstone Care UK,Home Care - Private Contractors Payment,196.56,0,NON COMMERCIAL SUPPLIER
01-04-2022,Adults & Health,Moonstone Care UK,Home Care - Private Contractors Payment,196.56,0,NON COMMERCIAL SUPPLIER
01-04-2022,Adults & Health,Moonstone Care UK,Home Care - Private Contractors Payment,196.56,0,NON COMMERCIAL SUPPLIER
01-04-2022,Adults & Health,Moonstone Care UK,Home Care - Private Contractors Payment,196.56,0,NON COMMERCIAL SUPPLIER
01-04-2022,Adults & Health,Moonstone Care UK,Home Care - Private Contractors Payment,196.56,0,NON COMMERCIAL SUPPLIER
01-04-2022,Adults & Health,Moonstone Care UK,Home Care - Private Contractors Payment,37.44,0,NON COMMERCIAL SUPPLIER
01-04-2022,Adults & Health,Moonstone Care UK,Home Care - Private Contractors Payment,98.28,0,NON COMMERCIAL SUPPLIER
01-04-2022,Adults & Health,Moonstone Care UK,Home Care - Private Contractors Payment,37.44,0,NON COMMERCIAL SUPPLIER
01-04-2022,Adults & Health,Moonstone Care UK,Home Care - Private Contractors Payment,98.28,0,NON COMMERCIAL SUPPLIER
01-04-2022,Adults & Health,Moonstone Care UK,Home Care - Private Contractors Payment,37.44,0,NON COMMERCIAL SUPPLIER
01-04-2022,Adults & Health,Moonstone Care UK,Home Care - Private Contractors Payment,98.28,0,NON COMMERCIAL SUPPLIER
01-04-2022,Adults & Health,Moonstone Care UK,Home Care - Private Contractors Payment,37.44,0,NON COMMERCIAL SUPPLIER
01-04-2022,Adults & Health,Moonstone Care UK,Home Care - Private Contractors Payment,98.28,0,NON COMMERCIAL SUPPLIER
01-04-2022,oneSource,XMA Ltd,Ict Hardware,37561.5,0,COMMERCIAL SUPPLIER
01-04-2022,Brighter Futures Director,Personal Information - Redacted,"Books, Publications And Resources",798.22,0,Employee
01-04-2022,Inclusive Economy & Housing,Personal Information - Redacted,Land Line Telephone Costs,44.99,0,Employee
01-04-2022,Children and Young People,Personal Information - Redacted,Legal Fees,85,0,Employee
01-04-2022,Dedicated Schools Budget,Personal Information - Redacted,Arts And Leisure Costs,40,0,Employee
01-04-2022,Inclusive Economy & Housing,London Community Credit Union,Long Term Support - Community: Supported Living,9165.43,0,VENDOR
01-04-2022,Adults & Health,Moonstone Care UK,Home Care - Private Contractors Payment,655.2,0,NON COMMERCIAL SUPPLIER
01-04-2022,Adults & Health,Moonstone Care UK,Home Care - Private Contractors Payment,655.2,0,NON COMMERCIAL SUPPLIER
01-04-2022,Adults & Health,Moonstone Care UK,Home Care - Private Contractors Payment,655.2,0,NON COMMERCIAL SUPPLIER
01-04-2022,oneSource,Lawyers in Local Government,Membership And Subscriptions,840,0,COMMERCIAL SUPPLIER
01-04-2022,Housing Revenue Account,Matthews & Co,Private Contractors Payment - Other,8550,0,COMMERCIAL SUPPLIER
01-04-2022,Adults & Health,Moonstone Care UK,Home Care - Private Contractors Payment,294.84,0,NON COMMERCIAL SUPPLIER
01-04-2022,Adults & Health,Moonstone Care UK,Daycare - Private Contractors Payment,56.16,0,NON COMMERCIAL SUPPLIER
01-04-2022,Adults & Health,Moonstone Care UK,Daycare - Private Contractors Payment,56.16,0,NON COMMERCIAL SUPPLIER
01-04-2022,Adults & Health,Moonstone Care UK,Home Care - Private Contractors Payment,294.84,0,NON COMMERCIAL SUPPLIER
01-04-2022,Adults & Health,Moonstone Care UK,Daycare - Private Contractors Payment,56.16,0,NON COMMERCIAL SUPPLIER
01-04-2022,Adults & Health,Moonstone Care UK,Home Care - Private Contractors Payment,294.84,0,NON COMMERCIAL SUPPLIER
01-04-2022,Adults & Health,Moonstone Care UK,Daycare - Private Contractors Payment,56.16,0,NON COMMERCIAL SUPPLIER
01-04-2022,Adults & Health,Moonstone Care UK,Home Care - Private Contractors Payment,294.84,0,NON COMMERCIAL SUPPLIER
01-04-2022,Adults & Health,Moonstone Care UK,Home Care - Private Contractors Payment,262.08,0,NON COMMERCIAL SUPPLIER
01-04-2022,Adults & Health,Moonstone Care UK,Home Care - Private Contractors Payment,262.08,0,NON COMMERCIAL SUPPLIER
01-04-2022,Adults & Health,Moonstone Care UK,Home Care - Private Contractors Payment,262.08,0,NON COMMERCIAL SUPPLIER
01-04-2022,Adults & Health,Moonstone Care UK,Home Care - Private Contractors Payment,262.08,0,NON COMMERCIAL SUPPLIER
01-04-2022,Adults & Health,Moonstone Care UK,Home Care - Private Contractors Payment,327.6,0,NON COMMERCIAL SUPPLIER
01-04-2022,Adults & Health,Moonstone Care UK,Home Care - Private Contractors Payment,327.6,0,NON COMMERCIAL SUPPLIER
01-04-2022,Adults & Health,Moonstone Care UK,Home Care - Private Contractors Payment,327.6,0,NON COMMERCIAL SUPPLIER
01-04-2022,Adults & Health,Moonstone Care UK,Home Care - Private Contractors Payment,327.6,0,NON COMMERCIAL SUPPLIER
01-04-2022,Adults & Health,Moonstone Care UK,Home Care - Private Contractors Payment,98.28,0,NON COMMERCIAL SUPPLIER
01-04-2022,Adults & Health,Moonstone Care UK,Home Care - Private Contractors Payment,98.28,0,NON COMMERCIAL SUPPLIER
01-04-2022,Adults & Health,Moonstone Care UK,Home Care - Private Contractors Payment,98.28,0,NON COMMERCIAL SUPPLIER
01-04-2022,Adults & Health,Moonstone Care UK,Home Care - Private Contractors Payment,98.28,0,NON COMMERCIAL SUPPLIER
01-04-2022,Adults & Health,Moonstone Care UK,Respite Care - Private Contractors Payment,46.8,0,NON COMMERCIAL SUPPLIER
01-04-2022,Adults & Health,Moonstone Care UK,Home Care - Private Contractors Payment,56.16,0,NON COMMERCIAL SUPPLIER
01-04-2022,Adults & Health,Moonstone Care UK,Respite Care - Private Contractors Payment,46.8,0,NON COMMERCIAL SUPPLIER
01-04-2022,Adults & Health,Moonstone Care UK,Respite Care - Private Contractors Payment,46.8,0,NON COMMERCIAL SUPPLIER
01-04-2022,Adults & Health,Moonstone Care UK,Home Care - Private Contractors Payment,56.16,0,NON COMMERCIAL SUPPLIER
01-04-2022,Adults & Health,Moonstone Care UK,Home Care - Private Contractors Payment,56.16,0,NON COMMERCIAL SUPPLIER
01-04-2022,Adults & Health,Moonstone Care UK,Respite Care - Private Contractors Payment,46.8,0,NON COMMERCIAL SUPPLIER
01-04-2022,Adults & Health,Moonstone Care UK,Home Care - Private Contractors Payment,56.16,0,NON COMMERCIAL SUPPLIER
01-04-2022,Adults & Health,Moonstone Care UK,Home Care - Private Contractors Payment,262.08,0,NON COMMERCIAL SUPPLIER
01-04-2022,Adults & Health,Moonstone Care UK,Home Care - Private Contractors Payment,18.72,0,NON COMMERCIAL SUPPLIER
01-04-2022,Adults & Health,Moonstone Care UK,Home Care - Private Contractors Payment,262.08,0,NON COMMERCIAL SUPPLIER
01-04-2022,Adults & Health,Moonstone Care UK,Home Care - Private Contractors Payment,18.72,0,NON COMMERCIAL SUPPLIER
01-04-2022,Adults & Health,Moonstone Care UK,Home Care - Private Contractors Payment,262.08,0,NON COMMERCIAL SUPPLIER
01-04-2022,Adults & Health,Moonstone Care UK,Home Care - Private Contractors Payment,18.72,0,NON COMMERCIAL SUPPLIER
01-04-2022,Adults & Health,Moonstone Care UK,Home Care - Private Contractors Payment,262.08,0,NON COMMERCIAL SUPPLIER
01-04-2022,Adults & Health,Moonstone Care UK,Home Care - Private Contractors Payment,18.72,0,NON COMMERCIAL SUPPLIER
01-04-2022,Adults & Health,Moonstone Care UK,Daycare - Private Contractors Payment,131.04,0,NON COMMERCIAL SUPPLIER
01-04-2022,Adults & Health,Moonstone Care UK,Daycare - Private Contractors Payment,56.16,0,NON COMMERCIAL SUPPLIER
01-04-2022,Adults & Health,Moonstone Care UK,Daycare - Private Contractors Payment,131.04,0,NON COMMERCIAL SUPPLIER
01-04-2022,Adults & Health,Moonstone Care UK,Daycare - Private Contractors Payment,131.04,0,NON COMMERCIAL SUPPLIER
01-04-2022,Adults & Health,Moonstone Care UK,Home Care - Private Contractors Payment,411.84,0,NON COMMERCIAL SUPPLIER
01-04-2022,Adults & Health,Moonstone Care UK,Home Care - Private Contractors Payment,655.2,0,NON COMMERCIAL SUPPLIER
01-04-2022,Environment and Sustainable Transport,Triple Point Lease Partners,Vehicle Leases,80874.22,0,COMMERCIAL SUPPLIER
01-04-2022,Children and Young People,A DAKRI AND CO LTD T/A GREENLEAF HOTEL,Section 17 - Private Contractors Payment,455,0,CARERS
01-04-2022,Children and Young People,A DAKRI AND CO LTD T/A GREENLEAF HOTEL,Section 17 - Private Contractors Payment,455,0,CARERS
01-04-2022,Children and Young People,A DAKRI AND CO LTD T/A GREENLEAF HOTEL,Section 17 - Private Contractors Payment,455,0,CARERS
01-04-2022,Children and Young People,A DAKRI AND CO LTD T/A GREENLEAF HOTEL,Section 17 - Private Contractors Payment,455,0,CARERS
01-04-2022,Children and Young People,A DAKRI AND CO LTD T/A GREENLEAF HOTEL,Section 17 - Private Contractors Payment,455,0,CARERS
01-04-2022,Children and Young People,A DAKRI AND CO LTD T/A GREENLEAF HOTEL,Section 17 - Private Contractors Payment,455,0,CARERS
01-04-2022,Children and Young People,A DAKRI AND CO LTD T/A GREENLEAF HOTEL,Section 17 - Private Contractors Payment,455,0,CARERS
01-04-2022,Children and Young People,A DAKRI AND CO LTD T/A GREENLEAF HOTEL,Section 17 - Private Contractors Payment,455,0,CARERS
01-04-2022,Children and Young People,A DAKRI AND CO LTD T/A GREENLEAF HOTEL,Section 17 - Private Contractors Payment,455,0,CARERS
01-04-2022,Children and Young People,A DAKRI AND CO LTD T/A GREENLEAF HOTEL,Section 17 - Private Contractors Payment,455,0,CARERS
01-04-2022,Children and Young People,A DAKRI AND CO LTD T/A GREENLEAF HOTEL,Section 17 - Private Contractors Payment,455,0,CARERS
01-04-2022,Children and Young People,A DAKRI AND CO LTD T/A GREENLEAF HOTEL,Section 17 - Private Contractors Payment,455,0,CARERS
01-04-2022,Children and Young People,A DAKRI AND CO LTD T/A GREENLEAF HOTEL,Section 17 - Private Contractors Payment,455,0,CARERS
01-04-2022,Children and Young People,A DAKRI AND CO LTD T/A GREENLEAF HOTEL,Section 17 - Private Contractors Payment,455,0,CARERS
01-04-2022,Children and Young People,A DAKRI AND CO LTD T/A GREENLEAF HOTEL,Section 17 - Private Contractors Payment,455,0,CARERS
01-04-2022,Children and Young People,A DAKRI AND CO LTD T/A GREENLEAF HOTEL,Section 17 - Private Contractors Payment,455,0,CARERS
01-04-2022,Children and Young People,A DAKRI AND CO LTD T/A GREENLEAF HOTEL,Section 17 - Private Contractors Payment,455,0,CARERS
01-04-2022,Children and Young People,A DAKRI AND CO LTD T/A GREENLEAF HOTEL,Section 17 - Private Contractors Payment,455,0,CARERS
01-04-2022,Children and Young People,A DAKRI AND CO LTD T/A GREENLEAF HOTEL,Section 17 - Private Contractors Payment,455,0,CARERS
01-04-2022,Children and Young People,A DAKRI AND CO LTD T/A GREENLEAF HOTEL,Section 17 - Private Contractors Payment,455,0,CARERS
01-04-2022,Children and Young People,A DAKRI AND CO LTD T/A GREENLEAF HOTEL,Section 17 - Private Contractors Payment,130,0,CARERS
01-04-2022,Children and Young People,A DAKRI AND CO LTD T/A GREENLEAF HOTEL,Section 17 - Private Contractors Payment,715,0,CARERS
01-04-2022,Children and Young People,A DAKRI AND CO LTD T/A GREENLEAF HOTEL,Section 17 - Private Contractors Payment,455,0,CARERS
01-04-2022,Children and Young People,A DAKRI AND CO LTD T/A GREENLEAF HOTEL,Section 17 - Private Contractors Payment,455,0,CARERS
01-04-2022,Children and Young People,A DAKRI AND CO LTD T/A GREENLEAF HOTEL,Section 17 - Private Contractors Payment,455,0,CARERS
01-04-2022,Children and Young People,A DAKRI AND CO LTD T/A GREENLEAF HOTEL,Section 17 - Private Contractors Payment,455,0,CARERS
01-04-2022,Children and Young People,A DAKRI AND CO LTD T/A GREENLEAF HOTEL,Section 17 - Private Contractors Payment,455,0,CARERS
01-04-2022,Children and Young People,A DAKRI AND CO LTD T/A GREENLEAF HOTEL,Section 17 - Private Contractors Payment,455,0,CARERS
01-04-2022,Children and Young People,A DAKRI AND CO LTD T/A GREENLEAF HOTEL,Section 17 - Private Contractors Payment,455,0,CARERS
01-04-2022,Corporate Budgets,Personal Information - Redacted,Other Investment Income,-120,0,INDIVIDUALS
01-04-2022,oneSource,Personal Information - Redacted,Salaries,170,0,INDIVIDUALS
01-04-2022,oneSource,Personal Information - Redacted,Fees & Charges Income - Other,-50,0,INDIVIDUALS
01-04-2022,RMS,Era Security Hardware,"Purchase - Equipment, Furniture And Materials",43.05,0,VENDOR
01-04-2022,RMS,Era Security Hardware,"Purchase - Equipment, Furniture And Materials",41.5,0,VENDOR
01-04-2022,RMS,Era Security Hardware,"Purchase - Equipment, Furniture And Materials",127.8,0,VENDOR
01-04-2022,RMS,Era Security Hardware,"Purchase - Equipment, Furniture And Materials",857.2,0,VENDOR
01-04-2022,RMS,Era Security Hardware,"Purchase - Equipment, Furniture And Materials",166.2,0,VENDOR
01-04-2022,RMS,Era Security Hardware,"Purchase - Equipment, Furniture And Materials",845,0,VENDOR
01-04-2022,Children and Young People,S Kumari & Associates Ltd,Legal Fees,3437.95,0,NON COMMERCIAL SUPPLIER
01-04-2022,Children and Young People,S Kumari & Associates Ltd,Legal Fees,514,0,NON COMMERCIAL SUPPLIER
01-04-2022,Children and Young People,S Kumari & Associates Ltd,Legal Fees,505.1,0,NON COMMERCIAL SUPPLIER
01-04-2022,Adults & Health,Moonstone Care UK,Daycare - Private Contractors Payment,37.44,0,NON COMMERCIAL SUPPLIER
01-04-2022,Adults & Health,Moonstone Care UK,Home Care - Private Contractors Payment,131.04,0,NON COMMERCIAL SUPPLIER
01-04-2022,Adults & Health,Moonstone Care UK,Daycare - Private Contractors Payment,37.44,0,NON COMMERCIAL SUPPLIER
01-04-2022,Adults & Health,Moonstone Care UK,Daycare - Private Contractors Payment,37.44,0,NON COMMERCIAL SUPPLIER
01-04-2022,Adults & Health,Moonstone Care UK,Home Care - Private Contractors Payment,131.04,0,NON COMMERCIAL SUPPLIER
01-04-2022,Adults & Health,Moonstone Care UK,Daycare - Private Contractors Payment,37.44,0,NON COMMERCIAL SUPPLIER
01-04-2022,Adults & Health,Moonstone Care UK,Home Care - Private Contractors Payment,131.04,0,NON COMMERCIAL SUPPLIER
01-04-2022,Adults & Health,Moonstone Care UK,Home Care - Private Contractors Payment,131.04,0,NON COMMERCIAL SUPPLIER
01-04-2022,Adults & Health,Setup 4 Life,Home Care - Private Contractors Payment,74.4,0,COMMERCIAL SUPPLIER
01-04-2022,Adults & Health,Setup 4 Life,Home Care - Private Contractors Payment,74.4,0,COMMERCIAL SUPPLIER
01-04-2022,Adults & Health,Setup 4 Life,Home Care - Private Contractors Payment,74.4,0,COMMERCIAL SUPPLIER
01-04-2022,Adults & Health,Setup 4 Life,Home Care - Private Contractors Payment,74.4,0,COMMERCIAL SUPPLIER
01-04-2022,Adults & Health,Setup 4 Life,Home Care - Private Contractors Payment,74.4,0,COMMERCIAL SUPPLIER
01-04-2022,Adults & Health,Setup 4 Life,Home Care - Private Contractors Payment,-37.2,0,COMMERCIAL SUPPLIER
01-04-2022,Adults & Health,Setup 4 Life,Home Care - Private Contractors Payment,37.2,0,COMMERCIAL SUPPLIER
01-04-2022,Adults & Health,Setup 4 Life,Home Care - Private Contractors Payment,55.8,0,COMMERCIAL SUPPLIER
01-04-2022,Adults & Health,Setup 4 Life,Home Care - Private Contractors Payment,55.8,0,COMMERCIAL SUPPLIER
01-04-2022,Adults & Health,Setup 4 Life,Home Care - Private Contractors Payment,55.8,0,COMMERCIAL SUPPLIER
01-04-2022,Adults & Health,Setup 4 Life,Home Care - Private Contractors Payment,55.8,0,COMMERCIAL SUPPLIER
01-04-2022,Children and Young People,The Fostering Network,Membership And Subscriptions,460,0,COMMERCIAL SUPPLIER
01-04-2022,Children and Young People,The Fostering Network,Membership And Subscriptions,2046.3,0,COMMERCIAL SUPPLIER
01-04-2022,Children and Young People,The Fostering Network,Membership And Subscriptions,372,0,COMMERCIAL SUPPLIER
01-04-2022,RMS,Roadmarking Excel Ltd,"Maintenance - Equipment, Furniture And Materials",690.03,0,CIS
01-04-2022,Adults & Health,Setup 4 Life,Other Social Services Transfer Payments,300,0,COMMERCIAL SUPPLIER
01-04-2022,Adults & Health,Moonstone Care UK,Home Care - Private Contractors Payment,388.44,0,NON COMMERCIAL SUPPLIER
01-04-2022,Adults & Health,Moonstone Care UK,Daycare - Private Contractors Payment,37.44,0,NON COMMERCIAL SUPPLIER
01-04-2022,Adults & Health,Moonstone Care UK,Home Care - Private Contractors Payment,388.44,0,NON COMMERCIAL SUPPLIER
01-04-2022,Adults & Health,Moonstone Care UK,Daycare - Private Contractors Payment,37.44,0,NON COMMERCIAL SUPPLIER
01-04-2022,Adults & Health,Moonstone Care UK,Home Care - Private Contractors Payment,388.44,0,NON COMMERCIAL SUPPLIER
01-04-2022,Adults & Health,Moonstone Care UK,Daycare - Private Contractors Payment,37.44,0,NON COMMERCIAL SUPPLIER
01-04-2022,Adults & Health,Moonstone Care UK,Home Care - Private Contractors Payment,388.44,0,NON COMMERCIAL SUPPLIER
01-04-2022,Adults & Health,Moonstone Care UK,Daycare - Private Contractors Payment,37.44,0,NON COMMERCIAL SUPPLIER
01-04-2022,RMS,Vbh (GB) Ltd,"Purchase - Equipment, Furniture And Materials",549.75,0,VENDOR
01-04-2022,RMS,Vbh (GB) Ltd,"Purchase - Equipment, Furniture And Materials",654,0,VENDOR
01-04-2022,RMS,Vbh (GB) Ltd,"Purchase - Equipment, Furniture And Materials",2293.5,0,VENDOR
01-04-2022,oneSource - Non Shared,Education Support (Newham) Ltd,"Maintenance - Equipment, Furniture And Materials",328557.6,0,VENDOR
01-04-2022,Adults & Health,Moonstone Care UK,Home Care - Private Contractors Payment,589.68,0,NON COMMERCIAL SUPPLIER
01-04-2022,Adults & Health,Moonstone Care UK,Home Care - Private Contractors Payment,589.68,0,NON COMMERCIAL SUPPLIER
01-04-2022,Adults & Health,Moonstone Care UK,Home Care - Private Contractors Payment,589.68,0,NON COMMERCIAL SUPPLIER
01-04-2022,Adults & Health,Moonstone Care UK,Home Care - Private Contractors Payment,589.68,0,NON COMMERCIAL SUPPLIER
01-04-2022,Adults & Health,Setup 4 Life,Home Care - Private Contractors Payment,55.8,0,COMMERCIAL SUPPLIER
01-04-2022,Adults & Health,Setup 4 Life,Home Care - Private Contractors Payment,55.8,0,COMMERCIAL SUPPLIER
01-04-2022,Adults & Health,Setup 4 Life,Home Care - Private Contractors Payment,55.8,0,COMMERCIAL SUPPLIER
01-04-2022,Adults & Health,Setup 4 Life,Home Care - Private Contractors Payment,55.8,0,COMMERCIAL SUPPLIER
01-04-2022,Adults & Health,Setup 4 Life,Home Care - Private Contractors Payment,37.2,0,COMMERCIAL SUPPLIER
01-04-2022,Housing Revenue Account,Swan Housing Group,Professional Services - General,822896.68,0,VENDOR
01-04-2022,oneSource,Urgent Delivery Couriers Ltd,Postage And Courier Services,332.1,0,COMMERCIAL SUPPLIER
01-04-2022,oneSource,Data Interchange Plc,Ict Hardware,217.62,0,COMMERCIAL SUPPLIER
01-04-2022,oneSource - Non Shared,Serjeant Security Ltd,Security Of Premises,3209.1,0,VENDOR
01-04-2022,oneSource - Non Shared,Serjeant Security Ltd,Security Of Premises,3151.8,0,VENDOR
01-04-2022,Housing Revenue Account,Serjeant Security Ltd,Security Of Premises,3209.1,0,VENDOR
01-04-2022,oneSource - Non Shared,Serjeant Security Ltd,Security Of Premises,3209.1,0,VENDOR
01-04-2022,Housing Revenue Account,Serjeant Security Ltd,Security Of Premises,3267.45,0,VENDOR
01-04-2022,oneSource - Non Shared,Serjeant Security Ltd,Security Of Premises,3267.45,0,VENDOR
01-04-2022,oneSource - Non Shared,Serjeant Security Ltd,Security Of Premises,3267.45,0,VENDOR
01-04-2022,Housing Revenue Account,Serjeant Security Ltd,Security Of Premises,3267.45,0,VENDOR
01-04-2022,oneSource - Non Shared,Serjeant Security Ltd,Security Of Premises,3209.1,0,VENDOR
02-04-2022,Environment and Sustainable Transport,Boleyn Recovery and Fleet Services,"Purchase - Equipment, Furniture And Materials",211.25,0,VENDOR
02-04-2022,RMS,British Standards Institution,"Purchase - Equipment, Furniture And Materials",1969,0,COMMERCIAL SUPPLIER
02-04-2022,RMS,British Standards Institution,"Purchase - Equipment, Furniture And Materials",1663,0,COMMERCIAL SUPPLIER
02-04-2022,RMS,British Standards Institution,"Purchase - Equipment, Furniture And Materials",1328,0,COMMERCIAL SUPPLIER
02-04-2022,oneSource - Non Shared,Maybrick Property Maintenance,Facilities Management,222.5,0,NON COMMERCIAL SUPPLIER
02-04-2022,Environment and Sustainable Transport,Sparshatt Truck & Van Ltd,Highway Services,2.59,0,COMMERCIAL SUPPLIER
02-04-2022,Environment and Sustainable Transport,Sparshatt Truck & Van Ltd,Highway Services,34.69,0,COMMERCIAL SUPPLIER
02-04-2022,Environment and Sustainable Transport,Sparshatt Truck & Van Ltd,Highway Services,63,0,COMMERCIAL SUPPLIER
02-04-2022,Environment and Sustainable Transport,Sparshatt Truck & Van Ltd,Highway Services,238.52,0,COMMERCIAL SUPPLIER
02-04-2022,Environment and Sustainable Transport,Sparshatt Truck & Van Ltd,Highway Services,56,0,COMMERCIAL SUPPLIER
02-04-2022,Children and Young People,Mr Lindsay G Knight t/a Human Stories,Events,3500,0,COMMERCIAL SUPPLIER
02-04-2022,Brighter Futures Director,Personal Information - Redacted,"Purchase - Equipment, Furniture And Materials",16.17,0,Employee
02-04-2022,Brighter Futures Director,Personal Information - Redacted,Catering And Vending Supplies,5.48,0,Employee
02-04-2022,Brighter Futures Director,Personal Information - Redacted,"Purchase - Equipment, Furniture And Materials",12.7,0,Employee
02-04-2022,Brighter Futures Director,Personal Information - Redacted,"Purchase - Equipment, Furniture And Materials",99.98,0,Employee
02-04-2022,"People, Policy and Performance",Personal Information - Redacted,Arts And Leisure Costs,14.12,0,Employee
02-04-2022,"People, Policy and Performance",Personal Information - Redacted,Arts And Leisure Costs,24.98,0,Employee
02-04-2022,"People, Policy and Performance",Personal Information - Redacted,Arts And Leisure Costs,354,0,Employee
02-04-2022,"People, Policy and Performance",Personal Information - Redacted,Arts And Leisure Costs,49.97,0,Employee
02-04-2022,"People, Policy and Performance",Personal Information - Redacted,Arts And Leisure Costs,335.95,0,Employee
02-04-2022,"People, Policy and Performance",Personal Information - Redacted,Arts And Leisure Costs,354,0,Employee
03-04-2022,Dedicated Schools Budget,Personal Information - Redacted,Occupational Health,1586.6,0,COMMERCIAL SUPPLIER
03-04-2022,"People, Policy and Performance",Personal Information - Redacted,Events,1920,0,COMMERCIAL SUPPLIER
03-04-2022,RMS,cer Financial Ltd,Agency Staff,975,0,COMMERCIAL SUPPLIER
03-04-2022,RMS,cer Financial Ltd,Agency Staff,360,0,COMMERCIAL SUPPLIER
03-04-2022,RMS,cer Financial Ltd,Agency Staff,360,0,COMMERCIAL SUPPLIER
03-04-2022,RMS,cer Financial Ltd,Agency Staff,480,0,COMMERCIAL SUPPLIER
03-04-2022,RMS,cer Financial Ltd,Agency Staff,360,0,COMMERCIAL SUPPLIER
03-04-2022,RMS,cer Financial Ltd,Agency Staff,480,0,COMMERCIAL SUPPLIER
03-04-2022,RMS,cer Financial Ltd,Agency Staff,360,0,COMMERCIAL SUPPLIER
03-04-2022,RMS,cer Financial Ltd,Agency Staff,360,0,COMMERCIAL SUPPLIER
03-04-2022,RMS,cer Financial Ltd,Agency Staff,480,0,COMMERCIAL SUPPLIER
03-04-2022,RMS,cer Financial Ltd,Agency Staff,360,0,COMMERCIAL SUPPLIER
03-04-2022,RMS,cer Financial Ltd,Agency Staff,360,0,COMMERCIAL SUPPLIER
03-04-2022,RMS,cer Financial Ltd,Agency Staff,480,0,COMMERCIAL SUPPLIER
03-04-2022,RMS,cer Financial Ltd,Agency Staff,360,0,COMMERCIAL SUPPLIER
03-04-2022,RMS,cer Financial Ltd,Agency Staff,360,0,COMMERCIAL SUPPLIER
03-04-2022,RMS,cer Financial Ltd,Agency Staff,360,0,COMMERCIAL SUPPLIER
03-04-2022,RMS,cer Financial Ltd,Agency Staff,720,0,COMMERCIAL SUPPLIER
03-04-2022,RMS,cer Financial Ltd,Agency Staff,360,0,COMMERCIAL SUPPLIER
03-04-2022,RMS,cer Financial Ltd,Agency Staff,360,0,COMMERCIAL SUPPLIER
03-04-2022,RMS,cer Financial Ltd,Agency Staff,360,0,COMMERCIAL SUPPLIER
03-04-2022,RMS,cer Financial Ltd,Agency Staff,360,0,COMMERCIAL SUPPLIER
03-04-2022,RMS,cer Financial Ltd,Agency Staff,400,0,COMMERCIAL SUPPLIER
03-04-2022,RMS,cer Financial Ltd,Agency Staff,360,0,COMMERCIAL SUPPLIER
03-04-2022,RMS,cer Financial Ltd,Agency Staff,360,0,COMMERCIAL SUPPLIER
03-04-2022,RMS,cer Financial Ltd,Agency Staff,300,0,COMMERCIAL SUPPLIER
03-04-2022,RMS,cer Financial Ltd,Agency Staff,360,0,COMMERCIAL SUPPLIER
03-04-2022,Children and Young People,Hinds Care And Support Services,Private Contractors Payment - Other,1420.8,0,FOSTER CARERS
03-04-2022,Children and Young People,Personal Information - Redacted,Ict Software,6.66,0,Employee
03-04-2022,Children and Young People,Personal Information - Redacted,Ict Software,71.46,0,Employee
03-04-2022,Children and Young People,Personal Information - Redacted,Legal Fees,2100,0,
04-04-2022,Housing Revenue Account,RIBA Enterprises Ltd,Consultancy Fees,500,0,COMMERCIAL SUPPLIER
04-04-2022,Brighter Futures Director,Sphere Support CIC,Respite Care - Private Contractors Payment,25238.08,0,COMMERCIAL SUPPLIER
04-04-2022,"People, Policy and Performance",Askews and Holts Library Services Ltd,"Books, Publications And Resources",1063.51,0,COMMERCIAL SUPPLIER
04-04-2022,"People, Policy and Performance",Askews and Holts Library Services Ltd,"Books, Publications And Resources",522.82,0,COMMERCIAL SUPPLIER
04-04-2022,"People, Policy and Performance",Askews and Holts Library Services Ltd,"Books, Publications And Resources",2341.17,0,COMMERCIAL SUPPLIER
04-04-2022,"People, Policy and Performance",Askews and Holts Library Services Ltd,"Books, Publications And Resources",592.5,0,COMMERCIAL SUPPLIER
04-04-2022,Inclusive Economy & Housing,Hays Specialist Recruitment Ltd,Staff Recruitment Costs,3315.75,0,VENDOR
04-04-2022,Inclusive Economy & Housing,Hays Specialist Recruitment Ltd,Staff Recruitment Costs,2148.65,0,VENDOR
04-04-2022,Inclusive Economy & Housing,Hays Specialist Recruitment Ltd,Staff Recruitment Costs,2094.24,0,VENDOR
04-04-2022,Environment and Sustainable Transport,Cavendish Media Ltd,"Advertising, Publicity And Marketing",624,0,VENDOR
04-04-2022,Environment and Sustainable Transport,Cavendish Media Ltd,"Advertising, Publicity And Marketing",1440,0,VENDOR
04-04-2022,Environment and Sustainable Transport,Passenger Lift Services Ltd,Highway Services,479.31,0,NON COMMERCIAL SUPPLIER
04-04-2022,RMS,A M Forktrucks Ltd,Vehicle Hire,810.33,0,COMMERCIAL SUPPLIER
04-04-2022,RMS,A M Forktrucks Ltd,Vehicle Hire,433.33,0,COMMERCIAL SUPPLIER
04-04-2022,oneSource,JGP Resourcing Ltd,Agency Staff,20792,0,COMMERCIAL SUPPLIER
04-04-2022,Adults & Health,Salisbury Support 4 Autism Ltd,Daycare - Private Contractors Payment,365.6,0,VENDOR
04-04-2022,Adults & Health,Salisbury Support 4 Autism Ltd,Daycare - Private Contractors Payment,365.6,0,VENDOR
04-04-2022,Adults & Health,Salisbury Support 4 Autism Ltd,Daycare - Private Contractors Payment,292.48,0,VENDOR
04-04-2022,Adults & Health,Salisbury Support 4 Autism Ltd,Daycare - Private Contractors Payment,73.12,0,VENDOR
04-04-2022,Adults & Health,Salisbury Support 4 Autism Ltd,Daycare - Private Contractors Payment,365.6,0,VENDOR
04-04-2022,"People, Policy and Performance",David Madden Photography,Design And Photographic Costs,280,0,COMMERCIAL SUPPLIER
04-04-2022,Housing Revenue Account,JLA Total Care Ltd,Catering Equipment,447.5,0,VENDOR
04-04-2022,Housing Revenue Account,JLA Total Care Ltd,Catering Equipment,447.5,0,VENDOR
04-04-2022,Adults & Health,Park Hotel,Supported Other Accommodation - Private Contractors Payment,291.69,0,COMMERCIAL SUPPLIER
04-04-2022,Adults & Health,Park Hotel,Supported Other Accommodation - Private Contractors Payment,291.69,0,COMMERCIAL SUPPLIER
04-04-2022,Adults & Health,Park Hotel,Supported Other Accommodation - Private Contractors Payment,291.69,0,COMMERCIAL SUPPLIER
04-04-2022,Adults & Health,Park Hotel,Supported Other Accommodation - Private Contractors Payment,291.69,0,COMMERCIAL SUPPLIER
04-04-2022,oneSource - Non Shared,Frontline Security Solutions,Security Services (Excluding Premises),3887.44,0,VENDOR
04-04-2022,Housing Revenue Account,Manpower Direct Ltd,Security Of Premises,99998.14,0,COMMERCIAL SUPPLIER
04-04-2022,Brighter Futures Director,Reflex International,Printing,1022.3,0,NON COMMERCIAL SUPPLIER
04-04-2022,oneSource,CCS Media Limited.,Ict Hardware,1299.5,0,COMMERCIAL SUPPLIER
04-04-2022,Environment and Sustainable Transport,Rushton Workwear Ltd,Highway Services,150,0,COMMERCIAL SUPPLIER
04-04-2022,Environment and Sustainable Transport,Rushton Workwear Ltd,Highway Services,150,0,COMMERCIAL SUPPLIER
04-04-2022,Environment and Sustainable Transport,Rushton Workwear Ltd,Highway Services,90,0,COMMERCIAL SUPPLIER
04-04-2022,Environment and Sustainable Transport,Rushton Workwear Ltd,Highway Services,150,0,COMMERCIAL SUPPLIER
04-04-2022,Environment and Sustainable Transport,Rushton Workwear Ltd,Highway Services,150,0,COMMERCIAL SUPPLIER
04-04-2022,Adults & Health,Expert Medical Opinion Ltd,Other Social Services Transfer Payments,360,0,COMMERCIAL SUPPLIER
04-04-2022,Children and Young People,Hinds Care And Support Services,Private Contractors Payment - Other,1352.8,0,FOSTER CARERS
04-04-2022,Children and Young People,Hinds Care And Support Services,Private Contractors Payment - Other,1095.8,0,FOSTER CARERS
04-04-2022,Children and Young People,Hinds Care And Support Services,Private Contractors Payment - Other,1095.8,0,FOSTER CARERS
04-04-2022,Adults & Health,Sayers (Car Hire),Payments To Voluntary Sector,120,0,VENDOR
04-04-2022,Adults & Health,Sayers (Car Hire),Payments To Voluntary Sector,120,0,VENDOR
04-04-2022,Adults & Health,Sayers (Car Hire),Payments To Voluntary Sector,80,0,VENDOR
04-04-2022,Adults & Health,Sayers (Car Hire),Payments To Voluntary Sector,80,0,VENDOR
04-04-2022,Adults & Health,Sayers (Car Hire),Payments To Voluntary Sector,120,0,VENDOR
04-04-2022,Children and Young People,Hinds Care And Support Services,Private Contractors Payment - Other,920.8,0,FOSTER CARERS
04-04-2022,Children and Young People,Hinds Care And Support Services,Private Contractors Payment - Other,1270.8,0,FOSTER CARERS
04-04-2022,oneSource,Proquest Consulting Limited,Consultancy Fees,4000,0,COMMERCIAL SUPPLIER
04-04-2022,Inclusive Economy & Housing,Ascentis,Exam Fees,315,0,COMMERCIAL SUPPLIER
04-04-2022,Children and Young People,Hinds Care And Support Services,Private Contractors Payment - Other,1095.8,0,FOSTER CARERS
04-04-2022,Children and Young People,Hinds Care And Support Services,Private Contractors Payment - Other,1095.8,0,FOSTER CARERS
04-04-2022,Children and Young People,Hinds Care And Support Services,Private Contractors Payment - Other,1420.8,0,FOSTER CARERS
04-04-2022,Children and Young People,Hinds Care And Support Services,Private Contractors Payment - Other,3941.6,0,FOSTER CARERS
04-04-2022,Children and Young People,Hinds Care And Support Services,Private Contractors Payment - Other,1420.8,0,FOSTER CARERS
04-04-2022,oneSource,Royal Mail Group Plc,Postage And Courier Services,33329.05,0,COMMERCIAL SUPPLIER
04-04-2022,oneSource,Royal Mail Group Plc,Postage And Courier Services,631.62,0,COMMERCIAL SUPPLIER
04-04-2022,RMS,Benchmarx Kitchens and Joinery,Private Contractors Payment - Other,0,0,COMMERCIAL SUPPLIER
04-04-2022,RMS,Benchmarx Kitchens and Joinery,Private Contractors Payment - Other,875.06,0,COMMERCIAL SUPPLIER
04-04-2022,RMS,Benchmarx Kitchens and Joinery,Private Contractors Payment - Other,1132.88,0,COMMERCIAL SUPPLIER
04-04-2022,RMS,Benchmarx Kitchens and Joinery,Private Contractors Payment - Other,0,0,COMMERCIAL SUPPLIER
04-04-2022,Adults & Health,The Regard Partnership Ltd,Daycare - Private Contractors Payment,198.04,0,NON COMMERCIAL SUPPLIER
04-04-2022,Adults & Health,The Regard Partnership Ltd,Daycare - Private Contractors Payment,198.04,0,NON COMMERCIAL SUPPLIER
04-04-2022,Adults & Health,The Regard Partnership Ltd,Daycare - Private Contractors Payment,198.04,0,NON COMMERCIAL SUPPLIER
04-04-2022,Adults & Health,The Regard Partnership Ltd,Daycare - Private Contractors Payment,197.88,0,NON COMMERCIAL SUPPLIER
04-04-2022,Adults & Health,The Regard Partnership Ltd,Daycare - Private Contractors Payment,448,0,NON COMMERCIAL SUPPLIER
04-04-2022,Adults & Health,The Regard Partnership Ltd,Daycare - Private Contractors Payment,448,0,NON COMMERCIAL SUPPLIER
04-04-2022,Adults & Health,The Regard Partnership Ltd,Daycare - Private Contractors Payment,448,0,NON COMMERCIAL SUPPLIER
04-04-2022,Adults & Health,The Regard Partnership Ltd,Daycare - Private Contractors Payment,112,0,NON COMMERCIAL SUPPLIER
04-04-2022,Adults & Health,The Regard Partnership Ltd,Daycare - Private Contractors Payment,194.88,0,NON COMMERCIAL SUPPLIER
04-04-2022,Adults & Health,The Regard Partnership Ltd,Daycare - Private Contractors Payment,194.88,0,NON COMMERCIAL SUPPLIER
04-04-2022,Adults & Health,The Regard Partnership Ltd,Daycare - Private Contractors Payment,194.88,0,NON COMMERCIAL SUPPLIER
04-04-2022,Adults & Health,The Regard Partnership Ltd,Daycare - Private Contractors Payment,194.88,0,NON COMMERCIAL SUPPLIER
04-04-2022,Children and Young People,Hinds Care And Support Services,Private Contractors Payment - Other,1420.8,0,FOSTER CARERS
04-04-2022,oneSource - Non Shared,British Gas,Electricity,1525.33,0,COMMERCIAL SUPPLIER
04-04-2022,Environment and Sustainable Transport,Floglass Limited,"Purchase - Equipment, Furniture And Materials",380,0,COMMERCIAL SUPPLIER
04-04-2022,Adults & Health,NAS Services Limited,Daycare - Private Contractors Payment,488.1,0,COMMERCIAL SUPPLIER
04-04-2022,Adults & Health,NAS Services Limited,Daycare - Private Contractors Payment,487.98,0,COMMERCIAL SUPPLIER
04-04-2022,Adults & Health,NAS Services Limited,Daycare - Private Contractors Payment,488.1,0,COMMERCIAL SUPPLIER
04-04-2022,Adults & Health,NAS Services Limited,Daycare - Private Contractors Payment,488.1,0,COMMERCIAL SUPPLIER
04-04-2022,Dedicated Schools Budget,Personal Information - Redacted,Schools - Transfer Payment,39429.17,0,NON COMMERCIAL SUPPLIER
04-04-2022,Dedicated Schools Budget,Personal Information - Redacted,Schools - Transfer Payment,41429,0,LOCAL AUTHORITY SERVICES
04-04-2022,Dedicated Schools Budget,Personal Information - Redacted,Schools - Transfer Payment,26963.33,0,NON COMMERCIAL SUPPLIER
04-04-2022,Dedicated Schools Budget,Personal Information - Redacted,Schools - Transfer Payment,26698.96,0,VENDOR
04-04-2022,Dedicated Schools Budget,Personal Information - Redacted,Schools - Transfer Payment,17972.08,0,NON COMMERCIAL SUPPLIER
04-04-2022,Dedicated Schools Budget,Personal Information - Redacted,Schools - Transfer Payment,3797.92,0,VENDOR
04-04-2022,Dedicated Schools Budget,Personal Information - Redacted,Schools - Transfer Payment,9660,0,NON COMMERCIAL SUPPLIER
04-04-2022,Dedicated Schools Budget,Personal Information - Redacted,Professional Services - General,22598.33,0,COMMERCIAL SUPPLIER
04-04-2022,Dedicated Schools Budget,Personal Information - Redacted,Schools - Transfer Payment,10290,0,COMMERCIAL SUPPLIER
04-04-2022,Dedicated Schools Budget,Personal Information - Redacted,Schools - Transfer Payment,13200.06,0,VENDOR
04-04-2022,Dedicated Schools Budget,Personal Information - Redacted,Schools - Transfer Payment,47423.75,0,COMMERCIAL SUPPLIER
04-04-2022,Dedicated Schools Budget,Personal Information - Redacted,Schools - Transfer Payment,12960.83,0,COMMERCIAL SUPPLIER
04-04-2022,Dedicated Schools Budget,Personal Information - Redacted,Schools - Transfer Payment,680,0,COMMERCIAL SUPPLIER
04-04-2022,Dedicated Schools Budget,Personal Information - Redacted,Schools - Transfer Payment,17215.83,0,INDIVIDUALS
04-04-2022,Dedicated Schools Budget,Personal Information - Redacted,Schools - Transfer Payment,5855.83,0,COMMERCIAL SUPPLIER
04-04-2022,Dedicated Schools Budget,Personal Information - Redacted,Schools - Transfer Payment,40224.58,0,COMMERCIAL SUPPLIER
04-04-2022,Dedicated Schools Budget,Personal Information - Redacted,Schools - Transfer Payment,8490,0,COMMERCIAL SUPPLIER
04-04-2022,Dedicated Schools Budget,Personal Information - Redacted,Schools - Transfer Payment,20313.44,0,NON COMMERCIAL SUPPLIER
04-04-2022,Dedicated Schools Budget,Personal Information - Redacted,Schools - Transfer Payment,104677.5,0,COMMERCIAL SUPPLIER
04-04-2022,Dedicated Schools Budget,Personal Information - Redacted,Schools - Transfer Payment,306006.5,0,NON COMMERCIAL SUPPLIER
04-04-2022,Dedicated Schools Budget,Personal Information - Redacted,Schools - Transfer Payment,45896.11,0,VENDOR
04-04-2022,Dedicated Schools Budget,Personal Information - Redacted,Schools - Transfer Payment,15304.58,0,NON COMMERCIAL SUPPLIER
04-04-2022,Dedicated Schools Budget,Personal Information - Redacted,Schools - Transfer Payment,37666.25,0,VENDOR
04-04-2022,Dedicated Schools Budget,Personal Information - Redacted,Schools - Transfer Payment,18335,0,COMMERCIAL SUPPLIER
04-04-2022,Dedicated Schools Budget,Personal Information - Redacted,Schools - Transfer Payment,23228.33,0,COMMERCIAL SUPPLIER
04-04-2022,Dedicated Schools Budget,Personal Information - Redacted,Schools - Transfer Payment,8175,0,VENDOR
04-04-2022,Dedicated Schools Budget,Personal Information - Redacted,Schools - Transfer Payment,37036.11,0,COMMERCIAL SUPPLIER
04-04-2022,Dedicated Schools Budget,Personal Information - Redacted,Schools - Transfer Payment,14093.75,0,COMMERCIAL SUPPLIER
04-04-2022,Dedicated Schools Budget,Personal Information - Redacted,Schools - Transfer Payment,20372.08,0,NON COMMERCIAL SUPPLIER
04-04-2022,Dedicated Schools Budget,Personal Information - Redacted,Schools - Transfer Payment,21305.83,0,COMMERCIAL SUPPLIER
04-04-2022,Dedicated Schools Budget,Personal Information - Redacted,Schools - Transfer Payment,9405.42,0,COMMERCIAL SUPPLIER
04-04-2022,Dedicated Schools Budget,Personal Information - Redacted,Schools - Transfer Payment,12627.08,0,COMMERCIAL SUPPLIER
04-04-2022,Dedicated Schools Budget,Personal Information - Redacted,Schools - Transfer Payment,44134.17,0,VENDOR
04-04-2022,Dedicated Schools Budget,Personal Information - Redacted,Schools - Transfer Payment,31663.33,0,VENDOR
04-04-2022,Dedicated Schools Budget,Personal Information - Redacted,Schools - Transfer Payment,18131.25,0,COMMERCIAL SUPPLIER
04-04-2022,Dedicated Schools Budget,Personal Information - Redacted,Schools - Transfer Payment,14911.25,0,COMMERCIAL SUPPLIER
04-04-2022,Dedicated Schools Budget,Personal Information - Redacted,Schools - Transfer Payment,38557.92,0,COMMERCIAL SUPPLIER
04-04-2022,Dedicated Schools Budget,Personal Information - Redacted,Schools - Transfer Payment,18905.42,0,COMMERCIAL SUPPLIER
04-04-2022,Dedicated Schools Budget,Personal Information - Redacted,Schools - Transfer Payment,52963.75,0,COMMERCIAL SUPPLIER
04-04-2022,Dedicated Schools Budget,Personal Information - Redacted,Schools - Transfer Payment,24221.25,0,COMMERCIAL SUPPLIER
04-04-2022,Dedicated Schools Budget,Personal Information - Redacted,Schools - Transfer Payment,25782.92,0,NON COMMERCIAL SUPPLIER
04-04-2022,Dedicated Schools Budget,Personal Information - Redacted,Schools - Transfer Payment,15386.67,0,COMMERCIAL SUPPLIER
04-04-2022,Dedicated Schools Budget,Personal Information - Redacted,Schools - Transfer Payment,24161.67,0,COMMERCIAL SUPPLIER
04-04-2022,Dedicated Schools Budget,Personal Information - Redacted,Schools - Transfer Payment,12246.25,0,VENDOR
04-04-2022,Dedicated Schools Budget,Personal Information - Redacted,Schools - Transfer Payment,8608.33,0,COMMERCIAL SUPPLIER
04-04-2022,Dedicated Schools Budget,Personal Information - Redacted,Schools - Transfer Payment,13272.92,0,COMMERCIAL SUPPLIER
04-04-2022,Dedicated Schools Budget,Personal Information - Redacted,Schools - Transfer Payment,20139.44,0,NON COMMERCIAL SUPPLIER
04-04-2022,Dedicated Schools Budget,Personal Information - Redacted,Schools - Transfer Payment,24276.67,0,COMMERCIAL SUPPLIER
04-04-2022,Dedicated Schools Budget,Personal Information - Redacted,Schools - Transfer Payment,7459.9,0,INDIVIDUALS
04-04-2022,Dedicated Schools Budget,Personal Information - Redacted,Schools - Transfer Payment,20340.83,0,COMMERCIAL SUPPLIER
04-04-2022,Dedicated Schools Budget,Personal Information - Redacted,Schools - Transfer Payment,18955.42,0,COMMERCIAL SUPPLIER
04-04-2022,Dedicated Schools Budget,Personal Information - Redacted,Schools - Transfer Payment,40785.27,0,COMMERCIAL SUPPLIER
04-04-2022,Dedicated Schools Budget,Personal Information - Redacted,Schools - Transfer Payment,38333.58,0,NON COMMERCIAL SUPPLIER
04-04-2022,Dedicated Schools Budget,Personal Information - Redacted,Schools - Transfer Payment,10537.67,0,VENDOR
04-04-2022,Dedicated Schools Budget,Personal Information - Redacted,Schools - Transfer Payment,17891.08,0,COMMERCIAL SUPPLIER
04-04-2022,Dedicated Schools Budget,Personal Information - Redacted,Schools - Transfer Payment,10853.33,0,COMMERCIAL SUPPLIER
04-04-2022,Dedicated Schools Budget,Personal Information - Redacted,Schools - Transfer Payment,31502.17,0,COMMERCIAL SUPPLIER
04-04-2022,Dedicated Schools Budget,Personal Information - Redacted,Schools - Transfer Payment,14152.5,0,COMMERCIAL SUPPLIER
04-04-2022,Dedicated Schools Budget,Personal Information - Redacted,Schools - Transfer Payment,22192.42,0,COMMERCIAL SUPPLIER
04-04-2022,Dedicated Schools Budget,Personal Information - Redacted,Schools - Transfer Payment,11570.25,0,NON COMMERCIAL SUPPLIER
04-04-2022,Dedicated Schools Budget,Personal Information - Redacted,Schools - Transfer Payment,4141.67,0,NON COMMERCIAL SUPPLIER
04-04-2022,Dedicated Schools Budget,Personal Information - Redacted,Schools - Transfer Payment,14746.08,0,COMMERCIAL SUPPLIER
04-04-2022,Dedicated Schools Budget,Personal Information - Redacted,Schools - Transfer Payment,17598.25,0,COMMERCIAL SUPPLIER
04-04-2022,Dedicated Schools Budget,Personal Information - Redacted,Schools - Transfer Payment,22202.33,0,COMMERCIAL SUPPLIER
04-04-2022,Dedicated Schools Budget,Personal Information - Redacted,Schools - Transfer Payment,10909.94,0,COMMERCIAL SUPPLIER
04-04-2022,Dedicated Schools Budget,Personal Information - Redacted,Schools - Transfer Payment,18484.67,0,COMMERCIAL SUPPLIER
04-04-2022,Dedicated Schools Budget,Personal Information - Redacted,Schools - Transfer Payment,15839.67,0,LOCAL AUTHORITY SERVICES
04-04-2022,Adults & Health,Supporting Care,Home Care - Private Contractors Payment,229.32,0,VENDOR
04-04-2022,Adults & Health,Supporting Care,Home Care - Private Contractors Payment,229.32,0,VENDOR
04-04-2022,Adults & Health,Supporting Care,Home Care - Private Contractors Payment,229.32,0,VENDOR
04-04-2022,Adults & Health,Supporting Care,Home Care - Private Contractors Payment,229.32,0,VENDOR
04-04-2022,Adults & Health,Supporting Care,Home Care - Private Contractors Payment,229.32,0,VENDOR
04-04-2022,Adults & Health,Supporting Care,Home Care - Private Contractors Payment,229.32,0,VENDOR
04-04-2022,Adults & Health,Supporting Care,Home Care - Private Contractors Payment,229.32,0,VENDOR
04-04-2022,Adults & Health,Supporting Care,Home Care - Private Contractors Payment,229.32,0,VENDOR
04-04-2022,Adults & Health,Supporting Care,Home Care - Private Contractors Payment,327.6,0,VENDOR
04-04-2022,Adults & Health,Supporting Care,Home Care - Private Contractors Payment,327.6,0,VENDOR
04-04-2022,Adults & Health,Supporting Care,Home Care - Private Contractors Payment,327.6,0,VENDOR
04-04-2022,Adults & Health,Supporting Care,Home Care - Private Contractors Payment,327.6,0,VENDOR
04-04-2022,Adults & Health,Supporting Care,Daycare - Private Contractors Payment,56.16,0,VENDOR
04-04-2022,Adults & Health,Supporting Care,Home Care - Private Contractors Payment,327.6,0,VENDOR
04-04-2022,Adults & Health,Supporting Care,Daycare - Private Contractors Payment,56.16,0,VENDOR
04-04-2022,Adults & Health,Supporting Care,Home Care - Private Contractors Payment,327.6,0,VENDOR
04-04-2022,Adults & Health,Supporting Care,Home Care - Private Contractors Payment,327.6,0,VENDOR
04-04-2022,Adults & Health,Supporting Care,Daycare - Private Contractors Payment,-131.04,0,VENDOR
04-04-2022,Adults & Health,Supporting Care,Home Care - Private Contractors Payment,327.6,0,VENDOR
04-04-2022,Adults & Health,Supporting Care,Daycare - Private Contractors Payment,56.16,0,VENDOR
04-04-2022,Adults & Health,Supporting Care,Home Care - Private Contractors Payment,327.6,0,VENDOR
04-04-2022,Adults & Health,Supporting Care,Home Care - Private Contractors Payment,327.6,0,VENDOR
04-04-2022,Adults & Health,Supporting Care,Home Care - Private Contractors Payment,327.6,0,VENDOR
04-04-2022,Adults & Health,Supporting Care,Home Care - Private Contractors Payment,327.6,0,VENDOR
04-04-2022,Adults & Health,Supporting Care,Home Care - Private Contractors Payment,327.6,0,VENDOR
04-04-2022,Adults & Health,Supporting Care,Home Care - Private Contractors Payment,327.6,0,VENDOR
04-04-2022,Adults & Health,Supporting Care,Home Care - Private Contractors Payment,327.6,0,VENDOR
04-04-2022,Adults & Health,Supporting Care,Home Care - Private Contractors Payment,327.6,0,VENDOR
04-04-2022,RMS,C4P Consulting Ltd,Consultancy Fees,3600,0,COMMERCIAL SUPPLIER
04-04-2022,Adults & Health,Personal Information - Redacted,Professional Services - General,600,0,INDIVIDUALS
04-04-2022,Dedicated Schools Budget,Personal Information - Redacted,Independent Units Within The Council,320321,0,VENDOR
04-04-2022,Dedicated Schools Budget,Personal Information - Redacted,Independent Units Within The Council,207710,0,VENDOR
04-04-2022,Dedicated Schools Budget,Personal Information - Redacted,Independent Units Within The Council,320457,0,VENDOR
04-04-2022,Dedicated Schools Budget,Personal Information - Redacted,Independent Units Within The Council,251061,0,COMMERCIAL SUPPLIER
04-04-2022,Dedicated Schools Budget,Personal Information - Redacted,Independent Units Within The Council,102545,0,VENDOR
04-04-2022,Dedicated Schools Budget,Personal Information - Redacted,Independent Units Within The Council,146212,0,VENDOR
04-04-2022,Dedicated Schools Budget,Personal Information - Redacted,Independent Units Within The Council,161984,0,VENDOR
04-04-2022,Dedicated Schools Budget,Personal Information - Redacted,Independent Units Within The Council,194597,0,VENDOR
04-04-2022,Dedicated Schools Budget,Personal Information - Redacted,Independent Units Within The Council,80092,0,VENDOR
04-04-2022,Dedicated Schools Budget,Personal Information - Redacted,Independent Units Within The Council,135716,0,VENDOR
04-04-2022,Dedicated Schools Budget,Personal Information - Redacted,Independent Units Within The Council,972667,0,NON COMMERCIAL SUPPLIER
04-04-2022,Dedicated Schools Budget,Personal Information - Redacted,Independent Units Within The Council,213070,0,NON COMMERCIAL SUPPLIER
04-04-2022,Dedicated Schools Budget,Personal Information - Redacted,Independent Units Within The Council,401308,0,VENDOR
04-04-2022,Dedicated Schools Budget,Personal Information - Redacted,Independent Units Within The Council,319248,0,VENDOR
04-04-2022,Dedicated Schools Budget,Personal Information - Redacted,Independent Units Within The Council,123789,0,VENDOR
04-04-2022,Dedicated Schools Budget,Personal Information - Redacted,Independent Units Within The Council,187206,0,VENDOR
04-04-2022,Dedicated Schools Budget,Personal Information - Redacted,Independent Units Within The Council,102214,0,VENDOR
04-04-2022,Dedicated Schools Budget,Personal Information - Redacted,Independent Units Within The Council,335655,0,LOCAL AUTHORITY SERVICES
04-04-2022,Dedicated Schools Budget,Personal Information - Redacted,Independent Units Within The Council,303172,0,VENDOR
04-04-2022,Dedicated Schools Budget,Personal Information - Redacted,Independent Units Within The Council,378625,0,VENDOR
04-04-2022,Dedicated Schools Budget,Personal Information - Redacted,Independent Units Within The Council,478717,0,LOCAL AUTHORITY SERVICES
04-04-2022,Dedicated Schools Budget,Personal Information - Redacted,Independent Units Within The Council,264785,0,VENDOR
04-04-2022,Dedicated Schools Budget,Personal Information - Redacted,Independent Units Within The Council,554276,0,NON COMMERCIAL SUPPLIER
04-04-2022,Dedicated Schools Budget,Personal Information - Redacted,Independent Units Within The Council,104300,0,COMMERCIAL SUPPLIER
04-04-2022,Dedicated Schools Budget,Personal Information - Redacted,Independent Units Within The Council,360004,0,VENDOR
04-04-2022,Dedicated Schools Budget,Personal Information - Redacted,Independent Units Within The Council,238864,0,VENDOR
04-04-2022,Dedicated Schools Budget,Personal Information - Redacted,Independent Units Within The Council,436202,0,NON COMMERCIAL SUPPLIER
04-04-2022,Dedicated Schools Budget,Personal Information - Redacted,Independent Units Within The Council,397164,0,VENDOR
04-04-2022,Dedicated Schools Budget,Personal Information - Redacted,Independent Units Within The Council,304356,0,VENDOR
04-04-2022,Dedicated Schools Budget,Personal Information - Redacted,Independent Units Within The Council,114592,0,NON COMMERCIAL SUPPLIER
04-04-2022,Dedicated Schools Budget,Personal Information - Redacted,Independent Units Within The Council,143842,0,VENDOR
04-04-2022,Dedicated Schools Budget,Personal Information - Redacted,Independent Units Within The Council,615979,0,VENDOR
04-04-2022,Dedicated Schools Budget,Personal Information - Redacted,Independent Units Within The Council,269975,0,NON COMMERCIAL SUPPLIER
04-04-2022,Dedicated Schools Budget,Personal Information - Redacted,Independent Units Within The Council,459544,0,VENDOR
04-04-2022,Dedicated Schools Budget,Personal Information - Redacted,Independent Units Within The Council,272938,0,VENDOR
04-04-2022,Dedicated Schools Budget,Personal Information - Redacted,Independent Units Within The Council,273206,0,NON COMMERCIAL SUPPLIER
04-04-2022,Dedicated Schools Budget,Personal Information - Redacted,Independent Units Within The Council,260424,0,VENDOR
04-04-2022,Dedicated Schools Budget,Personal Information - Redacted,Independent Units Within The Council,139753,0,VENDOR
04-04-2022,Dedicated Schools Budget,Personal Information - Redacted,Independent Units Within The Council,117292,0,VENDOR
04-04-2022,Dedicated Schools Budget,Personal Information - Redacted,Independent Units Within The Council,1027413,0,VENDOR
04-04-2022,Dedicated Schools Budget,Personal Information - Redacted,Independent Units Within The Council,906295,0,VENDOR
04-04-2022,Dedicated Schools Budget,Personal Information - Redacted,Independent Units Within The Council,87920,0,VENDOR
04-04-2022,Dedicated Schools Budget,Personal Information - Redacted,Independent Units Within The Council,95425,0,VENDOR
04-04-2022,Dedicated Schools Budget,Personal Information - Redacted,Independent Units Within The Council,56072,0,VENDOR
04-04-2022,Dedicated Schools Budget,Personal Information - Redacted,Independent Units Within The Council,193928,0,VENDOR
04-04-2022,Dedicated Schools Budget,Personal Information - Redacted,Independent Units Within The Council,107261,0,VENDOR
04-04-2022,Dedicated Schools Budget,Personal Information - Redacted,Independent Units Within The Council,274745,0,VENDOR
04-04-2022,Children and Young People,Choice Fostering Ltd,Fostering Agency Placements - Private Contractors Payment,830,0,COMMERCIAL SUPPLIER
04-04-2022,Children and Young People,Choice Fostering Ltd,Fostering Agency Placements - Private Contractors Payment,830,0,COMMERCIAL SUPPLIER
04-04-2022,Children and Young People,Choice Fostering Ltd,Fostering Agency Placements - Private Contractors Payment,830,0,COMMERCIAL SUPPLIER
04-04-2022,Children and Young People,Choice Fostering Ltd,Fostering Agency Placements - Private Contractors Payment,830,0,COMMERCIAL SUPPLIER
04-04-2022,Children and Young People,Choice Fostering Ltd,Fostering Agency Placements - Private Contractors Payment,355.67,0,COMMERCIAL SUPPLIER
04-04-2022,Children and Young People,Choice Fostering Ltd,Fostering Agency Placements - Private Contractors Payment,830,0,COMMERCIAL SUPPLIER
04-04-2022,Children and Young People,Choice Fostering Ltd,Fostering Agency Placements - Private Contractors Payment,830,0,COMMERCIAL SUPPLIER
04-04-2022,Children and Young People,Choice Fostering Ltd,Fostering Agency Placements - Private Contractors Payment,830,0,COMMERCIAL SUPPLIER
04-04-2022,Children and Young People,Choice Fostering Ltd,Fostering Agency Placements - Private Contractors Payment,830,0,COMMERCIAL SUPPLIER
04-04-2022,Children and Young People,Choice Fostering Ltd,Fostering Agency Placements - Private Contractors Payment,355.67,0,COMMERCIAL SUPPLIER
04-04-2022,Children and Young People,Choice Fostering Ltd,Fostering Agency Placements - Private Contractors Payment,1500,0,COMMERCIAL SUPPLIER
04-04-2022,Children and Young People,Choice Fostering Ltd,Fostering Agency Placements - Private Contractors Payment,642.99,0,COMMERCIAL SUPPLIER
04-04-2022,Children and Young People,Choice Fostering Ltd,Fostering Agency Placements - Private Contractors Payment,1500,0,COMMERCIAL SUPPLIER
04-04-2022,Children and Young People,Choice Fostering Ltd,Fostering Agency Placements - Private Contractors Payment,1500,0,COMMERCIAL SUPPLIER
04-04-2022,Children and Young People,Choice Fostering Ltd,Fostering Agency Placements - Private Contractors Payment,1500,0,COMMERCIAL SUPPLIER
04-04-2022,Children and Young People,Choice Fostering Ltd,Fostering Agency Placements - Private Contractors Payment,1750,0,COMMERCIAL SUPPLIER
04-04-2022,Children and Young People,Choice Fostering Ltd,Fostering Agency Placements - Private Contractors Payment,750,0,COMMERCIAL SUPPLIER
04-04-2022,Children and Young People,Choice Fostering Ltd,Fostering Agency Placements - Private Contractors Payment,1750,0,COMMERCIAL SUPPLIER
04-04-2022,Children and Young People,Choice Fostering Ltd,Fostering Agency Placements - Private Contractors Payment,1750,0,COMMERCIAL SUPPLIER
04-04-2022,Children and Young People,Choice Fostering Ltd,Fostering Agency Placements - Private Contractors Payment,1750,0,COMMERCIAL SUPPLIER
04-04-2022,Children and Young People,Choice Fostering Ltd,Fostering Agency Placements - Private Contractors Payment,514.26,0,COMMERCIAL SUPPLIER
04-04-2022,Adults & Health,Supporting Care,Home Care - Private Contractors Payment,262.08,0,VENDOR
04-04-2022,Adults & Health,Supporting Care,Home Care - Private Contractors Payment,262.08,0,VENDOR
04-04-2022,Adults & Health,Supporting Care,Home Care - Private Contractors Payment,262.08,0,VENDOR
04-04-2022,Adults & Health,Supporting Care,Home Care - Private Contractors Payment,262.08,0,VENDOR
04-04-2022,Adults & Health,Supporting Care,Home Care - Private Contractors Payment,262.08,0,VENDOR
04-04-2022,Adults & Health,Supporting Care,Home Care - Private Contractors Payment,262.08,0,VENDOR
04-04-2022,Adults & Health,Supporting Care,Home Care - Private Contractors Payment,262.08,0,VENDOR
04-04-2022,Adults & Health,Supporting Care,Home Care - Private Contractors Payment,262.08,0,VENDOR
04-04-2022,Adults & Health,Supporting Care,Home Care - Private Contractors Payment,262.08,0,VENDOR
04-04-2022,Adults & Health,Supporting Care,Home Care - Private Contractors Payment,262.08,0,VENDOR
04-04-2022,Adults & Health,Supporting Care,Home Care - Private Contractors Payment,262.08,0,VENDOR
04-04-2022,Adults & Health,Supporting Care,Home Care - Private Contractors Payment,262.08,0,VENDOR
04-04-2022,Adults & Health,Independence Brokerage Services CIC,Consultancy Fees,934.07,0,COMMERCIAL SUPPLIER
04-04-2022,oneSource - Non Shared,Digitec Security Ltd,Security Services (Excluding Premises),285,0,COMMERCIAL SUPPLIER
04-04-2022,oneSource - Non Shared,Digitec Security Ltd,Security Services (Excluding Premises),320.76,0,COMMERCIAL SUPPLIER
04-04-2022,Pension Fund,Ernst & Young LLP,Fund Management Fees,4000,0,COMMERCIAL SUPPLIER
04-04-2022,Environment and Sustainable Transport,Alliance Automotive UK CV Ltd t/a C V Components,Highway Services,402.93,0,COMMERCIAL SUPPLIER
04-04-2022,Adults & Health,The Royal National Institute for Deaf People (RNID),Supported Other Accommodation - Private Contractors Payment,0,0,COMMERCIAL SUPPLIER
04-04-2022,Adults & Health,The Royal National Institute for Deaf People (RNID),Supported Other Accommodation - Private Contractors Payment,0,0,COMMERCIAL SUPPLIER
04-04-2022,Adults & Health,The Royal National Institute for Deaf People (RNID),Supported Other Accommodation - Private Contractors Payment,300,0,COMMERCIAL SUPPLIER
04-04-2022,Adults & Health,The Royal National Institute for Deaf People (RNID),Supported Other Accommodation - Private Contractors Payment,0,0,COMMERCIAL SUPPLIER
04-04-2022,Inclusive Economy & Housing,Ronin Ltd,Staff Recruitment Costs,2875,0,COMMERCIAL SUPPLIER
04-04-2022,Children and Young People,Personal Information - Redacted,Legal Fees,225,0,INDIVIDUALS
04-04-2022,RMS,Door-Stop International Ltd,"Purchase - Equipment, Furniture And Materials",549.48,0,VENDOR
04-04-2022,RMS,Door-Stop International Ltd,"Purchase - Equipment, Furniture And Materials",586.4,0,VENDOR
04-04-2022,RMS,Door-Stop International Ltd,"Purchase - Equipment, Furniture And Materials",610.34,0,VENDOR
04-04-2022,Children and Young People,Newham Partnership Working Ltd,Professional Services - General,96050.98,0,VENDOR
04-04-2022,Children and Young People,Newham Partnership Working Ltd,Professional Services - General,3375,0,VENDOR
04-04-2022,Children and Young People,Newham Partnership Working Ltd,Professional Services - General,980,0,VENDOR
04-04-2022,oneSource - Non Shared,Personal Information - Redacted,Building Alterations And Materials,507.82,0,Employee
04-04-2022,Environment and Sustainable Transport,Personal Information - Redacted,"Purchase - Equipment, Furniture And Materials",431.67,0,Employee
04-04-2022,Adults & Health,J J Moss & Sons Ltd,Building Alterations And Materials,572.3,0,VENDOR
04-04-2022,Brighter Futures Director,PATCAM,Design And Photographic Costs,4500,0,COMMERCIAL SUPPLIER
04-04-2022,Adults & Health,Redspot Care Ltd.,Daycare - Private Contractors Payment,112.32,0,VENDOR
04-04-2022,Adults & Health,Redspot Care Ltd.,Home Care - Private Contractors Payment,163.8,0,VENDOR
04-04-2022,Adults & Health,Redspot Care Ltd.,Daycare - Private Contractors Payment,112.32,0,VENDOR
04-04-2022,Adults & Health,Redspot Care Ltd.,Home Care - Private Contractors Payment,163.8,0,VENDOR
04-04-2022,Adults & Health,Redspot Care Ltd.,Daycare - Private Contractors Payment,112.32,0,VENDOR
04-04-2022,Adults & Health,Redspot Care Ltd.,Home Care - Private Contractors Payment,163.8,0,VENDOR
04-04-2022,Adults & Health,Redspot Care Ltd.,Daycare - Private Contractors Payment,112.32,0,VENDOR
04-04-2022,Adults & Health,Redspot Care Ltd.,Home Care - Private Contractors Payment,163.8,0,VENDOR
04-04-2022,Adults & Health,Redspot Care Ltd.,Home Care - Private Contractors Payment,655.2,0,VENDOR
04-04-2022,Adults & Health,Redspot Care Ltd.,Home Care - Private Contractors Payment,655.2,0,VENDOR
04-04-2022,Adults & Health,Redspot Care Ltd.,Home Care - Private Contractors Payment,655.2,0,VENDOR
04-04-2022,Adults & Health,Redspot Care Ltd.,Home Care - Private Contractors Payment,655.2,0,VENDOR
04-04-2022,Adults & Health,Redspot Care Ltd.,Home Care - Private Contractors Payment,177.84,0,VENDOR
04-04-2022,Adults & Health,Redspot Care Ltd.,Daycare - Private Contractors Payment,56.16,0,VENDOR
04-04-2022,Adults & Health,Redspot Care Ltd.,Daycare - Private Contractors Payment,56.16,0,VENDOR
04-04-2022,Adults & Health,Redspot Care Ltd.,Home Care - Private Contractors Payment,177.84,0,VENDOR
04-04-2022,Adults & Health,Redspot Care Ltd.,Home Care - Private Contractors Payment,18.72,0,VENDOR
04-04-2022,Adults & Health,Redspot Care Ltd.,Home Care - Private Contractors Payment,18.72,0,VENDOR
04-04-2022,Adults & Health,Redspot Care Ltd.,Daycare - Private Contractors Payment,56.16,0,VENDOR
04-04-2022,Adults & Health,Redspot Care Ltd.,Home Care - Private Contractors Payment,18.72,0,VENDOR
04-04-2022,Adults & Health,Redspot Care Ltd.,Home Care - Private Contractors Payment,177.84,0,VENDOR
04-04-2022,Adults & Health,Redspot Care Ltd.,Daycare - Private Contractors Payment,56.16,0,VENDOR
04-04-2022,Adults & Health,Redspot Care Ltd.,Home Care - Private Contractors Payment,18.72,0,VENDOR
04-04-2022,Adults & Health,Redspot Care Ltd.,Home Care - Private Contractors Payment,177.84,0,VENDOR
04-04-2022,Adults & Health,Redspot Care Ltd.,Home Care - Private Contractors Payment,65.52,0,VENDOR
04-04-2022,Adults & Health,Redspot Care Ltd.,Home Care - Private Contractors Payment,65.52,0,VENDOR
04-04-2022,Adults & Health,Redspot Care Ltd.,Home Care - Private Contractors Payment,65.52,0,VENDOR
04-04-2022,Adults & Health,Redspot Care Ltd.,Home Care - Private Contractors Payment,65.52,0,VENDOR
04-04-2022,Adults & Health,Redspot Care Ltd.,Home Care - Private Contractors Payment,229.32,0,VENDOR
04-04-2022,Adults & Health,Redspot Care Ltd.,Home Care - Private Contractors Payment,229.32,0,VENDOR
04-04-2022,Adults & Health,Redspot Care Ltd.,Home Care - Private Contractors Payment,229.32,0,VENDOR
04-04-2022,Adults & Health,Redspot Care Ltd.,Home Care - Private Contractors Payment,229.32,0,VENDOR
04-04-2022,Adults & Health,Redspot Care Ltd.,Home Care - Private Contractors Payment,229.32,0,VENDOR
04-04-2022,Adults & Health,Redspot Care Ltd.,Daycare - Private Contractors Payment,18.72,0,VENDOR
04-04-2022,Adults & Health,Redspot Care Ltd.,Home Care - Private Contractors Payment,18.72,0,VENDOR
04-04-2022,Adults & Health,Redspot Care Ltd.,Home Care - Private Contractors Payment,229.32,0,VENDOR
04-04-2022,Adults & Health,Redspot Care Ltd.,Home Care - Private Contractors Payment,229.32,0,VENDOR
04-04-2022,Adults & Health,Redspot Care Ltd.,Daycare - Private Contractors Payment,18.72,0,VENDOR
04-04-2022,Adults & Health,Redspot Care Ltd.,Home Care - Private Contractors Payment,18.72,0,VENDOR
04-04-2022,Adults & Health,Redspot Care Ltd.,Daycare - Private Contractors Payment,18.72,0,VENDOR
04-04-2022,Adults & Health,Redspot Care Ltd.,Home Care - Private Contractors Payment,229.32,0,VENDOR
04-04-2022,Adults & Health,Redspot Care Ltd.,Home Care - Private Contractors Payment,18.72,0,VENDOR
04-04-2022,Adults & Health,Redspot Care Ltd.,Home Care - Private Contractors Payment,18.72,0,VENDOR
04-04-2022,Adults & Health,Redspot Care Ltd.,Daycare - Private Contractors Payment,18.72,0,VENDOR
04-04-2022,Adults & Health,Redspot Care Ltd.,Home Care - Private Contractors Payment,655.2,0,VENDOR
04-04-2022,Adults & Health,Redspot Care Ltd.,Home Care - Private Contractors Payment,655.2,0,VENDOR
04-04-2022,Adults & Health,Redspot Care Ltd.,Home Care - Private Contractors Payment,655.2,0,VENDOR
04-04-2022,Adults & Health,Redspot Care Ltd.,Home Care - Private Contractors Payment,393.12,0,VENDOR
04-04-2022,Adults & Health,Redspot Care Ltd.,Daycare - Private Contractors Payment,74.88,0,VENDOR
04-04-2022,Adults & Health,Redspot Care Ltd.,Home Care - Private Contractors Payment,131.04,0,VENDOR
04-04-2022,Adults & Health,Redspot Care Ltd.,Home Care - Private Contractors Payment,131.04,0,VENDOR
04-04-2022,Adults & Health,Redspot Care Ltd.,Home Care - Private Contractors Payment,37.44,0,VENDOR
04-04-2022,Adults & Health,Redspot Care Ltd.,Home Care - Private Contractors Payment,37.44,0,VENDOR
04-04-2022,Adults & Health,Redspot Care Ltd.,Daycare - Private Contractors Payment,74.88,0,VENDOR
04-04-2022,Adults & Health,Redspot Care Ltd.,Home Care - Private Contractors Payment,131.04,0,VENDOR
04-04-2022,Adults & Health,Redspot Care Ltd.,Daycare - Private Contractors Payment,74.88,0,VENDOR
04-04-2022,Adults & Health,Redspot Care Ltd.,Daycare - Private Contractors Payment,74.88,0,VENDOR
04-04-2022,Adults & Health,Redspot Care Ltd.,Home Care - Private Contractors Payment,131.04,0,VENDOR
04-04-2022,Adults & Health,Redspot Care Ltd.,Home Care - Private Contractors Payment,425.88,0,VENDOR
04-04-2022,Adults & Health,Redspot Care Ltd.,Home Care - Private Contractors Payment,556.92,0,VENDOR
04-04-2022,Adults & Health,Redspot Care Ltd.,Home Care - Private Contractors Payment,556.92,0,VENDOR
04-04-2022,Adults & Health,Redspot Care Ltd.,Home Care - Private Contractors Payment,556.92,0,VENDOR
04-04-2022,Adults & Health,Redspot Care Ltd.,Home Care - Private Contractors Payment,556.92,0,VENDOR
04-04-2022,Adults & Health,Redspot Care Ltd.,Home Care - Private Contractors Payment,556.92,0,VENDOR
04-04-2022,Adults & Health,Redspot Care Ltd.,Home Care - Private Contractors Payment,556.92,0,VENDOR
04-04-2022,Adults & Health,Redspot Care Ltd.,Home Care - Private Contractors Payment,425.88,0,VENDOR
04-04-2022,Adults & Health,Redspot Care Ltd.,Home Care - Private Contractors Payment,655.2,0,VENDOR
04-04-2022,Adults & Health,Redspot Care Ltd.,Home Care - Private Contractors Payment,655.2,0,VENDOR
04-04-2022,Adults & Health,Redspot Care Ltd.,Home Care - Private Contractors Payment,374.4,0,VENDOR
04-04-2022,Adults & Health,Redspot Care Ltd.,Home Care - Private Contractors Payment,70.2,0,VENDOR
04-04-2022,Adults & Health,Redspot Care Ltd.,Home Care - Private Contractors Payment,70.2,0,VENDOR
04-04-2022,Adults & Health,Redspot Care Ltd.,Home Care - Private Contractors Payment,70.2,0,VENDOR
04-04-2022,Adults & Health,Redspot Care Ltd.,Home Care - Private Contractors Payment,70.2,0,VENDOR
04-04-2022,Adults & Health,Redspot Care Ltd.,Home Care - Private Contractors Payment,556.92,0,VENDOR
04-04-2022,Adults & Health,Redspot Care Ltd.,Home Care - Private Contractors Payment,556.92,0,VENDOR
04-04-2022,Adults & Health,Redspot Care Ltd.,Home Care - Private Contractors Payment,556.92,0,VENDOR
04-04-2022,Adults & Health,Redspot Care Ltd.,Home Care - Private Contractors Payment,575.64,0,VENDOR
04-04-2022,Adults & Health,Redspot Care Ltd.,Home Care - Private Contractors Payment,294.84,0,VENDOR
04-04-2022,Adults & Health,Redspot Care Ltd.,Home Care - Private Contractors Payment,294.84,0,VENDOR
04-04-2022,Adults & Health,Redspot Care Ltd.,Home Care - Private Contractors Payment,294.84,0,VENDOR
04-04-2022,Adults & Health,Redspot Care Ltd.,Home Care - Private Contractors Payment,294.84,0,VENDOR
04-04-2022,Adults & Health,Redspot Care Ltd.,Home Care - Private Contractors Payment,262.08,0,VENDOR
04-04-2022,Adults & Health,Redspot Care Ltd.,Home Care - Private Contractors Payment,262.08,0,VENDOR
04-04-2022,Adults & Health,Redspot Care Ltd.,Home Care - Private Contractors Payment,262.08,0,VENDOR
04-04-2022,Adults & Health,Redspot Care Ltd.,Home Care - Private Contractors Payment,262.08,0,VENDOR
04-04-2022,Adults & Health,Redspot Care Ltd.,Home Care - Private Contractors Payment,687.96,0,VENDOR
04-04-2022,Adults & Health,Redspot Care Ltd.,Home Care - Private Contractors Payment,687.96,0,VENDOR
04-04-2022,Adults & Health,Redspot Care Ltd.,Home Care - Private Contractors Payment,687.96,0,VENDOR
04-04-2022,Adults & Health,Redspot Care Ltd.,Home Care - Private Contractors Payment,556.92,0,VENDOR
04-04-2022,Adults & Health,Redspot Care Ltd.,Home Care - Private Contractors Payment,229.32,0,VENDOR
04-04-2022,Adults & Health,Redspot Care Ltd.,Home Care - Private Contractors Payment,229.32,0,VENDOR
04-04-2022,Adults & Health,Redspot Care Ltd.,Home Care - Private Contractors Payment,229.32,0,VENDOR
04-04-2022,Adults & Health,Redspot Care Ltd.,Home Care - Private Contractors Payment,229.32,0,VENDOR
04-04-2022,Adults & Health,Redspot Care Ltd.,Home Care - Private Contractors Payment,28.08,0,VENDOR
04-04-2022,Adults & Health,Redspot Care Ltd.,Home Care - Private Contractors Payment,524.16,0,VENDOR
04-04-2022,Adults & Health,Redspot Care Ltd.,Home Care - Private Contractors Payment,524.16,0,VENDOR
04-04-2022,Adults & Health,Redspot Care Ltd.,Home Care - Private Contractors Payment,234,0,VENDOR
04-04-2022,Adults & Health,Redspot Care Ltd.,Home Care - Private Contractors Payment,37.44,0,VENDOR
04-04-2022,Adults & Health,Redspot Care Ltd.,Home Care - Private Contractors Payment,294.84,0,VENDOR
04-04-2022,Adults & Health,Redspot Care Ltd.,Home Care - Private Contractors Payment,37.44,0,VENDOR
04-04-2022,Adults & Health,Redspot Care Ltd.,Home Care - Private Contractors Payment,294.84,0,VENDOR
04-04-2022,Adults & Health,Redspot Care Ltd.,Home Care - Private Contractors Payment,37.44,0,VENDOR
04-04-2022,Adults & Health,Redspot Care Ltd.,Home Care - Private Contractors Payment,294.84,0,VENDOR
04-04-2022,Adults & Health,Redspot Care Ltd.,Home Care - Private Contractors Payment,37.44,0,VENDOR
04-04-2022,Adults & Health,Redspot Care Ltd.,Home Care - Private Contractors Payment,294.84,0,VENDOR
04-04-2022,Adults & Health,Redspot Care Ltd.,Home Care - Private Contractors Payment,56.16,0,VENDOR
04-04-2022,Adults & Health,Redspot Care Ltd.,Home Care - Private Contractors Payment,131.04,0,VENDOR
04-04-2022,Adults & Health,Redspot Care Ltd.,Home Care - Private Contractors Payment,131.04,0,VENDOR
04-04-2022,Adults & Health,Redspot Care Ltd.,Home Care - Private Contractors Payment,655.2,0,VENDOR
04-04-2022,Adults & Health,Redspot Care Ltd.,Respite Care - Private Contractors Payment,74.88,0,VENDOR
04-04-2022,Adults & Health,Redspot Care Ltd.,Home Care - Private Contractors Payment,655.2,0,VENDOR
04-04-2022,Adults & Health,Redspot Care Ltd.,Respite Care - Private Contractors Payment,74.88,0,VENDOR
04-04-2022,Adults & Health,Redspot Care Ltd.,Home Care - Private Contractors Payment,655.2,0,VENDOR
04-04-2022,Adults & Health,Redspot Care Ltd.,Home Care - Private Contractors Payment,655.2,0,VENDOR
04-04-2022,Adults & Health,Redspot Care Ltd.,Respite Care - Private Contractors Payment,74.88,0,VENDOR
04-04-2022,Adults & Health,Redspot Care Ltd.,Respite Care - Private Contractors Payment,74.88,0,VENDOR
04-04-2022,Adults & Health,Redspot Care Ltd.,Home Care - Private Contractors Payment,18.72,0,VENDOR
04-04-2022,Adults & Health,Redspot Care Ltd.,Home Care - Private Contractors Payment,131.04,0,VENDOR
04-04-2022,Adults & Health,Redspot Care Ltd.,Home Care - Private Contractors Payment,18.72,0,VENDOR
04-04-2022,Adults & Health,Redspot Care Ltd.,Home Care - Private Contractors Payment,18.72,0,VENDOR
04-04-2022,Adults & Health,Redspot Care Ltd.,Home Care - Private Contractors Payment,131.04,0,VENDOR
04-04-2022,Adults & Health,Redspot Care Ltd.,Home Care - Private Contractors Payment,18.72,0,VENDOR
04-04-2022,Adults & Health,Redspot Care Ltd.,Home Care - Private Contractors Payment,131.04,0,VENDOR
04-04-2022,Adults & Health,Redspot Care Ltd.,Home Care - Private Contractors Payment,131.04,0,VENDOR
04-04-2022,Adults & Health,Redspot Care Ltd.,Home Care - Private Contractors Payment,243.36,0,VENDOR
04-04-2022,Adults & Health,Redspot Care Ltd.,Home Care - Private Contractors Payment,393.12,0,VENDOR
04-04-2022,Adults & Health,Redspot Care Ltd.,Home Care - Private Contractors Payment,393.12,0,VENDOR
04-04-2022,Adults & Health,Redspot Care Ltd.,Home Care - Private Contractors Payment,243.36,0,VENDOR
04-04-2022,Adults & Health,Redspot Care Ltd.,Home Care - Private Contractors Payment,18.72,0,VENDOR
04-04-2022,Adults & Health,Redspot Care Ltd.,Home Care - Private Contractors Payment,18.72,0,VENDOR
04-04-2022,Adults & Health,Redspot Care Ltd.,Home Care - Private Contractors Payment,131.04,0,VENDOR
04-04-2022,Adults & Health,Redspot Care Ltd.,Home Care - Private Contractors Payment,542.88,0,VENDOR
04-04-2022,Adults & Health,Redspot Care Ltd.,Home Care - Private Contractors Payment,917.28,0,VENDOR
04-04-2022,Adults & Health,Redspot Care Ltd.,Daycare - Private Contractors Payment,28.08,0,VENDOR
04-04-2022,Adults & Health,Redspot Care Ltd.,Home Care - Private Contractors Payment,294.84,0,VENDOR
04-04-2022,Adults & Health,Redspot Care Ltd.,Home Care - Private Contractors Payment,18.72,0,VENDOR
04-04-2022,Adults & Health,Redspot Care Ltd.,Daycare - Private Contractors Payment,28.08,0,VENDOR
04-04-2022,Adults & Health,Redspot Care Ltd.,Daycare - Private Contractors Payment,28.08,0,VENDOR
04-04-2022,Adults & Health,Redspot Care Ltd.,Home Care - Private Contractors Payment,294.84,0,VENDOR
04-04-2022,Adults & Health,Redspot Care Ltd.,Home Care - Private Contractors Payment,18.72,0,VENDOR
04-04-2022,Adults & Health,Redspot Care Ltd.,Daycare - Private Contractors Payment,28.08,0,VENDOR
04-04-2022,Adults & Health,Redspot Care Ltd.,Home Care - Private Contractors Payment,294.84,0,VENDOR
04-04-2022,Adults & Health,Redspot Care Ltd.,Home Care - Private Contractors Payment,294.84,0,VENDOR
04-04-2022,Adults & Health,Redspot Care Ltd.,Daycare - Private Contractors Payment,18.72,0,VENDOR
04-04-2022,Adults & Health,Redspot Care Ltd.,Home Care - Private Contractors Payment,163.8,0,VENDOR
04-04-2022,Adults & Health,Redspot Care Ltd.,Home Care - Private Contractors Payment,18.72,0,VENDOR
04-04-2022,Adults & Health,Redspot Care Ltd.,Home Care - Private Contractors Payment,163.8,0,VENDOR
04-04-2022,Adults & Health,Redspot Care Ltd.,Home Care - Private Contractors Payment,18.72,0,VENDOR
04-04-2022,Adults & Health,Redspot Care Ltd.,Home Care - Private Contractors Payment,163.8,0,VENDOR
04-04-2022,Adults & Health,Redspot Care Ltd.,Daycare - Private Contractors Payment,18.72,0,VENDOR
04-04-2022,Adults & Health,Redspot Care Ltd.,Home Care - Private Contractors Payment,18.72,0,VENDOR
04-04-2022,Adults & Health,Redspot Care Ltd.,Home Care - Private Contractors Payment,163.8,0,VENDOR
04-04-2022,Adults & Health,Redspot Care Ltd.,Home Care - Private Contractors Payment,18.72,0,VENDOR
04-04-2022,Adults & Health,Redspot Care Ltd.,Daycare - Private Contractors Payment,18.72,0,VENDOR
04-04-2022,Adults & Health,Redspot Care Ltd.,Daycare - Private Contractors Payment,18.72,0,VENDOR
04-04-2022,Adults & Health,Redspot Care Ltd.,Home Care - Private Contractors Payment,294.84,0,VENDOR
04-04-2022,Adults & Health,Redspot Care Ltd.,Daycare - Private Contractors Payment,28.08,0,VENDOR
04-04-2022,Adults & Health,Redspot Care Ltd.,Home Care - Private Contractors Payment,421.2,0,VENDOR
04-04-2022,Adults & Health,Redspot Care Ltd.,Home Care - Private Contractors Payment,294.84,0,VENDOR
04-04-2022,Adults & Health,Redspot Care Ltd.,Home Care - Private Contractors Payment,28.08,0,VENDOR
04-04-2022,Adults & Health,Redspot Care Ltd.,Home Care - Private Contractors Payment,168.48,0,VENDOR
04-04-2022,Adults & Health,Redspot Care Ltd.,Daycare - Private Contractors Payment,46.8,0,VENDOR
04-04-2022,Adults & Health,Redspot Care Ltd.,Home Care - Private Contractors Payment,28.08,0,VENDOR
04-04-2022,Adults & Health,Redspot Care Ltd.,Daycare - Private Contractors Payment,37.44,0,VENDOR
04-04-2022,Adults & Health,Redspot Care Ltd.,Home Care - Private Contractors Payment,131.04,0,VENDOR
04-04-2022,Adults & Health,Redspot Care Ltd.,Home Care - Private Contractors Payment,14.04,0,VENDOR
04-04-2022,Adults & Health,Redspot Care Ltd.,Home Care - Private Contractors Payment,131.04,0,VENDOR
04-04-2022,Adults & Health,Redspot Care Ltd.,Home Care - Private Contractors Payment,14.04,0,VENDOR
04-04-2022,Adults & Health,Redspot Care Ltd.,Daycare - Private Contractors Payment,37.44,0,VENDOR
04-04-2022,Adults & Health,Redspot Care Ltd.,Home Care - Private Contractors Payment,131.04,0,VENDOR
04-04-2022,Adults & Health,Redspot Care Ltd.,Home Care - Private Contractors Payment,14.04,0,VENDOR
04-04-2022,Adults & Health,Redspot Care Ltd.,Home Care - Private Contractors Payment,14.04,0,VENDOR
04-04-2022,Adults & Health,Redspot Care Ltd.,Home Care - Private Contractors Payment,131.04,0,VENDOR
04-04-2022,Adults & Health,Redspot Care Ltd.,Home Care - Private Contractors Payment,163.8,0,VENDOR
04-04-2022,Adults & Health,Redspot Care Ltd.,Home Care - Private Contractors Payment,18.72,0,VENDOR
04-04-2022,Adults & Health,Redspot Care Ltd.,Home Care - Private Contractors Payment,18.72,0,VENDOR
04-04-2022,Adults & Health,Redspot Care Ltd.,Home Care - Private Contractors Payment,163.8,0,VENDOR
04-04-2022,Adults & Health,Redspot Care Ltd.,Home Care - Private Contractors Payment,18.72,0,VENDOR
04-04-2022,Adults & Health,Redspot Care Ltd.,Home Care - Private Contractors Payment,163.8,0,VENDOR
04-04-2022,Adults & Health,Redspot Care Ltd.,Home Care - Private Contractors Payment,18.72,0,VENDOR
04-04-2022,Adults & Health,Redspot Care Ltd.,Home Care - Private Contractors Payment,163.8,0,VENDOR
04-04-2022,Adults & Health,Redspot Care Ltd.,Home Care - Private Contractors Payment,84.24,0,VENDOR
04-04-2022,Adults & Health,Redspot Care Ltd.,Home Care - Private Contractors Payment,98.28,0,VENDOR
04-04-2022,Adults & Health,Redspot Care Ltd.,Home Care - Private Contractors Payment,98.28,0,VENDOR
04-04-2022,Adults & Health,Redspot Care Ltd.,Home Care - Private Contractors Payment,98.28,0,VENDOR
04-04-2022,Adults & Health,Redspot Care Ltd.,Home Care - Private Contractors Payment,131.04,0,VENDOR
04-04-2022,Adults & Health,Redspot Care Ltd.,Home Care - Private Contractors Payment,18.72,0,VENDOR
04-04-2022,Adults & Health,Redspot Care Ltd.,Daycare - Private Contractors Payment,37.44,0,VENDOR
04-04-2022,Adults & Health,Redspot Care Ltd.,Home Care - Private Contractors Payment,18.72,0,VENDOR
04-04-2022,Adults & Health,Redspot Care Ltd.,Home Care - Private Contractors Payment,131.04,0,VENDOR
04-04-2022,Adults & Health,Redspot Care Ltd.,Home Care - Private Contractors Payment,18.72,0,VENDOR
04-04-2022,Adults & Health,Redspot Care Ltd.,Daycare - Private Contractors Payment,37.44,0,VENDOR
04-04-2022,Adults & Health,Redspot Care Ltd.,Home Care - Private Contractors Payment,131.04,0,VENDOR
04-04-2022,Adults & Health,Redspot Care Ltd.,Home Care - Private Contractors Payment,131.04,0,VENDOR
04-04-2022,Adults & Health,Redspot Care Ltd.,Daycare - Private Contractors Payment,37.44,0,VENDOR
04-04-2022,Adults & Health,Redspot Care Ltd.,Home Care - Private Contractors Payment,18.72,0,VENDOR
04-04-2022,Adults & Health,Redspot Care Ltd.,Daycare - Private Contractors Payment,37.44,0,VENDOR
04-04-2022,Adults & Health,Redspot Care Ltd.,Daycare - Private Contractors Payment,37.44,0,VENDOR
04-04-2022,Adults & Health,Redspot Care Ltd.,Home Care - Private Contractors Payment,131.04,0,VENDOR
04-04-2022,Adults & Health,Redspot Care Ltd.,Daycare - Private Contractors Payment,37.44,0,VENDOR
04-04-2022,Adults & Health,Redspot Care Ltd.,Home Care - Private Contractors Payment,131.04,0,VENDOR
04-04-2022,Adults & Health,Redspot Care Ltd.,Daycare - Private Contractors Payment,37.44,0,VENDOR
04-04-2022,Adults & Health,Redspot Care Ltd.,Home Care - Private Contractors Payment,131.04,0,VENDOR
04-04-2022,Adults & Health,Redspot Care Ltd.,Daycare - Private Contractors Payment,37.44,0,VENDOR
04-04-2022,Adults & Health,Redspot Care Ltd.,Home Care - Private Contractors Payment,131.04,0,VENDOR
04-04-2022,Adults & Health,Redspot Care Ltd.,Daycare - Private Contractors Payment,18.72,0,VENDOR
04-04-2022,Adults & Health,Redspot Care Ltd.,Home Care - Private Contractors Payment,360.36,0,VENDOR
04-04-2022,Adults & Health,Redspot Care Ltd.,Home Care - Private Contractors Payment,18.72,0,VENDOR
04-04-2022,Adults & Health,Redspot Care Ltd.,Daycare - Private Contractors Payment,18.72,0,VENDOR
04-04-2022,Adults & Health,Redspot Care Ltd.,Home Care - Private Contractors Payment,360.36,0,VENDOR
04-04-2022,Adults & Health,Redspot Care Ltd.,Home Care - Private Contractors Payment,18.72,0,VENDOR
04-04-2022,Adults & Health,Redspot Care Ltd.,Daycare - Private Contractors Payment,18.72,0,VENDOR
04-04-2022,Adults & Health,Redspot Care Ltd.,Home Care - Private Contractors Payment,360.36,0,VENDOR
04-04-2022,Adults & Health,Redspot Care Ltd.,Home Care - Private Contractors Payment,18.72,0,VENDOR
04-04-2022,Adults & Health,Redspot Care Ltd.,Daycare - Private Contractors Payment,18.72,0,VENDOR
04-04-2022,Adults & Health,Redspot Care Ltd.,Home Care - Private Contractors Payment,360.36,0,VENDOR
04-04-2022,Adults & Health,Redspot Care Ltd.,Home Care - Private Contractors Payment,18.72,0,VENDOR
04-04-2022,Adults & Health,Redspot Care Ltd.,Home Care - Private Contractors Payment,458.64,0,VENDOR
04-04-2022,Adults & Health,Redspot Care Ltd.,Home Care - Private Contractors Payment,458.64,0,VENDOR
04-04-2022,Adults & Health,Redspot Care Ltd.,Home Care - Private Contractors Payment,458.64,0,VENDOR
04-04-2022,Adults & Health,Redspot Care Ltd.,Home Care - Private Contractors Payment,458.64,0,VENDOR
04-04-2022,Adults & Health,Redspot Care Ltd.,Home Care - Private Contractors Payment,18.72,0,VENDOR
04-04-2022,Adults & Health,Redspot Care Ltd.,Home Care - Private Contractors Payment,18.72,0,VENDOR
04-04-2022,Adults & Health,Redspot Care Ltd.,Home Care - Private Contractors Payment,98.28,0,VENDOR
04-04-2022,Adults & Health,Redspot Care Ltd.,Home Care - Private Contractors Payment,18.72,0,VENDOR
04-04-2022,Adults & Health,Redspot Care Ltd.,Home Care - Private Contractors Payment,18.72,0,VENDOR
04-04-2022,Adults & Health,Redspot Care Ltd.,Home Care - Private Contractors Payment,98.28,0,VENDOR
04-04-2022,Adults & Health,Redspot Care Ltd.,Home Care - Private Contractors Payment,18.72,0,VENDOR
04-04-2022,Adults & Health,Redspot Care Ltd.,Home Care - Private Contractors Payment,18.72,0,VENDOR
04-04-2022,Adults & Health,Redspot Care Ltd.,Home Care - Private Contractors Payment,18.72,0,VENDOR
04-04-2022,Adults & Health,Redspot Care Ltd.,Home Care - Private Contractors Payment,42.12,0,VENDOR
04-04-2022,Adults & Health,Redspot Care Ltd.,Home Care - Private Contractors Payment,98.28,0,VENDOR
04-04-2022,Adults & Health,Redspot Care Ltd.,Home Care - Private Contractors Payment,18.72,0,VENDOR
04-04-2022,Adults & Health,Redspot Care Ltd.,Home Care - Private Contractors Payment,98.28,0,VENDOR
04-04-2022,Adults & Health,Redspot Care Ltd.,Daycare - Private Contractors Payment,28.08,0,VENDOR
04-04-2022,Adults & Health,Redspot Care Ltd.,Home Care - Private Contractors Payment,65.52,0,VENDOR
04-04-2022,Adults & Health,Redspot Care Ltd.,Daycare - Private Contractors Payment,28.08,0,VENDOR
04-04-2022,Adults & Health,Redspot Care Ltd.,Home Care - Private Contractors Payment,65.52,0,VENDOR
04-04-2022,Adults & Health,Redspot Care Ltd.,Daycare - Private Contractors Payment,28.08,0,VENDOR
04-04-2022,Adults & Health,Redspot Care Ltd.,Home Care - Private Contractors Payment,65.52,0,VENDOR
04-04-2022,Adults & Health,Redspot Care Ltd.,Daycare - Private Contractors Payment,28.08,0,VENDOR
04-04-2022,Adults & Health,Redspot Care Ltd.,Home Care - Private Contractors Payment,65.52,0,VENDOR
04-04-2022,Adults & Health,Redspot Care Ltd.,Home Care - Private Contractors Payment,56.16,0,VENDOR
04-04-2022,Adults & Health,Redspot Care Ltd.,Home Care - Private Contractors Payment,65.52,0,VENDOR
04-04-2022,Adults & Health,Redspot Care Ltd.,Home Care - Private Contractors Payment,56.16,0,VENDOR
04-04-2022,Adults & Health,Redspot Care Ltd.,Home Care - Private Contractors Payment,65.52,0,VENDOR
04-04-2022,Adults & Health,Redspot Care Ltd.,Home Care - Private Contractors Payment,56.16,0,VENDOR
04-04-2022,Adults & Health,Redspot Care Ltd.,Home Care - Private Contractors Payment,65.52,0,VENDOR
04-04-2022,Adults & Health,Redspot Care Ltd.,Home Care - Private Contractors Payment,65.52,0,VENDOR
04-04-2022,Adults & Health,Redspot Care Ltd.,Home Care - Private Contractors Payment,56.16,0,VENDOR
04-04-2022,Adults & Health,Redspot Care Ltd.,Home Care - Private Contractors Payment,229.32,0,VENDOR
04-04-2022,Adults & Health,Redspot Care Ltd.,Home Care - Private Contractors Payment,229.32,0,VENDOR
04-04-2022,Adults & Health,Redspot Care Ltd.,Home Care - Private Contractors Payment,229.32,0,VENDOR
04-04-2022,Adults & Health,Redspot Care Ltd.,Home Care - Private Contractors Payment,42.12,0,VENDOR
04-04-2022,Adults & Health,Redspot Care Ltd.,Home Care - Private Contractors Payment,131.04,0,VENDOR
04-04-2022,Adults & Health,Redspot Care Ltd.,Home Care - Private Contractors Payment,131.04,0,VENDOR
04-04-2022,Adults & Health,Redspot Care Ltd.,Home Care - Private Contractors Payment,131.04,0,VENDOR
04-04-2022,Adults & Health,Redspot Care Ltd.,Home Care - Private Contractors Payment,65.52,0,VENDOR
04-04-2022,Adults & Health,Redspot Care Ltd.,Home Care - Private Contractors Payment,65.52,0,VENDOR
04-04-2022,Adults & Health,Redspot Care Ltd.,Home Care - Private Contractors Payment,65.52,0,VENDOR
04-04-2022,Adults & Health,Redspot Care Ltd.,Home Care - Private Contractors Payment,65.52,0,VENDOR
04-04-2022,Adults & Health,Redspot Care Ltd.,Home Care - Private Contractors Payment,117,0,VENDOR
04-04-2022,Adults & Health,Redspot Care Ltd.,Home Care - Private Contractors Payment,360.36,0,VENDOR
04-04-2022,Adults & Health,Redspot Care Ltd.,Home Care - Private Contractors Payment,360.36,0,VENDOR
04-04-2022,Adults & Health,Redspot Care Ltd.,Home Care - Private Contractors Payment,360.36,0,VENDOR
04-04-2022,Adults & Health,Redspot Care Ltd.,Home Care - Private Contractors Payment,229.32,0,VENDOR
04-04-2022,Adults & Health,Redspot Care Ltd.,Home Care - Private Contractors Payment,229.32,0,VENDOR
04-04-2022,Adults & Health,Redspot Care Ltd.,Home Care - Private Contractors Payment,229.32,0,VENDOR
04-04-2022,Adults & Health,Redspot Care Ltd.,Home Care - Private Contractors Payment,229.32,0,VENDOR
04-04-2022,Adults & Health,Redspot Care Ltd.,Home Care - Private Contractors Payment,589.68,0,VENDOR
04-04-2022,Adults & Health,Redspot Care Ltd.,Home Care - Private Contractors Payment,655.2,0,VENDOR
04-04-2022,Adults & Health,Redspot Care Ltd.,Home Care - Private Contractors Payment,655.2,0,VENDOR
04-04-2022,Adults & Health,Redspot Care Ltd.,Home Care - Private Contractors Payment,655.2,0,VENDOR
04-04-2022,Adults & Health,Redspot Care Ltd.,Home Care - Private Contractors Payment,196.56,0,VENDOR
04-04-2022,Adults & Health,Redspot Care Ltd.,Home Care - Private Contractors Payment,196.56,0,VENDOR
04-04-2022,Adults & Health,Redspot Care Ltd.,Home Care - Private Contractors Payment,196.56,0,VENDOR
04-04-2022,Adults & Health,Redspot Care Ltd.,Home Care - Private Contractors Payment,196.56,0,VENDOR
04-04-2022,"People, Policy and Performance",Personal Information - Redacted,Events,1990,0,COMMERCIAL SUPPLIER
04-04-2022,Adults & Health,Four Seasons (N0.10) Limited Re.Summerdale Court Care Home,Residential Placements - Private Contractors Payment,821.9,0,VENDOR
04-04-2022,Adults & Health,Ashbrook Court Care Home,Residential Placements - Private Contractors Payment,950,0,NON COMMERCIAL SUPPLIER
04-04-2022,Adults & Health,Ashbrook Court Care Home,Residential Placements - Private Contractors Payment,950,0,NON COMMERCIAL SUPPLIER
04-04-2022,Adults & Health,Ashbrook Court Care Home,Residential Placements - Private Contractors Payment,950,0,NON COMMERCIAL SUPPLIER
04-04-2022,Adults & Health,Ashbrook Court Care Home,Residential Placements - Private Contractors Payment,950,0,NON COMMERCIAL SUPPLIER
04-04-2022,Adults & Health,Ashbrook Court Care Home,Residential Placements - Private Contractors Payment,950,0,NON COMMERCIAL SUPPLIER
04-04-2022,Adults & Health,Ashbrook Court Care Home,Residential Placements - Private Contractors Payment,950,0,NON COMMERCIAL SUPPLIER
04-04-2022,Adults & Health,Ashbrook Court Care Home,Residential Placements - Private Contractors Payment,950,0,NON COMMERCIAL SUPPLIER
04-04-2022,Adults & Health,Ashbrook Court Care Home,Residential Placements - Private Contractors Payment,950,0,NON COMMERCIAL SUPPLIER
04-04-2022,Adults & Health,Ashbrook Court Care Home,Residential Placements - Private Contractors Payment,950,0,NON COMMERCIAL SUPPLIER
04-04-2022,Adults & Health,Ashbrook Court Care Home,Residential Placements - Private Contractors Payment,950,0,NON COMMERCIAL SUPPLIER
04-04-2022,Adults & Health,Ashbrook Court Care Home,Residential Placements - Private Contractors Payment,950,0,NON COMMERCIAL SUPPLIER
04-04-2022,Adults & Health,Ashbrook Court Care Home,Residential Placements - Private Contractors Payment,950,0,NON COMMERCIAL SUPPLIER
04-04-2022,Adults & Health,Ashbrook Court Care Home,Residential Placements - Private Contractors Payment,542.86,0,NON COMMERCIAL SUPPLIER
04-04-2022,Adults & Health,Ashbrook Court Care Home,Residential Placements - Private Contractors Payment,950,0,NON COMMERCIAL SUPPLIER
04-04-2022,Adults & Health,Ashbrook Court Care Home,Residential Placements - Private Contractors Payment,950,0,NON COMMERCIAL SUPPLIER
04-04-2022,Adults & Health,Ashbrook Court Care Home,Residential Placements - Private Contractors Payment,950,0,NON COMMERCIAL SUPPLIER
04-04-2022,Adults & Health,Ashbrook Court Care Home,Residential Placements - Private Contractors Payment,950,0,NON COMMERCIAL SUPPLIER
04-04-2022,Adults & Health,Ashbrook Court Care Home,Residential Placements - Private Contractors Payment,950,0,NON COMMERCIAL SUPPLIER
04-04-2022,Adults & Health,Ashbrook Court Care Home,Residential Placements - Private Contractors Payment,950,0,NON COMMERCIAL SUPPLIER
04-04-2022,Adults & Health,Ashbrook Court Care Home,Residential Placements - Private Contractors Payment,950,0,NON COMMERCIAL SUPPLIER
04-04-2022,Adults & Health,Ashbrook Court Care Home,Residential Placements - Private Contractors Payment,950,0,NON COMMERCIAL SUPPLIER
04-04-2022,Adults & Health,Ashbrook Court Care Home,Residential Placements - Private Contractors Payment,950,0,NON COMMERCIAL SUPPLIER
04-04-2022,Adults & Health,Ashbrook Court Care Home,Residential Placements - Private Contractors Payment,950,0,NON COMMERCIAL SUPPLIER
04-04-2022,Adults & Health,Ashbrook Court Care Home,Residential Placements - Private Contractors Payment,950,0,NON COMMERCIAL SUPPLIER
04-04-2022,Adults & Health,Ashbrook Court Care Home,Residential Placements - Private Contractors Payment,950,0,NON COMMERCIAL SUPPLIER
04-04-2022,Adults & Health,Ashbrook Court Care Home,Residential Placements - Private Contractors Payment,950,0,NON COMMERCIAL SUPPLIER
04-04-2022,Adults & Health,Ashbrook Court Care Home,Residential Placements - Private Contractors Payment,950,0,NON COMMERCIAL SUPPLIER
04-04-2022,Adults & Health,Ashbrook Court Care Home,Residential Placements - Private Contractors Payment,950,0,NON COMMERCIAL SUPPLIER
04-04-2022,Adults & Health,Ashbrook Court Care Home,Residential Placements - Private Contractors Payment,950,0,NON COMMERCIAL SUPPLIER
04-04-2022,Adults & Health,Ashbrook Court Care Home,Residential Placements - Private Contractors Payment,950,0,NON COMMERCIAL SUPPLIER
04-04-2022,Adults & Health,Ashbrook Court Care Home,Residential Placements - Private Contractors Payment,950,0,NON COMMERCIAL SUPPLIER
04-04-2022,Adults & Health,Four Seasons (N0.10) Limited Re.Summerdale Court Care Home,Residential Placements - Private Contractors Payment,603.9,0,VENDOR
04-04-2022,Adults & Health,Four Seasons (N0.10) Limited Re.Summerdale Court Care Home,Residential Care Income,-345.09,0,VENDOR
04-04-2022,Adults & Health,Four Seasons (N0.10) Limited Re.Summerdale Court Care Home,Residential Placements - Private Contractors Payment,603.9,0,VENDOR
04-04-2022,Adults & Health,Four Seasons (N0.10) Limited Re.Summerdale Court Care Home,Residential Placements - Private Contractors Payment,603.9,0,VENDOR
04-04-2022,Adults & Health,Four Seasons (N0.10) Limited Re.Summerdale Court Care Home,Residential Placements - Private Contractors Payment,338.08,0,VENDOR
04-04-2022,Adults & Health,Oakwood Lodge,Residential Placements - Private Contractors Payment,1050,0,VENDOR
04-04-2022,Adults & Health,Oakwood Lodge,Residential Placements - Private Contractors Payment,1050,0,VENDOR
04-04-2022,Adults & Health,Oakwood Lodge,Residential Placements - Private Contractors Payment,900,0,VENDOR
04-04-2022,Adults & Health,Oakwood Lodge,Residential Placements - Private Contractors Payment,1050,0,VENDOR
04-04-2022,Adults & Health,Four Seasons (N0.10) Limited Re.Summerdale Court Care Home,Nursing Homes - Private Contractors Payment,835.15,0,VENDOR
04-04-2022,Adults & Health,Four Seasons (N0.10) Limited Re.Summerdale Court Care Home,Nursing Homes - Private Contractors Payment,835.15,0,VENDOR
04-04-2022,Adults & Health,Four Seasons (N0.10) Limited Re.Summerdale Court Care Home,Nursing Homes - Private Contractors Payment,835.15,0,VENDOR
04-04-2022,Adults & Health,Four Seasons (N0.10) Limited Re.Summerdale Court Care Home,Nursing Homes - Private Contractors Payment,835.15,0,VENDOR
04-04-2022,Adults & Health,Four Seasons (N0.10) Limited Re.Summerdale Court Care Home,Nursing Homes - Private Contractors Payment,715.84,0,VENDOR
04-04-2022,Adults & Health,Four Seasons (N0.10) Limited Re.Summerdale Court Care Home,Nursing Homes - Private Contractors Payment,357.92,0,VENDOR
04-04-2022,Adults & Health,Four Seasons (N0.10) Limited Re.Summerdale Court Care Home,Nursing Homes - Private Contractors Payment,647.66,0,VENDOR
04-04-2022,Adults & Health,Four Seasons (N0.10) Limited Re.Summerdale Court Care Home,Nursing Homes - Private Contractors Payment,462.61,0,VENDOR
04-04-2022,Adults & Health,Four Seasons (N0.10) Limited Re.Summerdale Court Care Home,Nursing Homes - Private Contractors Payment,647.66,0,VENDOR
04-04-2022,Adults & Health,Four Seasons (N0.10) Limited Re.Summerdale Court Care Home,Nursing Homes - Private Contractors Payment,647.66,0,VENDOR
04-04-2022,Adults & Health,Four Seasons (N0.10) Limited Re.Summerdale Court Care Home,Nursing Homes - Private Contractors Payment,647.66,0,VENDOR
04-04-2022,Adults & Health,Four Seasons (N0.10) Limited Re.Summerdale Court Care Home,Nursing Homes - Private Contractors Payment,647.66,0,VENDOR
04-04-2022,Adults & Health,Four Seasons (N0.10) Limited Re.Summerdale Court Care Home,Nursing Homes - Private Contractors Payment,647.66,0,VENDOR
04-04-2022,Adults & Health,Four Seasons (N0.10) Limited Re.Summerdale Court Care Home,Nursing Homes - Private Contractors Payment,647.66,0,VENDOR
04-04-2022,Adults & Health,Four Seasons (N0.10) Limited Re.Summerdale Court Care Home,Nursing Homes - Private Contractors Payment,647.66,0,VENDOR
04-04-2022,Adults & Health,Four Seasons (N0.10) Limited Re.Summerdale Court Care Home,Nursing Homes - Private Contractors Payment,647.66,0,VENDOR
04-04-2022,Adults & Health,Four Seasons (N0.10) Limited Re.Summerdale Court Care Home,Nursing Homes - Private Contractors Payment,647.66,0,VENDOR
04-04-2022,Adults & Health,Four Seasons (N0.10) Limited Re.Summerdale Court Care Home,Nursing Homes - Private Contractors Payment,647.66,0,VENDOR
04-04-2022,Adults & Health,Four Seasons (N0.10) Limited Re.Summerdale Court Care Home,Nursing Homes - Private Contractors Payment,647.66,0,VENDOR
04-04-2022,Adults & Health,Four Seasons (N0.10) Limited Re.Summerdale Court Care Home,Nursing Homes - Private Contractors Payment,647.66,0,VENDOR
04-04-2022,Adults & Health,Four Seasons (N0.10) Limited Re.Summerdale Court Care Home,Nursing Homes - Private Contractors Payment,647.66,0,VENDOR
04-04-2022,Adults & Health,Four Seasons (N0.10) Limited Re.Summerdale Court Care Home,Nursing Homes - Private Contractors Payment,647.66,0,VENDOR
04-04-2022,Adults & Health,Four Seasons (N0.10) Limited Re.Summerdale Court Care Home,Residential Placements - Private Contractors Payment,600.51,0,VENDOR
04-04-2022,Adults & Health,Four Seasons (N0.10) Limited Re.Summerdale Court Care Home,Residential Placements - Private Contractors Payment,600.51,0,VENDOR
04-04-2022,Adults & Health,Four Seasons (N0.10) Limited Re.Summerdale Court Care Home,Residential Placements - Private Contractors Payment,600.51,0,VENDOR
04-04-2022,Adults & Health,Four Seasons (N0.10) Limited Re.Summerdale Court Care Home,Residential Placements - Private Contractors Payment,600.51,0,VENDOR
04-04-2022,Adults & Health,Four Seasons (N0.10) Limited Re.Summerdale Court Care Home,Nursing Homes - Private Contractors Payment,617.43,0,VENDOR
04-04-2022,Adults & Health,Four Seasons (N0.10) Limited Re.Summerdale Court Care Home,Residential Placements - Private Contractors Payment,600.51,0,VENDOR
04-04-2022,Adults & Health,Four Seasons (N0.10) Limited Re.Summerdale Court Care Home,Residential Placements - Private Contractors Payment,600.51,0,VENDOR
04-04-2022,Adults & Health,Four Seasons (N0.10) Limited Re.Summerdale Court Care Home,Residential Placements - Private Contractors Payment,600.51,0,VENDOR
04-04-2022,Adults & Health,Four Seasons (N0.10) Limited Re.Summerdale Court Care Home,Residential Placements - Private Contractors Payment,600.51,0,VENDOR
04-04-2022,Adults & Health,Four Seasons (N0.10) Limited Re.Summerdale Court Care Home,Residential Placements - Private Contractors Payment,600.51,0,VENDOR
04-04-2022,Adults & Health,Four Seasons (N0.10) Limited Re.Summerdale Court Care Home,Nursing Homes - Private Contractors Payment,617.43,0,VENDOR
04-04-2022,Adults & Health,Four Seasons (N0.10) Limited Re.Summerdale Court Care Home,Residential Placements - Private Contractors Payment,600.51,0,VENDOR
04-04-2022,Adults & Health,Four Seasons (N0.10) Limited Re.Summerdale Court Care Home,Residential Placements - Private Contractors Payment,600.51,0,VENDOR
04-04-2022,Adults & Health,Four Seasons (N0.10) Limited Re.Summerdale Court Care Home,Nursing Homes - Private Contractors Payment,617.43,0,VENDOR
04-04-2022,Adults & Health,Four Seasons (N0.10) Limited Re.Summerdale Court Care Home,Residential Placements - Private Contractors Payment,600.51,0,VENDOR
04-04-2022,Adults & Health,Four Seasons (N0.10) Limited Re.Summerdale Court Care Home,Residential Placements - Private Contractors Payment,600.51,0,VENDOR
04-04-2022,Adults & Health,Four Seasons (N0.10) Limited Re.Summerdale Court Care Home,Residential Placements - Private Contractors Payment,600.51,0,VENDOR
04-04-2022,Adults & Health,Four Seasons (N0.10) Limited Re.Summerdale Court Care Home,Residential Placements - Private Contractors Payment,600.51,0,VENDOR
04-04-2022,Adults & Health,Four Seasons (N0.10) Limited Re.Summerdale Court Care Home,Nursing Homes - Private Contractors Payment,617.43,0,VENDOR
04-04-2022,Adults & Health,Four Seasons (N0.10) Limited Re.Summerdale Court Care Home,Residential Placements - Private Contractors Payment,600.51,0,VENDOR
04-04-2022,Adults & Health,Four Seasons (N0.10) Limited Re.Summerdale Court Care Home,Residential Placements - Private Contractors Payment,600.51,0,VENDOR
04-04-2022,Adults & Health,Four Seasons (N0.10) Limited Re.Summerdale Court Care Home,Residential Placements - Private Contractors Payment,600.51,0,VENDOR
04-04-2022,Adults & Health,Four Seasons (N0.10) Limited Re.Summerdale Court Care Home,Residential Placements - Private Contractors Payment,600.51,0,VENDOR
04-04-2022,Adults & Health,Four Seasons (N0.10) Limited Re.Summerdale Court Care Home,Residential Placements - Private Contractors Payment,600.51,0,VENDOR
04-04-2022,Adults & Health,Four Seasons (N0.10) Limited Re.Summerdale Court Care Home,Residential Placements - Private Contractors Payment,600.51,0,VENDOR
04-04-2022,Adults & Health,Four Seasons (N0.10) Limited Re.Summerdale Court Care Home,Nursing Homes - Private Contractors Payment,617.43,0,VENDOR
04-04-2022,Adults & Health,Four Seasons (N0.10) Limited Re.Summerdale Court Care Home,Residential Placements - Private Contractors Payment,600.51,0,VENDOR
04-04-2022,Adults & Health,Four Seasons (N0.10) Limited Re.Summerdale Court Care Home,Residential Placements - Private Contractors Payment,600.51,0,VENDOR
04-04-2022,Adults & Health,Four Seasons (N0.10) Limited Re.Summerdale Court Care Home,Residential Placements - Private Contractors Payment,600.51,0,VENDOR
04-04-2022,Adults & Health,Four Seasons (N0.10) Limited Re.Summerdale Court Care Home,Residential Placements - Private Contractors Payment,600.51,0,VENDOR
04-04-2022,Adults & Health,Four Seasons (N0.10) Limited Re.Summerdale Court Care Home,Residential Placements - Private Contractors Payment,600.51,0,VENDOR
04-04-2022,Adults & Health,Four Seasons (N0.10) Limited Re.Summerdale Court Care Home,Residential Placements - Private Contractors Payment,600.51,0,VENDOR
04-04-2022,Adults & Health,Four Seasons (N0.10) Limited Re.Summerdale Court Care Home,Nursing Homes - Private Contractors Payment,617.43,0,VENDOR
04-04-2022,Adults & Health,Four Seasons (N0.10) Limited Re.Summerdale Court Care Home,Nursing Homes - Private Contractors Payment,617.43,0,VENDOR
04-04-2022,Adults & Health,Four Seasons (N0.10) Limited Re.Summerdale Court Care Home,Nursing Homes - Private Contractors Payment,617.43,0,VENDOR
04-04-2022,Adults & Health,Four Seasons (N0.10) Limited Re.Summerdale Court Care Home,Residential Placements - Private Contractors Payment,600.51,0,VENDOR
04-04-2022,Adults & Health,Four Seasons (N0.10) Limited Re.Summerdale Court Care Home,Nursing Homes - Private Contractors Payment,617.43,0,VENDOR
04-04-2022,Adults & Health,Four Seasons (N0.10) Limited Re.Summerdale Court Care Home,Residential Placements - Private Contractors Payment,600.51,0,VENDOR
04-04-2022,Adults & Health,Four Seasons (N0.10) Limited Re.Summerdale Court Care Home,Nursing Homes - Private Contractors Payment,617.43,0,VENDOR
04-04-2022,Adults & Health,Four Seasons (N0.10) Limited Re.Summerdale Court Care Home,Residential Placements - Private Contractors Payment,600.51,0,VENDOR
04-04-2022,Adults & Health,Four Seasons (N0.10) Limited Re.Summerdale Court Care Home,Residential Placements - Private Contractors Payment,600.51,0,VENDOR
04-04-2022,Adults & Health,Four Seasons (N0.10) Limited Re.Summerdale Court Care Home,Residential Placements - Private Contractors Payment,600.51,0,VENDOR
04-04-2022,Adults & Health,Four Seasons (N0.10) Limited Re.Summerdale Court Care Home,Residential Placements - Private Contractors Payment,600.51,0,VENDOR
04-04-2022,Adults & Health,Four Seasons (N0.10) Limited Re.Summerdale Court Care Home,Residential Placements - Private Contractors Payment,600.51,0,VENDOR
04-04-2022,Adults & Health,Four Seasons (N0.10) Limited Re.Summerdale Court Care Home,Nursing Homes - Private Contractors Payment,617.43,0,VENDOR
04-04-2022,Adults & Health,Four Seasons (N0.10) Limited Re.Summerdale Court Care Home,Residential Placements - Private Contractors Payment,600.51,0,VENDOR
04-04-2022,Adults & Health,Four Seasons (N0.10) Limited Re.Summerdale Court Care Home,Residential Placements - Private Contractors Payment,600.51,0,VENDOR
04-04-2022,Adults & Health,Four Seasons (N0.10) Limited Re.Summerdale Court Care Home,Residential Placements - Private Contractors Payment,600.51,0,VENDOR
04-04-2022,Adults & Health,Four Seasons (N0.10) Limited Re.Summerdale Court Care Home,Residential Placements - Private Contractors Payment,600.51,0,VENDOR
04-04-2022,Adults & Health,Four Seasons (N0.10) Limited Re.Summerdale Court Care Home,Residential Placements - Private Contractors Payment,600.51,0,VENDOR
04-04-2022,Adults & Health,Four Seasons (N0.10) Limited Re.Summerdale Court Care Home,Residential Placements - Private Contractors Payment,600.51,0,VENDOR
04-04-2022,Adults & Health,Four Seasons (N0.10) Limited Re.Summerdale Court Care Home,Nursing Homes - Private Contractors Payment,617.43,0,VENDOR
04-04-2022,Adults & Health,Four Seasons (N0.10) Limited Re.Summerdale Court Care Home,Residential Placements - Private Contractors Payment,600.51,0,VENDOR
04-04-2022,Adults & Health,Four Seasons (N0.10) Limited Re.Summerdale Court Care Home,Residential Placements - Private Contractors Payment,600.51,0,VENDOR
04-04-2022,Adults & Health,Four Seasons (N0.10) Limited Re.Summerdale Court Care Home,Residential Placements - Private Contractors Payment,600.51,0,VENDOR
04-04-2022,Adults & Health,Four Seasons (N0.10) Limited Re.Summerdale Court Care Home,Residential Placements - Private Contractors Payment,600.51,0,VENDOR
04-04-2022,Adults & Health,Four Seasons (N0.10) Limited Re.Summerdale Court Care Home,Residential Placements - Private Contractors Payment,600.51,0,VENDOR
04-04-2022,Adults & Health,Four Seasons (N0.10) Limited Re.Summerdale Court Care Home,Residential Placements - Private Contractors Payment,600.51,0,VENDOR
04-04-2022,Adults & Health,Four Seasons (N0.10) Limited Re.Summerdale Court Care Home,Nursing Homes - Private Contractors Payment,617.43,0,VENDOR
04-04-2022,Adults & Health,Four Seasons (N0.10) Limited Re.Summerdale Court Care Home,Residential Placements - Private Contractors Payment,600.51,0,VENDOR
04-04-2022,Adults & Health,Four Seasons (N0.10) Limited Re.Summerdale Court Care Home,Residential Placements - Private Contractors Payment,600.51,0,VENDOR
04-04-2022,Adults & Health,Four Seasons (N0.10) Limited Re.Summerdale Court Care Home,Residential Placements - Private Contractors Payment,600.51,0,VENDOR
04-04-2022,Adults & Health,Four Seasons (N0.10) Limited Re.Summerdale Court Care Home,Residential Placements - Private Contractors Payment,600.51,0,VENDOR
04-04-2022,Adults & Health,Four Seasons (N0.10) Limited Re.Summerdale Court Care Home,Residential Placements - Private Contractors Payment,600.51,0,VENDOR
04-04-2022,Adults & Health,Four Seasons (N0.10) Limited Re.Summerdale Court Care Home,Residential Placements - Private Contractors Payment,600.51,0,VENDOR
04-04-2022,Adults & Health,Four Seasons (N0.10) Limited Re.Summerdale Court Care Home,Nursing Homes - Private Contractors Payment,617.43,0,VENDOR
04-04-2022,Adults & Health,Four Seasons (N0.10) Limited Re.Summerdale Court Care Home,Residential Placements - Private Contractors Payment,600.51,0,VENDOR
04-04-2022,Adults & Health,Four Seasons (N0.10) Limited Re.Summerdale Court Care Home,Residential Placements - Private Contractors Payment,600.51,0,VENDOR
04-04-2022,Adults & Health,Four Seasons (N0.10) Limited Re.Summerdale Court Care Home,Nursing Homes - Private Contractors Payment,617.43,0,VENDOR
04-04-2022,Adults & Health,Four Seasons (N0.10) Limited Re.Summerdale Court Care Home,Nursing Homes - Private Contractors Payment,617.43,0,VENDOR
04-04-2022,Adults & Health,Four Seasons (N0.10) Limited Re.Summerdale Court Care Home,Nursing Homes - Private Contractors Payment,617.43,0,VENDOR
04-04-2022,Adults & Health,Four Seasons (N0.10) Limited Re.Summerdale Court Care Home,Nursing Homes - Private Contractors Payment,617.43,0,VENDOR
04-04-2022,Adults & Health,Four Seasons (N0.10) Limited Re.Summerdale Court Care Home,Nursing Homes - Private Contractors Payment,617.43,0,VENDOR
04-04-2022,Adults & Health,Four Seasons (N0.10) Limited Re.Summerdale Court Care Home,Residential Placements - Private Contractors Payment,600.51,0,VENDOR
04-04-2022,Adults & Health,Four Seasons (N0.10) Limited Re.Summerdale Court Care Home,Residential Placements - Private Contractors Payment,600.51,0,VENDOR
04-04-2022,Adults & Health,Four Seasons (N0.10) Limited Re.Summerdale Court Care Home,Nursing Homes - Private Contractors Payment,617.43,0,VENDOR
04-04-2022,Adults & Health,Four Seasons (N0.10) Limited Re.Summerdale Court Care Home,Residential Placements - Private Contractors Payment,600.51,0,VENDOR
04-04-2022,Adults & Health,Four Seasons (N0.10) Limited Re.Summerdale Court Care Home,Residential Placements - Private Contractors Payment,600.51,0,VENDOR
04-04-2022,Adults & Health,Four Seasons (N0.10) Limited Re.Summerdale Court Care Home,Residential Placements - Private Contractors Payment,600.51,0,VENDOR
04-04-2022,Adults & Health,Four Seasons (N0.10) Limited Re.Summerdale Court Care Home,Residential Placements - Private Contractors Payment,600.51,0,VENDOR
04-04-2022,Adults & Health,Four Seasons (N0.10) Limited Re.Summerdale Court Care Home,Residential Placements - Private Contractors Payment,600.51,0,VENDOR
04-04-2022,Adults & Health,Four Seasons (N0.10) Limited Re.Summerdale Court Care Home,Residential Placements - Private Contractors Payment,600.51,0,VENDOR
04-04-2022,Adults & Health,Four Seasons (N0.10) Limited Re.Summerdale Court Care Home,Residential Placements - Private Contractors Payment,600.51,0,VENDOR
04-04-2022,Adults & Health,Four Seasons (N0.10) Limited Re.Summerdale Court Care Home,Nursing Homes - Private Contractors Payment,617.43,0,VENDOR
04-04-2022,Adults & Health,Four Seasons (N0.10) Limited Re.Summerdale Court Care Home,Residential Placements - Private Contractors Payment,600.51,0,VENDOR
04-04-2022,Adults & Health,Four Seasons (N0.10) Limited Re.Summerdale Court Care Home,Residential Placements - Private Contractors Payment,600.51,0,VENDOR
04-04-2022,Adults & Health,Four Seasons (N0.10) Limited Re.Summerdale Court Care Home,Residential Placements - Private Contractors Payment,600.51,0,VENDOR
04-04-2022,Adults & Health,Four Seasons (N0.10) Limited Re.Summerdale Court Care Home,Residential Placements - Private Contractors Payment,600.51,0,VENDOR
04-04-2022,Adults & Health,Four Seasons (N0.10) Limited Re.Summerdale Court Care Home,Residential Placements - Private Contractors Payment,600.51,0,VENDOR
04-04-2022,Adults & Health,Four Seasons (N0.10) Limited Re.Summerdale Court Care Home,Residential Placements - Private Contractors Payment,600.51,0,VENDOR
04-04-2022,Adults & Health,Four Seasons (N0.10) Limited Re.Summerdale Court Care Home,Residential Placements - Private Contractors Payment,600.51,0,VENDOR
04-04-2022,Adults & Health,Four Seasons (N0.10) Limited Re.Summerdale Court Care Home,Residential Placements - Private Contractors Payment,600.51,0,VENDOR
04-04-2022,Adults & Health,Four Seasons (N0.10) Limited Re.Summerdale Court Care Home,Residential Placements - Private Contractors Payment,600.51,0,VENDOR
04-04-2022,Adults & Health,Four Seasons (N0.10) Limited Re.Summerdale Court Care Home,Residential Placements - Private Contractors Payment,600.51,0,VENDOR
04-04-2022,Adults & Health,Four Seasons (N0.10) Limited Re.Summerdale Court Care Home,Residential Placements - Private Contractors Payment,600.51,0,VENDOR
04-04-2022,Adults & Health,Four Seasons (N0.10) Limited Re.Summerdale Court Care Home,Residential Placements - Private Contractors Payment,600.51,0,VENDOR
04-04-2022,Adults & Health,Four Seasons (N0.10) Limited Re.Summerdale Court Care Home,Residential Placements - Private Contractors Payment,600.51,0,VENDOR
04-04-2022,Adults & Health,Four Seasons (N0.10) Limited Re.Summerdale Court Care Home,Residential Placements - Private Contractors Payment,600.51,0,VENDOR
04-04-2022,Adults & Health,Four Seasons (N0.10) Limited Re.Summerdale Court Care Home,Residential Placements - Private Contractors Payment,600.51,0,VENDOR
04-04-2022,Adults & Health,Four Seasons (N0.10) Limited Re.Summerdale Court Care Home,Residential Placements - Private Contractors Payment,600.51,0,VENDOR
04-04-2022,Adults & Health,Four Seasons (N0.10) Limited Re.Summerdale Court Care Home,Nursing Homes - Private Contractors Payment,617.43,0,VENDOR
04-04-2022,Adults & Health,Four Seasons (N0.10) Limited Re.Summerdale Court Care Home,Residential Placements - Private Contractors Payment,600.51,0,VENDOR
04-04-2022,Adults & Health,Four Seasons (N0.10) Limited Re.Summerdale Court Care Home,Residential Placements - Private Contractors Payment,600.51,0,VENDOR
04-04-2022,Adults & Health,Four Seasons (N0.10) Limited Re.Summerdale Court Care Home,Residential Placements - Private Contractors Payment,600.51,0,VENDOR
04-04-2022,Adults & Health,Four Seasons (N0.10) Limited Re.Summerdale Court Care Home,Nursing Homes - Private Contractors Payment,617.43,0,VENDOR
04-04-2022,Adults & Health,Four Seasons (N0.10) Limited Re.Summerdale Court Care Home,Nursing Homes - Private Contractors Payment,617.43,0,VENDOR
04-04-2022,Adults & Health,Four Seasons (N0.10) Limited Re.Summerdale Court Care Home,Nursing Homes - Private Contractors Payment,617.43,0,VENDOR
04-04-2022,Adults & Health,Four Seasons (N0.10) Limited Re.Summerdale Court Care Home,Nursing Homes - Private Contractors Payment,617.43,0,VENDOR
04-04-2022,Adults & Health,Four Seasons (N0.10) Limited Re.Summerdale Court Care Home,Residential Placements - Private Contractors Payment,600.51,0,VENDOR
04-04-2022,Adults & Health,Four Seasons (N0.10) Limited Re.Summerdale Court Care Home,Residential Placements - Private Contractors Payment,600.51,0,VENDOR
04-04-2022,Adults & Health,Four Seasons (N0.10) Limited Re.Summerdale Court Care Home,Residential Placements - Private Contractors Payment,600.51,0,VENDOR
04-04-2022,Adults & Health,Four Seasons (N0.10) Limited Re.Summerdale Court Care Home,Residential Placements - Private Contractors Payment,600.51,0,VENDOR
04-04-2022,Adults & Health,Four Seasons (N0.10) Limited Re.Summerdale Court Care Home,Residential Placements - Private Contractors Payment,600.51,0,VENDOR
04-04-2022,Adults & Health,Four Seasons (N0.10) Limited Re.Summerdale Court Care Home,Nursing Homes - Private Contractors Payment,617.43,0,VENDOR
04-04-2022,Adults & Health,Four Seasons (N0.10) Limited Re.Summerdale Court Care Home,Residential Placements - Private Contractors Payment,600.51,0,VENDOR
04-04-2022,Adults & Health,Four Seasons (N0.10) Limited Re.Summerdale Court Care Home,Residential Placements - Private Contractors Payment,600.51,0,VENDOR
04-04-2022,Adults & Health,Four Seasons (N0.10) Limited Re.Summerdale Court Care Home,Residential Placements - Private Contractors Payment,600.51,0,VENDOR
04-04-2022,Adults & Health,Four Seasons (N0.10) Limited Re.Summerdale Court Care Home,Residential Placements - Private Contractors Payment,600.51,0,VENDOR
04-04-2022,Adults & Health,Four Seasons (N0.10) Limited Re.Summerdale Court Care Home,Residential Placements - Private Contractors Payment,600.51,0,VENDOR
04-04-2022,Adults & Health,Four Seasons (N0.10) Limited Re.Summerdale Court Care Home,Residential Placements - Private Contractors Payment,600.51,0,VENDOR
04-04-2022,Adults & Health,Four Seasons (N0.10) Limited Re.Summerdale Court Care Home,Nursing Homes - Private Contractors Payment,617.43,0,VENDOR
04-04-2022,Adults & Health,Four Seasons (N0.10) Limited Re.Summerdale Court Care Home,Residential Placements - Private Contractors Payment,600.51,0,VENDOR
04-04-2022,Adults & Health,Four Seasons (N0.10) Limited Re.Summerdale Court Care Home,Residential Placements - Private Contractors Payment,600.51,0,VENDOR
04-04-2022,Adults & Health,Four Seasons (N0.10) Limited Re.Summerdale Court Care Home,Residential Placements - Private Contractors Payment,600.51,0,VENDOR
04-04-2022,Adults & Health,Four Seasons (N0.10) Limited Re.Summerdale Court Care Home,Residential Placements - Private Contractors Payment,600.51,0,VENDOR
04-04-2022,Adults & Health,Four Seasons (N0.10) Limited Re.Summerdale Court Care Home,Residential Placements - Private Contractors Payment,600.51,0,VENDOR
04-04-2022,Adults & Health,Four Seasons (N0.10) Limited Re.Summerdale Court Care Home,Residential Placements - Private Contractors Payment,600.51,0,VENDOR
04-04-2022,Adults & Health,Four Seasons (N0.10) Limited Re.Summerdale Court Care Home,Nursing Homes - Private Contractors Payment,617.43,0,VENDOR
04-04-2022,Adults & Health,Four Seasons (N0.10) Limited Re.Summerdale Court Care Home,Residential Placements - Private Contractors Payment,600.51,0,VENDOR
04-04-2022,Adults & Health,Four Seasons (N0.10) Limited Re.Summerdale Court Care Home,Residential Placements - Private Contractors Payment,600.51,0,VENDOR
04-04-2022,Adults & Health,Four Seasons (N0.10) Limited Re.Summerdale Court Care Home,Residential Placements - Private Contractors Payment,600.51,0,VENDOR
04-04-2022,Adults & Health,Four Seasons (N0.10) Limited Re.Summerdale Court Care Home,Residential Placements - Private Contractors Payment,600.51,0,VENDOR
04-04-2022,Adults & Health,Four Seasons (N0.10) Limited Re.Summerdale Court Care Home,Residential Placements - Private Contractors Payment,600.51,0,VENDOR
04-04-2022,Adults & Health,Four Seasons (N0.10) Limited Re.Summerdale Court Care Home,Nursing Homes - Private Contractors Payment,617.43,0,VENDOR
04-04-2022,Adults & Health,Four Seasons (N0.10) Limited Re.Summerdale Court Care Home,Residential Placements - Private Contractors Payment,600.51,0,VENDOR
04-04-2022,Adults & Health,Four Seasons (N0.10) Limited Re.Summerdale Court Care Home,Residential Placements - Private Contractors Payment,600.51,0,VENDOR
04-04-2022,Adults & Health,Four Seasons (N0.10) Limited Re.Summerdale Court Care Home,Residential Placements - Private Contractors Payment,600.51,0,VENDOR
04-04-2022,Adults & Health,Four Seasons (N0.10) Limited Re.Summerdale Court Care Home,Residential Placements - Private Contractors Payment,600.51,0,VENDOR
04-04-2022,Adults & Health,Four Seasons (N0.10) Limited Re.Summerdale Court Care Home,Residential Placements - Private Contractors Payment,600.51,0,VENDOR
04-04-2022,Adults & Health,Four Seasons (N0.10) Limited Re.Summerdale Court Care Home,Nursing Homes - Private Contractors Payment,617.43,0,VENDOR
04-04-2022,Adults & Health,Four Seasons (N0.10) Limited Re.Summerdale Court Care Home,Residential Placements - Private Contractors Payment,600.51,0,VENDOR
04-04-2022,Adults & Health,Four Seasons (N0.10) Limited Re.Summerdale Court Care Home,Nursing Homes - Private Contractors Payment,617.43,0,VENDOR
04-04-2022,Adults & Health,Four Seasons (N0.10) Limited Re.Summerdale Court Care Home,Nursing Homes - Private Contractors Payment,617.43,0,VENDOR
04-04-2022,Adults & Health,Four Seasons (N0.10) Limited Re.Summerdale Court Care Home,Nursing Homes - Private Contractors Payment,617.43,0,VENDOR
04-04-2022,Adults & Health,Four Seasons (N0.10) Limited Re.Summerdale Court Care Home,Nursing Homes - Private Contractors Payment,617.43,0,VENDOR
04-04-2022,Adults & Health,Four Seasons (N0.10) Limited Re.Summerdale Court Care Home,Nursing Homes - Private Contractors Payment,617.43,0,VENDOR
04-04-2022,Adults & Health,Four Seasons (N0.10) Limited Re.Summerdale Court Care Home,Residential Placements - Private Contractors Payment,600.51,0,VENDOR
04-04-2022,Adults & Health,Four Seasons (N0.10) Limited Re.Summerdale Court Care Home,Nursing Homes - Private Contractors Payment,617.43,0,VENDOR
04-04-2022,Adults & Health,Four Seasons (N0.10) Limited Re.Summerdale Court Care Home,Residential Placements - Private Contractors Payment,600.51,0,VENDOR
04-04-2022,Adults & Health,Four Seasons (N0.10) Limited Re.Summerdale Court Care Home,Residential Placements - Private Contractors Payment,600.51,0,VENDOR
04-04-2022,Adults & Health,Four Seasons (N0.10) Limited Re.Summerdale Court Care Home,Residential Placements - Private Contractors Payment,600.51,0,VENDOR
04-04-2022,Adults & Health,Four Seasons (N0.10) Limited Re.Summerdale Court Care Home,Residential Placements - Private Contractors Payment,600.51,0,VENDOR
04-04-2022,Adults & Health,Four Seasons (N0.10) Limited Re.Summerdale Court Care Home,Residential Placements - Private Contractors Payment,600.51,0,VENDOR
04-04-2022,Adults & Health,Four Seasons (N0.10) Limited Re.Summerdale Court Care Home,Nursing Homes - Private Contractors Payment,617.43,0,VENDOR
04-04-2022,Adults & Health,Four Seasons (N0.10) Limited Re.Summerdale Court Care Home,Residential Placements - Private Contractors Payment,600.51,0,VENDOR
04-04-2022,Adults & Health,Four Seasons (N0.10) Limited Re.Summerdale Court Care Home,Residential Placements - Private Contractors Payment,600.51,0,VENDOR
04-04-2022,Adults & Health,Four Seasons (N0.10) Limited Re.Summerdale Court Care Home,Residential Placements - Private Contractors Payment,600.51,0,VENDOR
04-04-2022,Adults & Health,Four Seasons (N0.10) Limited Re.Summerdale Court Care Home,Residential Placements - Private Contractors Payment,600.51,0,VENDOR
04-04-2022,Adults & Health,Four Seasons (N0.10) Limited Re.Summerdale Court Care Home,Residential Placements - Private Contractors Payment,600.51,0,VENDOR
04-04-2022,Adults & Health,Four Seasons (N0.10) Limited Re.Summerdale Court Care Home,Residential Placements - Private Contractors Payment,600.51,0,VENDOR
04-04-2022,Adults & Health,Four Seasons (N0.10) Limited Re.Summerdale Court Care Home,Residential Placements - Private Contractors Payment,600.51,0,VENDOR
04-04-2022,Adults & Health,Four Seasons (N0.10) Limited Re.Summerdale Court Care Home,Residential Placements - Private Contractors Payment,600.51,0,VENDOR
04-04-2022,Adults & Health,Four Seasons (N0.10) Limited Re.Summerdale Court Care Home,Residential Placements - Private Contractors Payment,600.51,0,VENDOR
04-04-2022,Adults & Health,Four Seasons (N0.10) Limited Re.Summerdale Court Care Home,Residential Placements - Private Contractors Payment,600.51,0,VENDOR
04-04-2022,Adults & Health,Four Seasons (N0.10) Limited Re.Summerdale Court Care Home,Nursing Homes - Private Contractors Payment,617.43,0,VENDOR
04-04-2022,Adults & Health,Four Seasons (N0.10) Limited Re.Summerdale Court Care Home,Residential Placements - Private Contractors Payment,600.51,0,VENDOR
04-04-2022,Adults & Health,Four Seasons (N0.10) Limited Re.Summerdale Court Care Home,Residential Placements - Private Contractors Payment,600.51,0,VENDOR
04-04-2022,Adults & Health,Four Seasons (N0.10) Limited Re.Summerdale Court Care Home,Residential Placements - Private Contractors Payment,600.51,0,VENDOR
04-04-2022,Adults & Health,Four Seasons (N0.10) Limited Re.Summerdale Court Care Home,Residential Placements - Private Contractors Payment,600.51,0,VENDOR
04-04-2022,Adults & Health,Four Seasons (N0.10) Limited Re.Summerdale Court Care Home,Residential Placements - Private Contractors Payment,600.51,0,VENDOR
04-04-2022,Adults & Health,Four Seasons (N0.10) Limited Re.Summerdale Court Care Home,Residential Placements - Private Contractors Payment,600.51,0,VENDOR
04-04-2022,Adults & Health,Four Seasons (N0.10) Limited Re.Summerdale Court Care Home,Nursing Homes - Private Contractors Payment,617.43,0,VENDOR
04-04-2022,Adults & Health,Four Seasons (N0.10) Limited Re.Summerdale Court Care Home,Residential Placements - Private Contractors Payment,600.51,0,VENDOR
04-04-2022,Adults & Health,Four Seasons (N0.10) Limited Re.Summerdale Court Care Home,Residential Placements - Private Contractors Payment,600.51,0,VENDOR
04-04-2022,Adults & Health,Four Seasons (N0.10) Limited Re.Summerdale Court Care Home,Residential Placements - Private Contractors Payment,600.51,0,VENDOR
04-04-2022,Adults & Health,Four Seasons (N0.10) Limited Re.Summerdale Court Care Home,Residential Placements - Private Contractors Payment,600.51,0,VENDOR
04-04-2022,Adults & Health,Four Seasons (N0.10) Limited Re.Summerdale Court Care Home,Residential Placements - Private Contractors Payment,600.51,0,VENDOR
04-04-2022,Adults & Health,Four Seasons (N0.10) Limited Re.Summerdale Court Care Home,Residential Placements - Private Contractors Payment,600.51,0,VENDOR
04-04-2022,Adults & Health,Four Seasons (N0.10) Limited Re.Summerdale Court Care Home,Nursing Homes - Private Contractors Payment,617.43,0,VENDOR
04-04-2022,Adults & Health,Four Seasons (N0.10) Limited Re.Summerdale Court Care Home,Nursing Homes - Private Contractors Payment,617.43,0,VENDOR
04-04-2022,Adults & Health,Four Seasons (N0.10) Limited Re.Summerdale Court Care Home,Nursing Homes - Private Contractors Payment,617.43,0,VENDOR
04-04-2022,Adults & Health,Four Seasons (N0.10) Limited Re.Summerdale Court Care Home,Nursing Homes - Private Contractors Payment,617.43,0,VENDOR
04-04-2022,Adults & Health,Four Seasons (N0.10) Limited Re.Summerdale Court Care Home,Nursing Homes - Private Contractors Payment,617.43,0,VENDOR
04-04-2022,Adults & Health,Four Seasons (N0.10) Limited Re.Summerdale Court Care Home,Nursing Homes - Private Contractors Payment,617.43,0,VENDOR
04-04-2022,Adults & Health,Voyage 1 Ltd,Supported Other Accommodation - Private Contractors Payment,1062.19,0,COMMERCIAL SUPPLIER
04-04-2022,Adults & Health,Four Seasons (N0.10) Limited Re.Summerdale Court Care Home,Nursing Homes - Private Contractors Payment,610.9,0,VENDOR
04-04-2022,Adults & Health,Four Seasons (N0.10) Limited Re.Summerdale Court Care Home,Residential Placements - Private Contractors Payment,568.91,0,VENDOR
04-04-2022,Adults & Health,Four Seasons (N0.10) Limited Re.Summerdale Court Care Home,Nursing Homes - Private Contractors Payment,610.9,0,VENDOR
04-04-2022,Adults & Health,Four Seasons (N0.10) Limited Re.Summerdale Court Care Home,Residential Care Income,-161.05,0,VENDOR
04-04-2022,Adults & Health,Four Seasons (N0.10) Limited Re.Summerdale Court Care Home,Nursing Homes - Private Contractors Payment,647.55,0,VENDOR
04-04-2022,Adults & Health,Four Seasons (N0.10) Limited Re.Summerdale Court Care Home,Residential Care Income,-161.05,0,VENDOR
04-04-2022,Adults & Health,Four Seasons (N0.10) Limited Re.Summerdale Court Care Home,Nursing Homes - Private Contractors Payment,647.55,0,VENDOR
04-04-2022,Adults & Health,Four Seasons (N0.10) Limited Re.Summerdale Court Care Home,Nursing Homes - Private Contractors Payment,610.9,0,VENDOR
04-04-2022,Adults & Health,Four Seasons (N0.10) Limited Re.Summerdale Court Care Home,Nursing Homes - Private Contractors Payment,610.9,0,VENDOR
04-04-2022,Adults & Health,Four Seasons (N0.10) Limited Re.Summerdale Court Care Home,Residential Care Income,-161.05,0,VENDOR
04-04-2022,Adults & Health,Four Seasons (N0.10) Limited Re.Summerdale Court Care Home,Nursing Homes - Private Contractors Payment,647.55,0,VENDOR
04-04-2022,Adults & Health,Four Seasons (N0.10) Limited Re.Summerdale Court Care Home,Residential Care Income,-161.05,0,VENDOR
04-04-2022,Adults & Health,Four Seasons (N0.10) Limited Re.Summerdale Court Care Home,Nursing Homes - Private Contractors Payment,647.55,0,VENDOR
04-04-2022,Adults & Health,Four Seasons (N0.10) Limited Re.Summerdale Court Care Home,Nursing Homes - Private Contractors Payment,610.9,0,VENDOR
04-04-2022,Adults & Health,Voyage 1 Ltd,Supported Other Accommodation - Private Contractors Payment,1062.19,0,COMMERCIAL SUPPLIER
04-04-2022,Adults & Health,Four Seasons (N0.10) Limited Re.Summerdale Court Care Home,Residential Placements - Private Contractors Payment,568.91,0,VENDOR
04-04-2022,Adults & Health,Four Seasons (N0.10) Limited Re.Summerdale Court Care Home,Residential Care Income,-152.2,0,VENDOR
04-04-2022,Adults & Health,Four Seasons (N0.10) Limited Re.Summerdale Court Care Home,Residential Care Income,-161.05,0,VENDOR
04-04-2022,Adults & Health,Four Seasons (N0.10) Limited Re.Summerdale Court Care Home,Nursing Homes - Private Contractors Payment,647.55,0,VENDOR
04-04-2022,Adults & Health,Four Seasons (N0.10) Limited Re.Summerdale Court Care Home,Nursing Homes - Private Contractors Payment,610.9,0,VENDOR
04-04-2022,Adults & Health,Four Seasons (N0.10) Limited Re.Summerdale Court Care Home,Residential Placements - Private Contractors Payment,568.91,0,VENDOR
04-04-2022,Adults & Health,Four Seasons (N0.10) Limited Re.Summerdale Court Care Home,Nursing Homes - Private Contractors Payment,610.9,0,VENDOR
04-04-2022,Adults & Health,Four Seasons (N0.10) Limited Re.Summerdale Court Care Home,Nursing Homes - Private Contractors Payment,647.55,0,VENDOR
04-04-2022,Adults & Health,Four Seasons (N0.10) Limited Re.Summerdale Court Care Home,Residential Care Income,-161.05,0,VENDOR
04-04-2022,Adults & Health,Four Seasons (N0.10) Limited Re.Summerdale Court Care Home,Residential Placements - Private Contractors Payment,568.91,0,VENDOR
04-04-2022,Adults & Health,Four Seasons (N0.10) Limited Re.Summerdale Court Care Home,Residential Care Income,-152.2,0,VENDOR
04-04-2022,Adults & Health,Four Seasons (N0.10) Limited Re.Summerdale Court Care Home,Residential Care Income,-161.05,0,VENDOR
04-04-2022,Adults & Health,Four Seasons (N0.10) Limited Re.Summerdale Court Care Home,Nursing Homes - Private Contractors Payment,647.55,0,VENDOR
04-04-2022,Adults & Health,Four Seasons (N0.10) Limited Re.Summerdale Court Care Home,Nursing Homes - Private Contractors Payment,610.9,0,VENDOR
04-04-2022,Adults & Health,Four Seasons (N0.10) Limited Re.Summerdale Court Care Home,Residential Care Income,-152.2,0,VENDOR
04-04-2022,Adults & Health,Four Seasons (N0.10) Limited Re.Summerdale Court Care Home,Residential Placements - Private Contractors Payment,568.91,0,VENDOR
04-04-2022,Adults & Health,Four Seasons (N0.10) Limited Re.Summerdale Court Care Home,Nursing Homes - Private Contractors Payment,610.9,0,VENDOR
04-04-2022,Adults & Health,Four Seasons (N0.10) Limited Re.Summerdale Court Care Home,Residential Care Income,-161.05,0,VENDOR
04-04-2022,Adults & Health,Four Seasons (N0.10) Limited Re.Summerdale Court Care Home,Nursing Homes - Private Contractors Payment,647.55,0,VENDOR
04-04-2022,Adults & Health,Four Seasons (N0.10) Limited Re.Summerdale Court Care Home,Residential Placements - Private Contractors Payment,568.91,0,VENDOR
04-04-2022,Adults & Health,Four Seasons (N0.10) Limited Re.Summerdale Court Care Home,Residential Care Income,-161.05,0,VENDOR
04-04-2022,Adults & Health,Four Seasons (N0.10) Limited Re.Summerdale Court Care Home,Nursing Homes - Private Contractors Payment,647.55,0,VENDOR
04-04-2022,Adults & Health,Four Seasons (N0.10) Limited Re.Summerdale Court Care Home,Residential Placements - Private Contractors Payment,568.91,0,VENDOR
04-04-2022,Adults & Health,Four Seasons (N0.10) Limited Re.Summerdale Court Care Home,Residential Placements - Private Contractors Payment,568.91,0,VENDOR
04-04-2022,Adults & Health,Four Seasons (N0.10) Limited Re.Summerdale Court Care Home,Residential Care Income,-152.2,0,VENDOR
04-04-2022,Adults & Health,Voyage 1 Ltd,Supported Other Accommodation - Private Contractors Payment,1062.19,0,COMMERCIAL SUPPLIER
04-04-2022,Adults & Health,Four Seasons (N0.10) Limited Re.Summerdale Court Care Home,Residential Care Income,-152.2,0,VENDOR
04-04-2022,Adults & Health,Four Seasons (N0.10) Limited Re.Summerdale Court Care Home,Residential Placements - Private Contractors Payment,568.91,0,VENDOR
04-04-2022,Adults & Health,Voyage 1 Ltd,Supported Other Accommodation - Private Contractors Payment,1062.19,0,COMMERCIAL SUPPLIER
04-04-2022,Adults & Health,Four Seasons (N0.10) Limited Re.Summerdale Court Care Home,Residential Placements - Private Contractors Payment,568.91,0,VENDOR
04-04-2022,Adults & Health,Four Seasons (N0.10) Limited Re.Summerdale Court Care Home,Residential Placements - Private Contractors Payment,568.91,0,VENDOR
04-04-2022,Adults & Health,Voyage 1 Ltd,Supported Other Accommodation - Private Contractors Payment,1062.19,0,COMMERCIAL SUPPLIER
04-04-2022,Adults & Health,Four Seasons (N0.10) Limited Re.Summerdale Court Care Home,Residential Placements - Private Contractors Payment,568.91,0,VENDOR
04-04-2022,Adults & Health,Four Seasons (N0.10) Limited Re.Summerdale Court Care Home,Residential Care Income,-152.2,0,VENDOR
04-04-2022,Adults & Health,Four Seasons (N0.10) Limited Re.Summerdale Court Care Home,Residential Placements - Private Contractors Payment,568.91,0,VENDOR
04-04-2022,Adults & Health,Four Seasons (N0.10) Limited Re.Summerdale Court Care Home,Residential Care Income,-152.2,0,VENDOR
04-04-2022,Adults & Health,Voyage 1 Ltd,Supported Other Accommodation - Private Contractors Payment,1062.19,0,COMMERCIAL SUPPLIER
04-04-2022,Adults & Health,Four Seasons (N0.10) Limited Re.Summerdale Court Care Home,Residential Placements - Private Contractors Payment,568.91,0,VENDOR
04-04-2022,Adults & Health,Four Seasons (N0.10) Limited Re.Summerdale Court Care Home,Residential Placements - Private Contractors Payment,568.91,0,VENDOR
04-04-2022,Adults & Health,Four Seasons (N0.10) Limited Re.Summerdale Court Care Home,Residential Care Income,-152.2,0,VENDOR
04-04-2022,Adults & Health,Voyage 1 Ltd,Supported Other Accommodation - Private Contractors Payment,1062.19,0,COMMERCIAL SUPPLIER
04-04-2022,Adults & Health,Voyage 1 Ltd,Supported Other Accommodation - Private Contractors Payment,1062.19,0,COMMERCIAL SUPPLIER
04-04-2022,Adults & Health,Four Seasons (N0.10) Limited Re.Summerdale Court Care Home,Residential Placements - Private Contractors Payment,568.91,0,VENDOR
04-04-2022,Adults & Health,Voyage 1 Ltd,Supported Other Accommodation - Private Contractors Payment,1062.19,0,COMMERCIAL SUPPLIER
04-04-2022,Adults & Health,Four Seasons (N0.10) Limited Re.Summerdale Court Care Home,Residential Care Income,-152.2,0,VENDOR
04-04-2022,Adults & Health,Four Seasons (N0.10) Limited Re.Summerdale Court Care Home,Residential Placements - Private Contractors Payment,568.91,0,VENDOR
04-04-2022,Adults & Health,Voyage 1 Ltd,Supported Other Accommodation - Private Contractors Payment,1062.19,0,COMMERCIAL SUPPLIER
04-04-2022,Adults & Health,Four Seasons (N0.10) Limited Re.Summerdale Court Care Home,Residential Placements - Private Contractors Payment,568.91,0,VENDOR
04-04-2022,Adults & Health,Voyage 1 Ltd,Supported Other Accommodation - Private Contractors Payment,1062.19,0,COMMERCIAL SUPPLIER
04-04-2022,Adults & Health,Four Seasons (N0.10) Limited Re.Summerdale Court Care Home,Residential Care Income,-152.2,0,VENDOR
04-04-2022,Adults & Health,Four Seasons (N0.10) Limited Re.Summerdale Court Care Home,Residential Placements - Private Contractors Payment,568.91,0,VENDOR
04-04-2022,Adults & Health,Voyage 1 Ltd,Supported Other Accommodation - Private Contractors Payment,1062.19,0,COMMERCIAL SUPPLIER
04-04-2022,Adults & Health,Four Seasons (N0.10) Limited Re.Summerdale Court Care Home,Nursing Homes - Private Contractors Payment,647.55,0,VENDOR
04-04-2022,Adults & Health,Four Seasons (N0.10) Limited Re.Summerdale Court Care Home,Residential Care Income,-161.05,0,VENDOR
04-04-2022,Adults & Health,Four Seasons (N0.10) Limited Re.Summerdale Court Care Home,Residential Care Income,-152.2,0,VENDOR
04-04-2022,Adults & Health,Four Seasons (N0.10) Limited Re.Summerdale Court Care Home,Residential Placements - Private Contractors Payment,568.91,0,VENDOR
04-04-2022,Adults & Health,Four Seasons (N0.10) Limited Re.Summerdale Court Care Home,Nursing Homes - Private Contractors Payment,647.55,0,VENDOR
04-04-2022,Adults & Health,Four Seasons (N0.10) Limited Re.Summerdale Court Care Home,Residential Care Income,-161.05,0,VENDOR
04-04-2022,Adults & Health,Four Seasons (N0.10) Limited Re.Summerdale Court Care Home,Nursing Homes - Private Contractors Payment,610.9,0,VENDOR
04-04-2022,Adults & Health,Four Seasons (N0.10) Limited Re.Summerdale Court Care Home,Nursing Homes - Private Contractors Payment,610.9,0,VENDOR
04-04-2022,Adults & Health,Four Seasons (N0.10) Limited Re.Summerdale Court Care Home,Nursing Homes - Private Contractors Payment,647.55,0,VENDOR
04-04-2022,Adults & Health,Four Seasons (N0.10) Limited Re.Summerdale Court Care Home,Residential Care Income,-161.05,0,VENDOR
04-04-2022,Adults & Health,Four Seasons (N0.10) Limited Re.Summerdale Court Care Home,Nursing Homes - Private Contractors Payment,647.55,0,VENDOR
04-04-2022,Adults & Health,Four Seasons (N0.10) Limited Re.Summerdale Court Care Home,Residential Care Income,-161.05,0,VENDOR
04-04-2022,Adults & Health,Four Seasons (N0.10) Limited Re.Summerdale Court Care Home,Nursing Homes - Private Contractors Payment,610.9,0,VENDOR
04-04-2022,Adults & Health,Four Seasons (N0.10) Limited Re.Summerdale Court Care Home,Nursing Homes - Private Contractors Payment,610.9,0,VENDOR
04-04-2022,Adults & Health,Four Seasons (N0.10) Limited Re.Summerdale Court Care Home,Residential Care Income,-152.2,0,VENDOR
04-04-2022,Adults & Health,Four Seasons (N0.10) Limited Re.Summerdale Court Care Home,Residential Placements - Private Contractors Payment,568.91,0,VENDOR
04-04-2022,Adults & Health,Four Seasons (N0.10) Limited Re.Summerdale Court Care Home,Residential Care Income,-161.05,0,VENDOR
04-04-2022,Adults & Health,Four Seasons (N0.10) Limited Re.Summerdale Court Care Home,Nursing Homes - Private Contractors Payment,647.55,0,VENDOR
04-04-2022,Adults & Health,Four Seasons (N0.10) Limited Re.Summerdale Court Care Home,Residential Placements - Private Contractors Payment,568.91,0,VENDOR
04-04-2022,Adults & Health,Four Seasons (N0.10) Limited Re.Summerdale Court Care Home,Nursing Homes - Private Contractors Payment,610.9,0,VENDOR
04-04-2022,Adults & Health,Four Seasons (N0.10) Limited Re.Summerdale Court Care Home,Nursing Homes - Private Contractors Payment,647.55,0,VENDOR
04-04-2022,Adults & Health,Four Seasons (N0.10) Limited Re.Summerdale Court Care Home,Residential Care Income,-161.05,0,VENDOR
04-04-2022,Adults & Health,Four Seasons (N0.10) Limited Re.Summerdale Court Care Home,Residential Placements - Private Contractors Payment,568.91,0,VENDOR
04-04-2022,Adults & Health,Four Seasons (N0.10) Limited Re.Summerdale Court Care Home,Residential Care Income,-152.2,0,VENDOR
04-04-2022,Adults & Health,Four Seasons (N0.10) Limited Re.Summerdale Court Care Home,Nursing Homes - Private Contractors Payment,647.55,0,VENDOR
04-04-2022,Adults & Health,Four Seasons (N0.10) Limited Re.Summerdale Court Care Home,Residential Care Income,-161.05,0,VENDOR
04-04-2022,Adults & Health,Four Seasons (N0.10) Limited Re.Summerdale Court Care Home,Nursing Homes - Private Contractors Payment,610.9,0,VENDOR
04-04-2022,Adults & Health,Four Seasons (N0.10) Limited Re.Summerdale Court Care Home,Residential Placements - Private Contractors Payment,568.91,0,VENDOR
04-04-2022,Adults & Health,Four Seasons (N0.10) Limited Re.Summerdale Court Care Home,Nursing Homes - Private Contractors Payment,610.9,0,VENDOR
04-04-2022,Adults & Health,Four Seasons (N0.10) Limited Re.Summerdale Court Care Home,Nursing Homes - Private Contractors Payment,647.55,0,VENDOR
04-04-2022,Adults & Health,Four Seasons (N0.10) Limited Re.Summerdale Court Care Home,Residential Care Income,-161.05,0,VENDOR
04-04-2022,Adults & Health,Four Seasons (N0.10) Limited Re.Summerdale Court Care Home,Residential Placements - Private Contractors Payment,568.91,0,VENDOR
04-04-2022,Adults & Health,Four Seasons (N0.10) Limited Re.Summerdale Court Care Home,Residential Care Income,-161.05,0,VENDOR
04-04-2022,Adults & Health,Four Seasons (N0.10) Limited Re.Summerdale Court Care Home,Nursing Homes - Private Contractors Payment,647.55,0,VENDOR
04-04-2022,Adults & Health,Four Seasons (N0.10) Limited Re.Summerdale Court Care Home,Nursing Homes - Private Contractors Payment,610.9,0,VENDOR
04-04-2022,Adults & Health,Four Seasons (N0.10) Limited Re.Summerdale Court Care Home,Nursing Homes - Private Contractors Payment,610.9,0,VENDOR
04-04-2022,Adults & Health,Four Seasons (N0.10) Limited Re.Summerdale Court Care Home,Residential Care Income,-152.2,0,VENDOR
04-04-2022,Adults & Health,Four Seasons (N0.10) Limited Re.Summerdale Court Care Home,Residential Placements - Private Contractors Payment,568.91,0,VENDOR
04-04-2022,Adults & Health,Voyage 1 Ltd,Supported Other Accommodation - Private Contractors Payment,1062.19,0,COMMERCIAL SUPPLIER
04-04-2022,Adults & Health,Four Seasons (N0.10) Limited Re.Summerdale Court Care Home,Residential Placements - Private Contractors Payment,568.91,0,VENDOR
04-04-2022,Adults & Health,Voyage 1 Ltd,Supported Other Accommodation - Private Contractors Payment,1062.19,0,COMMERCIAL SUPPLIER
04-04-2022,Adults & Health,Four Seasons (N0.10) Limited Re.Summerdale Court Care Home,Residential Placements - Private Contractors Payment,568.91,0,VENDOR
04-04-2022,Adults & Health,Four Seasons (N0.10) Limited Re.Summerdale Court Care Home,Residential Care Income,-148.85,0,VENDOR
04-04-2022,Adults & Health,Four Seasons (N0.10) Limited Re.Summerdale Court Care Home,Residential Care Income,-152.2,0,VENDOR
04-04-2022,Adults & Health,Four Seasons (N0.10) Limited Re.Summerdale Court Care Home,Residential Placements - Private Contractors Payment,568.91,0,VENDOR
04-04-2022,Adults & Health,Voyage 1 Ltd,Supported Other Accommodation - Private Contractors Payment,1062.19,0,COMMERCIAL SUPPLIER
04-04-2022,Adults & Health,Four Seasons (N0.10) Limited Re.Summerdale Court Care Home,Residential Placements - Private Contractors Payment,568.91,0,VENDOR
04-04-2022,Adults & Health,Four Seasons (N0.10) Limited Re.Summerdale Court Care Home,Residential Placements - Private Contractors Payment,568.91,0,VENDOR
04-04-2022,Adults & Health,Voyage 1 Ltd,Supported Other Accommodation - Private Contractors Payment,1062.19,0,COMMERCIAL SUPPLIER
04-04-2022,Adults & Health,Four Seasons (N0.10) Limited Re.Summerdale Court Care Home,Residential Care Income,-152.2,0,VENDOR
04-04-2022,Adults & Health,Four Seasons (N0.10) Limited Re.Summerdale Court Care Home,Residential Placements - Private Contractors Payment,568.91,0,VENDOR
04-04-2022,Adults & Health,Voyage 1 Ltd,Supported Other Accommodation - Private Contractors Payment,1062.19,0,COMMERCIAL SUPPLIER
04-04-2022,Adults & Health,Four Seasons (N0.10) Limited Re.Summerdale Court Care Home,Residential Placements - Private Contractors Payment,568.91,0,VENDOR
04-04-2022,Adults & Health,Four Seasons (N0.10) Limited Re.Summerdale Court Care Home,Residential Placements - Private Contractors Payment,568.91,0,VENDOR
04-04-2022,Adults & Health,Four Seasons (N0.10) Limited Re.Summerdale Court Care Home,Residential Care Income,-152.2,0,VENDOR
04-04-2022,Adults & Health,Four Seasons (N0.10) Limited Re.Summerdale Court Care Home,Residential Placements - Private Contractors Payment,568.91,0,VENDOR
04-04-2022,Adults & Health,Four Seasons (N0.10) Limited Re.Summerdale Court Care Home,Residential Placements - Private Contractors Payment,568.91,0,VENDOR
04-04-2022,Adults & Health,Four Seasons (N0.10) Limited Re.Summerdale Court Care Home,Residential Care Income,-152.2,0,VENDOR
04-04-2022,Adults & Health,Four Seasons (N0.10) Limited Re.Summerdale Court Care Home,Residential Placements - Private Contractors Payment,568.91,0,VENDOR
04-04-2022,Adults & Health,Four Seasons (N0.10) Limited Re.Summerdale Court Care Home,Residential Care Income,-152.2,0,VENDOR
04-04-2022,Adults & Health,Four Seasons (N0.10) Limited Re.Summerdale Court Care Home,Residential Placements - Private Contractors Payment,568.91,0,VENDOR
04-04-2022,Adults & Health,Voyage 1 Ltd,Supported Other Accommodation - Private Contractors Payment,1062.19,0,COMMERCIAL SUPPLIER
04-04-2022,Adults & Health,Four Seasons (N0.10) Limited Re.Summerdale Court Care Home,Nursing Homes - Private Contractors Payment,610.9,0,VENDOR
04-04-2022,Adults & Health,Four Seasons (N0.10) Limited Re.Summerdale Court Care Home,Residential Placements - Private Contractors Payment,568.91,0,VENDOR
04-04-2022,Adults & Health,Four Seasons (N0.10) Limited Re.Summerdale Court Care Home,Nursing Homes - Private Contractors Payment,610.9,0,VENDOR
04-04-2022,Adults & Health,Four Seasons (N0.10) Limited Re.Summerdale Court Care Home,Nursing Homes - Private Contractors Payment,647.55,0,VENDOR
04-04-2022,Adults & Health,Four Seasons (N0.10) Limited Re.Summerdale Court Care Home,Residential Care Income,-161.05,0,VENDOR
04-04-2022,Adults & Health,Four Seasons (N0.10) Limited Re.Summerdale Court Care Home,Nursing Homes - Private Contractors Payment,647.55,0,VENDOR
04-04-2022,Adults & Health,Four Seasons (N0.10) Limited Re.Summerdale Court Care Home,Residential Care Income,-161.05,0,VENDOR
04-04-2022,Adults & Health,Four Seasons (N0.10) Limited Re.Summerdale Court Care Home,Nursing Homes - Private Contractors Payment,610.9,0,VENDOR
04-04-2022,Adults & Health,Four Seasons (N0.10) Limited Re.Summerdale Court Care Home,Nursing Homes - Private Contractors Payment,610.9,0,VENDOR
04-04-2022,Adults & Health,Four Seasons (N0.10) Limited Re.Summerdale Court Care Home,Residential Care Income,-161.05,0,VENDOR
04-04-2022,Adults & Health,Four Seasons (N0.10) Limited Re.Summerdale Court Care Home,Nursing Homes - Private Contractors Payment,647.55,0,VENDOR
04-04-2022,Adults & Health,Four Seasons (N0.10) Limited Re.Summerdale Court Care Home,Nursing Homes - Private Contractors Payment,647.55,0,VENDOR
04-04-2022,Adults & Health,Four Seasons (N0.10) Limited Re.Summerdale Court Care Home,Residential Care Income,-161.05,0,VENDOR
04-04-2022,Adults & Health,Four Seasons (N0.10) Limited Re.Summerdale Court Care Home,Residential Placements - Private Contractors Payment,568.91,0,VENDOR
04-04-2022,Adults & Health,Four Seasons (N0.10) Limited Re.Summerdale Court Care Home,Nursing Homes - Private Contractors Payment,610.9,0,VENDOR
04-04-2022,Adults & Health,Voyage 1 Ltd,Supported Other Accommodation - Private Contractors Payment,1062.19,0,COMMERCIAL SUPPLIER
04-04-2022,Adults & Health,Four Seasons (N0.10) Limited Re.Summerdale Court Care Home,Residential Care Income,-308.38,0,VENDOR
04-04-2022,Adults & Health,Four Seasons (N0.10) Limited Re.Summerdale Court Care Home,Nursing Homes - Private Contractors Payment,647.55,0,VENDOR
04-04-2022,Adults & Health,Four Seasons (N0.10) Limited Re.Summerdale Court Care Home,Residential Placements - Private Contractors Payment,568.91,0,VENDOR
04-04-2022,Adults & Health,Four Seasons (N0.10) Limited Re.Summerdale Court Care Home,Residential Care Income,-152.2,0,VENDOR
04-04-2022,Adults & Health,Four Seasons (N0.10) Limited Re.Summerdale Court Care Home,Nursing Homes - Private Contractors Payment,647.55,0,VENDOR
04-04-2022,Adults & Health,Four Seasons (N0.10) Limited Re.Summerdale Court Care Home,Residential Care Income,-161.05,0,VENDOR
04-04-2022,Adults & Health,Voyage 1 Ltd,Supported Other Accommodation - Private Contractors Payment,1062.19,0,COMMERCIAL SUPPLIER
04-04-2022,Adults & Health,Voyage 1 Ltd,Supported Other Accommodation - Private Contractors Payment,1062.19,0,COMMERCIAL SUPPLIER
04-04-2022,Adults & Health,Four Seasons (N0.10) Limited Re.Summerdale Court Care Home,Nursing Homes - Private Contractors Payment,610.9,0,VENDOR
04-04-2022,Adults & Health,Four Seasons (N0.10) Limited Re.Summerdale Court Care Home,Residential Placements - Private Contractors Payment,568.91,0,VENDOR
04-04-2022,Adults & Health,Four Seasons (N0.10) Limited Re.Summerdale Court Care Home,Nursing Homes - Private Contractors Payment,610.9,0,VENDOR
04-04-2022,Adults & Health,Voyage 1 Ltd,Supported Other Accommodation - Private Contractors Payment,1062.19,0,COMMERCIAL SUPPLIER
04-04-2022,Adults & Health,Four Seasons (N0.10) Limited Re.Summerdale Court Care Home,Residential Care Income,-161.05,0,VENDOR
04-04-2022,Adults & Health,Four Seasons (N0.10) Limited Re.Summerdale Court Care Home,Nursing Homes - Private Contractors Payment,647.55,0,VENDOR
04-04-2022,Adults & Health,Four Seasons (N0.10) Limited Re.Summerdale Court Care Home,Residential Care Income,-161.05,0,VENDOR
04-04-2022,Adults & Health,Four Seasons (N0.10) Limited Re.Summerdale Court Care Home,Nursing Homes - Private Contractors Payment,647.55,0,VENDOR
04-04-2022,Adults & Health,Voyage 1 Ltd,Supported Other Accommodation - Private Contractors Payment,1062.19,0,COMMERCIAL SUPPLIER
04-04-2022,Adults & Health,Four Seasons (N0.10) Limited Re.Summerdale Court Care Home,Nursing Homes - Private Contractors Payment,610.9,0,VENDOR
04-04-2022,Adults & Health,Four Seasons (N0.10) Limited Re.Summerdale Court Care Home,Residential Care Income,-152.2,0,VENDOR
04-04-2022,Adults & Health,Four Seasons (N0.10) Limited Re.Summerdale Court Care Home,Residential Placements - Private Contractors Payment,568.91,0,VENDOR
04-04-2022,Adults & Health,Four Seasons (N0.10) Limited Re.Summerdale Court Care Home,Nursing Homes - Private Contractors Payment,610.9,0,VENDOR
04-04-2022,Adults & Health,Voyage 1 Ltd,Supported Other Accommodation - Private Contractors Payment,1062.19,0,COMMERCIAL SUPPLIER
04-04-2022,Adults & Health,Four Seasons (N0.10) Limited Re.Summerdale Court Care Home,Nursing Homes - Private Contractors Payment,647.55,0,VENDOR
04-04-2022,Adults & Health,Four Seasons (N0.10) Limited Re.Summerdale Court Care Home,Residential Care Income,-161.05,0,VENDOR
04-04-2022,Adults & Health,Four Seasons (N0.10) Limited Re.Summerdale Court Care Home,Nursing Homes - Private Contractors Payment,647.55,0,VENDOR
04-04-2022,Adults & Health,Four Seasons (N0.10) Limited Re.Summerdale Court Care Home,Residential Care Income,-161.05,0,VENDOR
04-04-2022,Adults & Health,Four Seasons (N0.10) Limited Re.Summerdale Court Care Home,Residential Placements - Private Contractors Payment,568.91,0,VENDOR
04-04-2022,Adults & Health,Four Seasons (N0.10) Limited Re.Summerdale Court Care Home,Residential Care Income,-152.2,0,VENDOR
04-04-2022,Adults & Health,Four Seasons (N0.10) Limited Re.Summerdale Court Care Home,Residential Placements - Private Contractors Payment,568.91,0,VENDOR
04-04-2022,Adults & Health,Four Seasons (N0.10) Limited Re.Summerdale Court Care Home,Residential Placements - Private Contractors Payment,568.91,0,VENDOR
04-04-2022,Adults & Health,Four Seasons (N0.10) Limited Re.Summerdale Court Care Home,Residential Placements - Private Contractors Payment,568.91,0,VENDOR
04-04-2022,Adults & Health,Four Seasons (N0.10) Limited Re.Summerdale Court Care Home,Residential Placements - Private Contractors Payment,568.91,0,VENDOR
04-04-2022,Adults & Health,Four Seasons (N0.10) Limited Re.Summerdale Court Care Home,Residential Care Income,-152.2,0,VENDOR
04-04-2022,Adults & Health,Four Seasons (N0.10) Limited Re.Summerdale Court Care Home,Residential Care Income,-152.2,0,VENDOR
04-04-2022,Adults & Health,Four Seasons (N0.10) Limited Re.Summerdale Court Care Home,Residential Placements - Private Contractors Payment,568.91,0,VENDOR
04-04-2022,Adults & Health,Voyage 1 Ltd,Supported Other Accommodation - Private Contractors Payment,1062.19,0,COMMERCIAL SUPPLIER
04-04-2022,Adults & Health,Four Seasons (N0.10) Limited Re.Summerdale Court Care Home,Residential Placements - Private Contractors Payment,568.91,0,VENDOR
04-04-2022,Adults & Health,Voyage 1 Ltd,Supported Other Accommodation - Private Contractors Payment,1062.19,0,COMMERCIAL SUPPLIER
04-04-2022,Adults & Health,Four Seasons (N0.10) Limited Re.Summerdale Court Care Home,Residential Placements - Private Contractors Payment,568.91,0,VENDOR
04-04-2022,Adults & Health,Four Seasons (N0.10) Limited Re.Summerdale Court Care Home,Residential Care Income,-152.2,0,VENDOR
04-04-2022,Adults & Health,Four Seasons (N0.10) Limited Re.Summerdale Court Care Home,Residential Placements - Private Contractors Payment,568.91,0,VENDOR
04-04-2022,Adults & Health,Four Seasons (N0.10) Limited Re.Summerdale Court Care Home,Residential Placements - Private Contractors Payment,568.91,0,VENDOR
04-04-2022,Adults & Health,Four Seasons (N0.10) Limited Re.Summerdale Court Care Home,Residential Care Income,-152.2,0,VENDOR
04-04-2022,Adults & Health,Four Seasons (N0.10) Limited Re.Summerdale Court Care Home,Residential Placements - Private Contractors Payment,568.91,0,VENDOR
04-04-2022,Adults & Health,Four Seasons (N0.10) Limited Re.Summerdale Court Care Home,Residential Placements - Private Contractors Payment,568.91,0,VENDOR
04-04-2022,Adults & Health,Four Seasons (N0.10) Limited Re.Summerdale Court Care Home,Residential Care Income,-152.2,0,VENDOR
04-04-2022,Adults & Health,Voyage 1 Ltd,Supported Other Accommodation - Private Contractors Payment,1062.19,0,COMMERCIAL SUPPLIER
04-04-2022,Adults & Health,Four Seasons (N0.10) Limited Re.Summerdale Court Care Home,Nursing Homes - Private Contractors Payment,647.55,0,VENDOR
04-04-2022,Adults & Health,Four Seasons (N0.10) Limited Re.Summerdale Court Care Home,Residential Care Income,-161.05,0,VENDOR
04-04-2022,Adults & Health,Four Seasons (N0.10) Limited Re.Summerdale Court Care Home,Residential Care Income,-152.2,0,VENDOR
04-04-2022,Adults & Health,Four Seasons (N0.10) Limited Re.Summerdale Court Care Home,Residential Placements - Private Contractors Payment,568.91,0,VENDOR
04-04-2022,Adults & Health,Four Seasons (N0.10) Limited Re.Summerdale Court Care Home,Residential Care Income,-161.05,0,VENDOR
04-04-2022,Adults & Health,Four Seasons (N0.10) Limited Re.Summerdale Court Care Home,Nursing Homes - Private Contractors Payment,647.55,0,VENDOR
04-04-2022,Adults & Health,Voyage 1 Ltd,Supported Other Accommodation - Private Contractors Payment,1062.19,0,COMMERCIAL SUPPLIER
04-04-2022,Adults & Health,Four Seasons (N0.10) Limited Re.Summerdale Court Care Home,Nursing Homes - Private Contractors Payment,610.9,0,VENDOR
04-04-2022,Adults & Health,Four Seasons (N0.10) Limited Re.Summerdale Court Care Home,Nursing Homes - Private Contractors Payment,610.9,0,VENDOR
04-04-2022,Adults & Health,Voyage 1 Ltd,Supported Other Accommodation - Private Contractors Payment,1062.19,0,COMMERCIAL SUPPLIER
04-04-2022,Adults & Health,Four Seasons (N0.10) Limited Re.Summerdale Court Care Home,Nursing Homes - Private Contractors Payment,647.55,0,VENDOR
04-04-2022,Adults & Health,Four Seasons (N0.10) Limited Re.Summerdale Court Care Home,Residential Care Income,-161.05,0,VENDOR
04-04-2022,Adults & Health,Four Seasons (N0.10) Limited Re.Summerdale Court Care Home,Residential Care Income,-161.05,0,VENDOR
04-04-2022,Adults & Health,Four Seasons (N0.10) Limited Re.Summerdale Court Care Home,Nursing Homes - Private Contractors Payment,647.55,0,VENDOR
04-04-2022,Adults & Health,Voyage 1 Ltd,Supported Other Accommodation - Private Contractors Payment,1062.19,0,COMMERCIAL SUPPLIER
04-04-2022,Adults & Health,Four Seasons (N0.10) Limited Re.Summerdale Court Care Home,Nursing Homes - Private Contractors Payment,610.9,0,VENDOR
04-04-2022,Adults & Health,Four Seasons (N0.10) Limited Re.Summerdale Court Care Home,Nursing Homes - Private Contractors Payment,610.9,0,VENDOR
04-04-2022,Adults & Health,Four Seasons (N0.10) Limited Re.Summerdale Court Care Home,Residential Placements - Private Contractors Payment,568.91,0,VENDOR
04-04-2022,Adults & Health,Four Seasons (N0.10) Limited Re.Summerdale Court Care Home,Residential Care Income,-152.2,0,VENDOR
04-04-2022,Adults & Health,Four Seasons (N0.10) Limited Re.Summerdale Court Care Home,Residential Care Income,-161.05,0,VENDOR
04-04-2022,Adults & Health,Four Seasons (N0.10) Limited Re.Summerdale Court Care Home,Nursing Homes - Private Contractors Payment,647.55,0,VENDOR
04-04-2022,Adults & Health,Voyage 1 Ltd,Supported Other Accommodation - Private Contractors Payment,1062.19,0,COMMERCIAL SUPPLIER
04-04-2022,Adults & Health,Four Seasons (N0.10) Limited Re.Summerdale Court Care Home,Nursing Homes - Private Contractors Payment,610.9,0,VENDOR
04-04-2022,Adults & Health,Four Seasons (N0.10) Limited Re.Summerdale Court Care Home,Residential Placements - Private Contractors Payment,568.91,0,VENDOR
04-04-2022,Adults & Health,Four Seasons (N0.10) Limited Re.Summerdale Court Care Home,Nursing Homes - Private Contractors Payment,610.9,0,VENDOR
04-04-2022,Adults & Health,Voyage 1 Ltd,Supported Other Accommodation - Private Contractors Payment,1062.19,0,COMMERCIAL SUPPLIER
04-04-2022,Adults & Health,Four Seasons (N0.10) Limited Re.Summerdale Court Care Home,Residential Care Income,-161.05,0,VENDOR
04-04-2022,Adults & Health,Four Seasons (N0.10) Limited Re.Summerdale Court Care Home,Nursing Homes - Private Contractors Payment,647.55,0,VENDOR
04-04-2022,Adults & Health,Four Seasons (N0.10) Limited Re.Summerdale Court Care Home,Residential Care Income,-152.2,0,VENDOR
04-04-2022,Adults & Health,Four Seasons (N0.10) Limited Re.Summerdale Court Care Home,Residential Placements - Private Contractors Payment,568.91,0,VENDOR
04-04-2022,Adults & Health,Four Seasons (N0.10) Limited Re.Summerdale Court Care Home,Nursing Homes - Private Contractors Payment,647.55,0,VENDOR
04-04-2022,Adults & Health,Four Seasons (N0.10) Limited Re.Summerdale Court Care Home,Residential Care Income,-161.05,0,VENDOR
04-04-2022,Adults & Health,Voyage 1 Ltd,Supported Other Accommodation - Private Contractors Payment,1062.19,0,COMMERCIAL SUPPLIER
04-04-2022,Adults & Health,Four Seasons (N0.10) Limited Re.Summerdale Court Care Home,Nursing Homes - Private Contractors Payment,610.9,0,VENDOR
04-04-2022,Adults & Health,Four Seasons (N0.10) Limited Re.Summerdale Court Care Home,Residential Placements - Private Contractors Payment,568.91,0,VENDOR
04-04-2022,Adults & Health,Four Seasons (N0.10) Limited Re.Summerdale Court Care Home,Residential Care Income,-152.2,0,VENDOR
04-04-2022,Adults & Health,Four Seasons (N0.10) Limited Re.Summerdale Court Care Home,Nursing Homes - Private Contractors Payment,610.9,0,VENDOR
04-04-2022,Adults & Health,Voyage 1 Ltd,Supported Other Accommodation - Private Contractors Payment,1062.19,0,COMMERCIAL SUPPLIER
04-04-2022,Adults & Health,Four Seasons (N0.10) Limited Re.Summerdale Court Care Home,Nursing Homes - Private Contractors Payment,647.55,0,VENDOR
04-04-2022,Adults & Health,Four Seasons (N0.10) Limited Re.Summerdale Court Care Home,Residential Care Income,-161.05,0,VENDOR
04-04-2022,Adults & Health,Four Seasons (N0.10) Limited Re.Summerdale Court Care Home,Residential Placements - Private Contractors Payment,568.91,0,VENDOR
04-04-2022,Adults & Health,Four Seasons (N0.10) Limited Re.Summerdale Court Care Home,Residential Care Income,-161.05,0,VENDOR
04-04-2022,Adults & Health,Four Seasons (N0.10) Limited Re.Summerdale Court Care Home,Nursing Homes - Private Contractors Payment,647.55,0,VENDOR
04-04-2022,Adults & Health,Four Seasons (N0.10) Limited Re.Summerdale Court Care Home,Nursing Homes - Private Contractors Payment,610.9,0,VENDOR
04-04-2022,Adults & Health,Four Seasons (N0.10) Limited Re.Summerdale Court Care Home,Residential Placements - Private Contractors Payment,568.91,0,VENDOR
04-04-2022,Adults & Health,Four Seasons (N0.10) Limited Re.Summerdale Court Care Home,Nursing Homes - Private Contractors Payment,610.9,0,VENDOR
04-04-2022,Adults & Health,Four Seasons (N0.10) Limited Re.Summerdale Court Care Home,Residential Care Income,-152.2,0,VENDOR
04-04-2022,Adults & Health,Four Seasons (N0.10) Limited Re.Summerdale Court Care Home,Residential Placements - Private Contractors Payment,568.91,0,VENDOR
04-04-2022,Adults & Health,Four Seasons (N0.10) Limited Re.Summerdale Court Care Home,Residential Placements - Private Contractors Payment,568.91,0,VENDOR
04-04-2022,Adults & Health,Four Seasons (N0.10) Limited Re.Summerdale Court Care Home,Residential Placements - Private Contractors Payment,568.91,0,VENDOR
04-04-2022,Adults & Health,Four Seasons (N0.10) Limited Re.Summerdale Court Care Home,Residential Care Income,-152.2,0,VENDOR
04-04-2022,Adults & Health,Four Seasons (N0.10) Limited Re.Summerdale Court Care Home,Residential Placements - Private Contractors Payment,568.91,0,VENDOR
04-04-2022,Adults & Health,Four Seasons (N0.10) Limited Re.Summerdale Court Care Home,Residential Care Income,-152.2,0,VENDOR
